Workbook

Sheet 1
K1: Cons apă | M1: Apă rece | O1: Apă caldă
A2: Nr ap | B2: Locatar | C2: Nr pers | D2: Nr cam | E2: Fără CT | F2: Fără contor gaz | G2: Salubritate | H2: Ap fara CT | I2: Cota | J2: Supraf | K2: rece | L2: caldă | M2: Val | N2: Dif | O2: Val | P2: Dif | Q2: Încălz | R2: Gaz metan | S2: Energ elect | T2: Salubr | U2: Diverse pers | V2: Diverse apart | W2: Diverse cota | X2: Diverse scara | Y2: Compen | Z2: TOTAL | AA2: Ap | AD2: Cota incalz | AE2: cota recalc | AF2: incaz spatii comune | AG2: incalz coloane | AH2: calorifere | AI2: total
A3: 1 | B3: Lăpuştea | C3: 2 | D3: 2 | G3: 2 | I3: 1.18 | K3: 5 | L3: 0 | M3: =K3*TOTAL!D$6 -> 21.65 | N3: =G3*TOTAL!F$7 -> 0.8 | O3: =L3*TOTAL!F$9 -> 0 | P3: =E3*TOTAL!F$12 -> 0 | Q3: =ROUND(I3*TOTAL!B$14/100+'1'!AE3*TOTAL!B$15/100+'1'!J3*TOTAL!D$16,2) -> 31.84 | R3: =F3*TOTAL!J$18 -> 0 | S3: =C3*TOTAL!D$18 -> 0.92 | T3: =G3*TOTAL!F$15 -> 12.58 | U3: =ROUND(C3*TOTAL!C$26,2) -> 19.15 | V3: =TOTAL!$F$26 -> 0 | W3: =ROUND(I3*TOTAL!H$26/100,2) -> 5.73 | X3: =ROUND(TOTAL!K$5/15,2) -> 0 | Z3: =SUM(M3:X3)-Y3 -> 92.67 | AA3: =A3 -> 1 | AD3: =I3 -> 1.18 | AE3: =AD3*100/TOTAL!H$3 -> 1.576907657 | AF3: =ROUND(I3*TOTAL!B$14/100,2) -> 13.86 | AG3: =AE3*TOTAL!B$15/100 -> 17.97138581 | AH3: =J3*TOTAL!D$16 -> 0 | AI3: =SUM(AF3:AH3) -> 31.83138581
A4: =A3+1 -> 2 | B4: Bugnar | C4: 1 | D4: 2 | G4: =C4 -> 1 | I4: 1.13 | K4: 21 | L4: 0 | M4: =K4*TOTAL!D$6 -> 90.93 | N4: =G4*TOTAL!F$7 -> 0.4 | O4: =L4*TOTAL!F$9 -> 0 | P4: =E4*TOTAL!F$12 -> 0 | Q4: =ROUND(I4*TOTAL!B$14/100+'1'!AE4*TOTAL!B$15/100+'1'!J4*TOTAL!D$16,2) -> 30.49 | R4: =F4*TOTAL!J$18 -> 0 | S4: =C4*TOTAL!D$18 -> 0.46 | T4: =G4*TOTAL!F$15 -> 6.29 | U4: =ROUND(C4*TOTAL!C$26,2) -> 9.58 | V4: =TOTAL!$F$26 -> 0 | W4: =ROUND(I4*TOTAL!H$26/100,2) -> 5.49 | X4: =ROUND(TOTAL!K$5/15,2) -> 0 | Z4: 143.64 | AA4: =A4 -> 2 | AD4: =I4 -> 1.13 | AE4: =AD4*100/TOTAL!H$3 -> 1.510089536 | AF4: =ROUND(I4*TOTAL!B$14/100,2) -> 13.28 | AG4: =AE4*TOTAL!B$15/100 -> 17.20988641 | AH4: =J4*TOTAL!D$16 -> 0 | AI4: =SUM(AF4:AH4) -> 30.48988641
A5: =A4+1 -> 3 | B5: Tunyogi | C5: 2 | D5: 2 | E5: =C5 -> 2 | F5: =C5 -> 2 | G5: 2 | H5: 1 | I5: 1.12 | J5: 46.53 | K5: 3 | L5: 2 | M5: =K5*TOTAL!D$6 -> 12.99 | N5: =G5*TOTAL!F$7 -> 0.8 | O5: =L5*TOTAL!F$9 -> 22 | P5: =E5*TOTAL!F$12 -> -3.66 | Q5: =ROUND(I5*TOTAL!B$14/100+'1'!AE5*TOTAL!B$15/100+'1'!J5*TOTAL!D$16,2) -> 221.58 | R5: =F5*TOTAL!J$18 -> 38.32 | S5: =C5*TOTAL!D$18 -> 0.92 | T5: =G5*TOTAL!F$15 -> 12.58 | U5: =ROUND(C5*TOTAL!C$26,2) -> 19.15 | V5: =TOTAL!$F$26 -> 0 | W5: =ROUND(I5*TOTAL!H$26/100,2) -> 5.44 | X5: =ROUND(TOTAL!K$5/15,2) -> 0 | Z5: 330.12 | AA5: 3 | AD5: 1.12 | AE5: =AD5*100/TOTAL!H$3 -> 1.496725912 | AF5: =ROUND(I5*TOTAL!B$14/100,2) -> 13.16 | AG5: =AE5*TOTAL!B$15/100 -> 17.05758653 | AH5: =J5*TOTAL!D$16 -> 191.359278 | AI5: 221.5768645
A6: 4 | B6: Garbou | C6: 1 | D6: 3 | G6: 0 | I6: 1.44 | K6: 3 | L6: 0 | M6: =K6*TOTAL!D$6 -> 12.99 | N6: =G6*TOTAL!F$7 -> 0 | O6: =L6*TOTAL!F$9 -> 0 | P6: =E6*TOTAL!F$12 -> 0 | Q6: =ROUND(I6*TOTAL!B$14/100+'1'!AE6*TOTAL!B$15/100+'1'!J6*TOTAL!D$16,2) -> 38.85 | R6: =F6*TOTAL!J$18 -> 0 | S6: =C6*TOTAL!D$18 -> 0.46 | T6: =G6*TOTAL!F$15 -> 0 | U6: =ROUND(C6*TOTAL!C$26,2) -> 9.58 | V6: =TOTAL!$F$26 -> 0 | W6: =ROUND(I6*TOTAL!H$26/100,2) -> 7 | X6: =ROUND(TOTAL!K$5/15,2) -> 0 | Z6: 68.88 | AA6: 4 | AD6: 1.44 | AE6: =AD6*100/TOTAL!H$3 -> 1.924361887 | AF6: =ROUND(I6*TOTAL!B$14/100,2) -> 16.92 | AG6: =AE6*TOTAL!B$15/100 -> 21.93118268 | AH6: =J6*TOTAL!D$16 -> 0 | AI6: 38.85118268
A7: 5 | B7: Szép | C7: 3 | D7: 3 | E7: =C7 -> 3 | F7: =C7 -> 3 | G7: 3 | H7: 1 | I7: 1.46 | J7: 60.34 | K7: 6 | L7: 11 | M7: =K7*TOTAL!D$6 -> 25.98 | N7: =G7*TOTAL!F$7 -> 1.2 | O7: =L7*TOTAL!F$9 -> 121 | P7: =E7*TOTAL!F$12 -> -5.49 | Q7: =ROUND(I7*TOTAL!B$14/100+'1'!AE7*TOTAL!B$15/100+'1'!J7*TOTAL!D$16,2) -> 287.54 | R7: =F7*TOTAL!J$18 -> 57.48 | S7: =C7*TOTAL!D$18 -> 1.38 | T7: =G7*TOTAL!F$15 -> 18.87 | U7: =ROUND(C7*TOTAL!C$26,2) -> 28.73 | V7: =TOTAL!$F$26 -> 0 | W7: =ROUND(I7*TOTAL!H$26/100,2) -> 7.09 | X7: =ROUND(TOTAL!K$5/15,2) -> 0 | Z7: 543.78 | AA7: 5 | AD7: 1.46 | AE7: =AD7*100/TOTAL!H$3 -> 1.951089135 | AF7: =ROUND(I7*TOTAL!B$14/100,2) -> 17.15 | AG7: =AE7*TOTAL!B$15/100 -> 22.23578244 | AH7: =J7*TOTAL!D$16 -> 248.154284 | AI7: 287.5400664
A8: 6 | B8: Bara | C8: 1 | D8: 2 | E8: =C8 -> 1 | F8: =C8 -> 1 | G8: 0 | H8: 1 | I8: 1.13 | J8: 46.73 | K8: 0 | L8: 0 | M8: =K8*TOTAL!D$6 -> 0 | N8: =G8*TOTAL!F$7 -> 0 | O8: =L8*TOTAL!F$9 -> 0 | P8: =E8*TOTAL!F$12 -> -1.83 | Q8: =ROUND(I8*TOTAL!B$14/100+'1'!AE8*TOTAL!B$15/100+'1'!J8*TOTAL!D$16,2) -> 222.67 | R8: =F8*TOTAL!J$18 -> 19.16 | S8: =C8*TOTAL!D$18 -> 0.46 | T8: =G8*TOTAL!F$15 -> 0 | U8: =ROUND(C8*TOTAL!C$26,2) -> 9.58 | V8: =TOTAL!$F$26 -> 0 | W8: =ROUND(I8*TOTAL!H$26/100,2) -> 5.49 | X8: =ROUND(TOTAL!K$5/15,2) -> 0 | Z8: 255.53 | AA8: 6 | AD8: 1.13 | AE8: =AD8*100/TOTAL!H$3 -> 1.510089536 | AF8: =ROUND(I8*TOTAL!B$14/100,2) -> 13.28 | AG8: =AE8*TOTAL!B$15/100 -> 17.20988641 | AH8: =J8*TOTAL!D$16 -> 192.181798 | AI8: 222.6716844
A9: 7 | B9: Colceriu | C9: 1 | D9: 3 | E9: =C9 -> 1 | F9: =C9 -> 1 | G9: 1 | H9: 1 | I9: 1.44 | J9: 31.1 | K9: 2 | L9: 5 | M9: =K9*TOTAL!D$6 -> 8.66 | N9: =G9*TOTAL!F$7 -> 0.4 | O9: =L9*TOTAL!F$9 -> 55 | P9: =E9*TOTAL!F$12 -> -1.83 | Q9: =ROUND(I9*TOTAL!B$14/100+'1'!AE9*TOTAL!B$15/100+'1'!J9*TOTAL!D$16,2) -> 166.75 | R9: =F9*TOTAL!J$18 -> 19.16 | S9: =C9*TOTAL!D$18 -> 0.46 | T9: =G9*TOTAL!F$15 -> 6.29 | U9: =ROUND(C9*TOTAL!C$26,2) -> 9.58 | V9: =TOTAL!$F$26 -> 0 | W9: =ROUND(I9*TOTAL!H$26/100,2) -> 7 | X9: =ROUND(TOTAL!K$5/15,2) -> 0 | Z9: 271.47 | AA9: 7 | AD9: 1.44 | AE9: =AD9*100/TOTAL!H$3 -> 1.924361887 | AF9: =ROUND(I9*TOTAL!B$14/100,2) -> 16.92 | AG9: =AE9*TOTAL!B$15/100 -> 21.93118268 | AH9: =J9*TOTAL!D$16 -> 127.90186 | AI9: 166.7530427
A10: 8 | B10: Gabor | C10: 1 | D10: 3 | G10: 1 | I10: 1.46 | K10: 0 | L10: 0 | M10: =K10*TOTAL!D$6 -> 0 | N10: =G10*TOTAL!F$7 -> 0.4 | O10: =L10*TOTAL!F$9 -> 0 | P10: =E10*TOTAL!F$12 -> 0 | Q10: =ROUND(I10*TOTAL!B$14/100+'1'!AE10*TOTAL!B$15/100+'1'!J10*TOTAL!D$16,2) -> 39.39 | R10: =F10*TOTAL!J$18 -> 0 | S10: =C10*TOTAL!D$18 -> 0.46 | T10: =G10*TOTAL!F$15 -> 6.29 | U10: =ROUND(C10*TOTAL!C$26,2) -> 9.58 | V10: =TOTAL!$F$26 -> 0 | W10: =ROUND(I10*TOTAL!H$26/100,2) -> 7.09 | X10: =ROUND(TOTAL!K$5/15,2) -> 0 | Z10: 63.21 | AA10: 8 | AD10: 1.46 | AE10: =AD10*100/TOTAL!H$3 -> 1.951089135 | AF10: =ROUND(I10*TOTAL!B$14/100,2) -> 17.15 | AG10: =AE10*TOTAL!B$15/100 -> 22.23578244 | AH10: =J10*TOTAL!D$16 -> 0 | AI10: 39.38578244
A11: 9 | B11: Neamţ | C11: 3 | D11: 2 | G11: 3 | I11: 1.13 | K11: 13 | L11: 0 | M11: =K11*TOTAL!D$6 -> 56.29 | N11: =G11*TOTAL!F$7 -> 1.2 | O11: =L11*TOTAL!F$9 -> 0 | P11: =E11*TOTAL!F$12 -> 0 | Q11: =ROUND(I11*TOTAL!B$14/100+'1'!AE11*TOTAL!B$15/100+'1'!J11*TOTAL!D$16,2) -> 30.49 | R11: =F11*TOTAL!J$18 -> 0 | S11: =C11*TOTAL!D$18 -> 1.38 | T11: =G11*TOTAL!F$15 -> 18.87 | U11: =ROUND(C11*TOTAL!C$26,2) -> 28.73 | V11: =TOTAL!$F$26 -> 0 | W11: =ROUND(I11*TOTAL!H$26/100,2) -> 5.49 | X11: =ROUND(TOTAL!K$5/15,2) -> 0 | Z11: 142.45 | AA11: 9 | AD11: 1.13 | AE11: =AD11*100/TOTAL!H$3 -> 1.510089536 | AF11: =ROUND(I11*TOTAL!B$14/100,2) -> 13.28 | AG11: =AE11*TOTAL!B$15/100 -> 17.20988641 | AH11: =J11*TOTAL!D$16 -> 0 | AI11: 30.48988641
A12: 10 | B12: Micşunescu | C12: 1 | D12: 3 | G12: 0 | I12: 1.44 | K12: 0 | L12: 0 | M12: =K12*TOTAL!D$6 -> 0 | N12: =G12*TOTAL!F$7 -> 0 | O12: =L12*TOTAL!F$9 -> 0 | P12: =E12*TOTAL!F$12 -> 0 | Q12: =ROUND(I12*TOTAL!B$14/100+'1'!AE12*TOTAL!B$15/100+'1'!J12*TOTAL!D$16,2) -> 38.85 | R12: =F12*TOTAL!J$18 -> 0 | S12: =C12*TOTAL!D$18 -> 0.46 | T12: =G12*TOTAL!F$15 -> 0 | U12: =ROUND(C12*TOTAL!C$26,2) -> 9.58 | V12: =TOTAL!$F$26 -> 0 | W12: =ROUND(I12*TOTAL!H$26/100,2) -> 7 | X12: =ROUND(TOTAL!K$5/15,2) -> 0 | Y12: 18.07 | Z12: 37.82 | AA12: 10 | AD12: 1.44 | AE12: =AD12*100/TOTAL!H$3 -> 1.924361887 | AF12: =ROUND(I12*TOTAL!B$14/100,2) -> 16.92 | AG12: =AE12*TOTAL!B$15/100 -> 21.93118268 | AH12: =J12*TOTAL!D$16 -> 0 | AI12: 38.85118268
A13: 11 | B13: Jugrestan | C13: 1 | D13: 3 | G13: 1 | I13: 1.46 | K13: 3 | L13: 0 | M13: =K13*TOTAL!D$6 -> 12.99 | N13: =G13*TOTAL!F$7 -> 0.4 | O13: =L13*TOTAL!F$9 -> 0 | P13: =E13*TOTAL!F$12 -> 0 | Q13: =ROUND(I13*TOTAL!B$14/100+'1'!AE13*TOTAL!B$15/100+'1'!J13*TOTAL!D$16,2) -> 39.39 | R13: =F13*TOTAL!J$18 -> 0 | S13: =C13*TOTAL!D$18 -> 0.46 | T13: =G13*TOTAL!F$15 -> 6.29 | U13: =ROUND(C13*TOTAL!C$26,2) -> 9.58 | V13: =TOTAL!$F$26 -> 0 | W13: =ROUND(I13*TOTAL!H$26/100,2) -> 7.09 | X13: =ROUND(TOTAL!K$5/15,2) -> 0 | Z13: 76.2 | AA13: 11 | AD13: 1.46 | AE13: =AD13*100/TOTAL!H$3 -> 1.951089135 | AF13: =ROUND(I13*TOTAL!B$14/100,2) -> 17.15 | AG13: =AE13*TOTAL!B$15/100 -> 22.23578244 | AH13: =J13*TOTAL!D$16 -> 0 | AI13: 39.38578244
A14: 12 | B14: Tárkányi | C14: 2 | D14: 2 | E14: =C14 -> 2 | F14: =C14 -> 2 | G14: 2 | H14: 1 | I14: 1.11 | J14: 46.19 | K14: 4 | L14: 7 | M14: =K14*TOTAL!D$6 -> 17.32 | N14: =G14*TOTAL!F$7 -> 0.8 | O14: =L14*TOTAL!F$9 -> 77 | P14: =E14*TOTAL!F$12 -> -3.66 | Q14: =ROUND(I14*TOTAL!B$14/100+'1'!AE14*TOTAL!B$15/100+'1'!J14*TOTAL!D$16,2) -> 219.91 | R14: =F14*TOTAL!J$18 -> 38.32 | S14: =C14*TOTAL!D$18 -> 0.92 | T14: =G14*TOTAL!F$15 -> 12.58 | U14: =ROUND(C14*TOTAL!C$26,2) -> 19.15 | V14: =TOTAL!$F$26 -> 0 | W14: =ROUND(I14*TOTAL!H$26/100,2) -> 5.39 | X14: =ROUND(TOTAL!K$5/15,2) -> 0 | Z14: 387.73 | AA14: 12 | AD14: 1.11 | AE14: =AD14*100/TOTAL!H$3 -> 1.483362288 | AF14: =ROUND(I14*TOTAL!B$14/100,2) -> 13.04 | AG14: =AE14*TOTAL!B$15/100 -> 16.90528665 | AH14: =J14*TOTAL!D$16 -> 189.960994 | AI14: 219.9062806
A15: 13 | B15: Nebert | C15: 1 | D15: 3 | G15: 1 | I15: 1.44 | K15: 4 | L15: 0 | M15: =K15*TOTAL!D$6 -> 17.32 | N15: =G15*TOTAL!F$7 -> 0.4 | O15: =L15*TOTAL!F$9 -> 0 | P15: =E15*TOTAL!F$12 -> 0 | Q15: =ROUND(I15*TOTAL!B$14/100+'1'!AE15*TOTAL!B$15/100+'1'!J15*TOTAL!D$16,2) -> 38.85 | R15: =F15*TOTAL!J$18 -> 0 | S15: =C15*TOTAL!D$18 -> 0.46 | T15: =G15*TOTAL!F$15 -> 6.29 | U15: =ROUND(C15*TOTAL!C$26,2) -> 9.58 | V15: =TOTAL!$F$26 -> 0 | W15: =ROUND(I15*TOTAL!H$26/100,2) -> 7 | X15: =ROUND(TOTAL!K$5/15,2) -> 0 | Z15: 79.9 | AA15: 13 | AD15: 1.44 | AE15: =AD15*100/TOTAL!H$3 -> 1.924361887 | AF15: =ROUND(I15*TOTAL!B$14/100,2) -> 16.92 | AG15: =AE15*TOTAL!B$15/100 -> 21.93118268 | AH15: =J15*TOTAL!D$16 -> 0 | AI15: 38.85118268
A16: 14 | B16: Crişan | C16: 1 | D16: 3 | G16: 1 | I16: 1.46 | K16: 4 | L16: 0 | M16: =K16*TOTAL!D$6 -> 17.32 | N16: =G16*TOTAL!F$7 -> 0.4 | O16: =L16*TOTAL!F$9 -> 0 | P16: =E16*TOTAL!F$12 -> 0 | Q16: =ROUND(I16*TOTAL!B$14/100+'1'!AE16*TOTAL!B$15/100+'1'!J16*TOTAL!D$16,2) -> 39.39 | R16: =F16*TOTAL!J$18 -> 0 | S16: =C16*TOTAL!D$18 -> 0.46 | T16: =G16*TOTAL!F$15 -> 6.29 | U16: =ROUND(C16*TOTAL!C$26,2) -> 9.58 | V16: =TOTAL!$F$26 -> 0 | W16: =ROUND(I16*TOTAL!H$26/100,2) -> 7.09 | X16: =ROUND(TOTAL!K$5/15,2) -> 0 | Z16: 80.53 | AA16: 14 | AD16: 1.46 | AE16: =AD16*100/TOTAL!H$3 -> 1.951089135 | AF16: =ROUND(I16*TOTAL!B$14/100,2) -> 17.15 | AG16: =AE16*TOTAL!B$15/100 -> 22.23578244 | AH16: =J16*TOTAL!D$16 -> 0 | AI16: 39.38578244
A17: 15 | B17: Lazăr | C17: 2 | D17: 2 | E17: 0 | G17: 2 | I17: 1.13 | K17: 5 | L17: 0 | M17: =K17*TOTAL!D$6 -> 21.65 | N17: =G17*TOTAL!F$7 -> 0.8 | O17: =L17*TOTAL!F$9 -> 0 | P17: =E17*TOTAL!F$12 -> 0 | Q17: =ROUND(I17*TOTAL!B$14/100+'1'!AE17*TOTAL!B$15/100+'1'!J17*TOTAL!D$16,2) -> 30.49 | R17: =F17*TOTAL!J$18 -> 0 | S17: =C17*TOTAL!D$18 -> 0.92 | T17: =G17*TOTAL!F$15 -> 12.58 | U17: =ROUND(C17*TOTAL!C$26,2) -> 19.15 | V17: =TOTAL!$F$26 -> 0 | W17: =ROUND(I17*TOTAL!H$26/100,2) -> 5.49 | X17: =ROUND(TOTAL!K$5/15,2) -> 0 | Z17: 91.08 | AA17: 15 | AD17: 1.13 | AE17: =AD17*100/TOTAL!H$3 -> 1.510089536 | AF17: =ROUND(I17*TOTAL!B$14/100,2) -> 13.28 | AG17: =AE17*TOTAL!B$15/100 -> 17.20988641 | AH17: =J17*TOTAL!D$16 -> 0 | AI17: 30.48988641
C18: =SUM(C3:C17) -> 23 | D18: 38 | E18: 9 | F18: 9 | G18: 20 | H18: 5 | I18: 19.53 | J18: 230.89 | K18: 73 | L18: 25 | M18: 316.09 | N18: 8 | O18: 275 | P18: -16.47 | Q18: 1476.48 | R18: 172.44 | S18: 10.58 | T18: 125.8 | U18: 220.28 | V18: 0 | W18: 94.88 | X18: 0 | Y18: 18.07 | Z18: 2665.01 | AC18: =SUM(M18:X18)-Y18 -> 2665.01 | AD18: =SUM(AD3:AD17) -> 19.53 | AE18: 26.09915809 | AF18: 229.46 | AG18: =SUM(AG3:AG17) -> 297.4416651 | AH18: =SUM(AH3:AH17) -> 949.558214 | AI18: =SUM(AI3:AI17) -> 1476.459879
M19: Presedinte | O19: Sef Comisie Cenzori | S19: Contabil
B22: Pentru completarea cartii de imobil locatarii sunt rugati sa aduca o copie xerox dupa buletin, CI , certficat de nastere pt copii.
B23: De la toti care stau efectiv in apartament indiferent de calitate, proprietar, chirias cu flotant sau fara flotant.

Sheet 2
K1: Cons apă | M1: Apă rece | O1: Apă caldă
A2: Nr ap | B2: Locatar | C2: Nr pers | D2: Nr cam | E2: Fără CT | F2: Fără contor gaz | G2: Salubritate | H2: Ap fara CT | I2: Cota | J2: Supraf | K2: rece | L2: caldă | M2: Val | N2: Dif | O2: Val | P2: Dif | Q2: Încălz | R2: Gaz metan | S2: Energ elect | T2: Salubr | U2: Diverse pers | V2: Diverse apart | W2: Diverse cota | X2: Diverse scara | Y2: Compen | Z2: TOTAL | AA2: Ap | AD2: Cota incalz | AE2: cota recalc | AF2: incaz spatii comune | AG2: incalz coloane | AH2: calorifere | AI2: total
A3: 16 | B3: Vescan | C3: 4 | D3: 3 | G3: =C3 -> 4 | I3: 1.42 | K3: 4 | L3: 0 | M3: =K3*TOTAL!D$6 -> 17.32 | N3: =G3*TOTAL!F$7 -> 1.6 | O3: =L3*TOTAL!F$9 -> 0 | P3: =E3*TOTAL!F$12 -> 0 | Q3: =ROUND(I3*TOTAL!B$14/100+'2'!AE3*TOTAL!B$15/100+'2'!J3*TOTAL!D$16,2) -> 16.68 | R3: =F3*TOTAL!J19 -> 0 | S3: =C3*TOTAL!D$19 -> 2.2 | T3: =G3*TOTAL!F$15 -> 25.16 | U3: =ROUND(C3*TOTAL!C$26,2) -> 38.31 | V3: =TOTAL!$F$26 -> 0 | W3: =ROUND(I3*TOTAL!H$26/100,2) -> 6.9 | X3: =ROUND(TOTAL!K$7/11,2) -> 0 | Z3: =SUM(M3:X3)-Y3 -> 108.17 | AA3: =A3 -> 16 | AE3: =AD3*100/TOTAL!H$3 -> 0 | AF3: =ROUND(I3*TOTAL!B$14/100,2) -> 16.68 | AG3: =AE3*TOTAL!B$15/100 -> 0 | AH3: =J3*TOTAL!D$16 -> 0 | AI3: =SUM(AF3:AH3) -> 16.68
A4: =A3+1 -> 17 | B4: Mihăescu | C4: 2 | D4: 3 | E4: =C4 -> 2 | G4: =C4 -> 2 | H4: 1 | I4: 1.44 | J4: 59.9 | K4: 4 | L4: 4 | M4: =K4*TOTAL!D$6 -> 17.32 | N4: =G4*TOTAL!F$7 -> 0.8 | O4: =L4*TOTAL!F$9 -> 44 | P4: =E4*TOTAL!F$12 -> -3.66 | Q4: =ROUND(I4*TOTAL!B$14/100+'2'!AE4*TOTAL!B$15/100+'2'!J4*TOTAL!D$16,2) -> 285.19 | R4: =T19 -> 0 | S4: =C4*TOTAL!D$19 -> 1.1 | T4: =G4*TOTAL!F$15 -> 12.58 | U4: =ROUND(C4*TOTAL!C$26,2) -> 19.15 | V4: =TOTAL!$F$26 -> 0 | W4: =ROUND(I4*TOTAL!H$26/100,2) -> 7 | X4: =ROUND(TOTAL!K$7/11,2) -> 0 | Z4: 383.48 | AA4: 17 | AD4: 1.44 | AE4: =AD4*100/TOTAL!H$3 -> 1.924361887 | AF4: =ROUND(I4*TOTAL!B$14/100,2) -> 16.92 | AG4: =AE4*TOTAL!B$15/100 -> 21.93118268 | AH4: =J4*TOTAL!D$16 -> 246.34474 | AI4: 285.1959227
A5: 18 | B5: Pop Florin | C5: 2 | D5: 3 | G5: 2 | I5: 1.44 | K5: 8 | L5: 0 | M5: =K5*TOTAL!D$6 -> 34.64 | N5: =G5*TOTAL!F$7 -> 0.8 | O5: =L5*TOTAL!F$9 -> 0 | P5: =E5*TOTAL!F$12 -> 0 | Q5: =ROUND(I5*TOTAL!B$14/100+'2'!AE5*TOTAL!B$15/100+'2'!J5*TOTAL!D$16,2) -> 16.92 | R5: =F5*TOTAL!I$18 -> 0 | S5: =C5*TOTAL!D$19 -> 1.1 | T5: =G5*TOTAL!F$15 -> 12.58 | U5: =ROUND(C5*TOTAL!C$26,2) -> 19.15 | V5: =TOTAL!$F$26 -> 0 | W5: =ROUND(I5*TOTAL!H$26/100,2) -> 7 | X5: =ROUND(TOTAL!K$7/11,2) -> 0 | Z5: 92.19 | AA5: 18 | AF5: =ROUND(I5*TOTAL!B$14/100,2) -> 16.92 | AG5: =AE5*TOTAL!B$15/100 -> 0 | AH5: =J5*TOTAL!D$16 -> 0 | AI5: 16.92
A6: 19 | B6: Mureşan I | C6: 2 | D6: 4 | G6: 2 | I6: 1.65 | K6: 10 | L6: 0 | M6: =K6*TOTAL!D$6 -> 43.3 | N6: =G6*TOTAL!F$7 -> 0.8 | O6: =L6*TOTAL!F$9 -> 0 | P6: =E6*TOTAL!F$12 -> 0 | Q6: =ROUND(I6*TOTAL!B$14/100+'2'!AE6*TOTAL!B$15/100+'2'!J6*TOTAL!D$16,2) -> 19.39 | R6: =F6*TOTAL!I$18 -> 0 | S6: =C6*TOTAL!D$19 -> 1.1 | T6: =G6*TOTAL!F$15 -> 12.58 | U6: =ROUND(C6*TOTAL!C$26,2) -> 19.15 | V6: =TOTAL!$F$26 -> 0 | W6: =ROUND(I6*TOTAL!H$26/100,2) -> 8.02 | X6: =ROUND(TOTAL!K$7/11,2) -> 0 | Z6: 104.34 | AA6: 19 | AF6: =ROUND(I6*TOTAL!B$14/100,2) -> 19.39 | AG6: =AE6*TOTAL!B$15/100 -> 0 | AH6: =J6*TOTAL!D$16 -> 0 | AI6: 19.39
A7: 20 | B7: Ibbison | C7: 2 | D7: 3 | G7: 2 | I7: 1.44 | K7: 6 | L7: 0 | M7: =K7*TOTAL!D$6 -> 25.98 | N7: =G7*TOTAL!F$7 -> 0.8 | O7: =L7*TOTAL!F$9 -> 0 | P7: =E7*TOTAL!F$12 -> 0 | Q7: =ROUND(I7*TOTAL!B$14/100+'2'!AE7*TOTAL!B$15/100+'2'!J7*TOTAL!D$16,2) -> 16.92 | R7: =F7*TOTAL!I$18 -> 0 | S7: =C7*TOTAL!D$19 -> 1.1 | T7: =G7*TOTAL!F$15 -> 12.58 | U7: =ROUND(C7*TOTAL!C$26,2) -> 19.15 | V7: =TOTAL!$F$26 -> 0 | W7: =ROUND(I7*TOTAL!H$26/100,2) -> 7 | X7: =ROUND(TOTAL!K$7/11,2) -> 0 | Z7: 83.53 | AA7: 20 | AF7: =ROUND(I7*TOTAL!B$14/100,2) -> 16.92 | AG7: =AE7*TOTAL!B$15/100 -> 0 | AH7: =J7*TOTAL!D$16 -> 0 | AI7: 16.92
A8: 21 | B8: Kállai | C8: 2 | D8: 4 | G8: 2 | I8: 1.67 | K8: 6 | L8: 0 | M8: =K8*TOTAL!D$6 -> 25.98 | N8: =G8*TOTAL!F$7 -> 0.8 | O8: =L8*TOTAL!F$9 -> 0 | P8: =E8*TOTAL!F$12 -> 0 | Q8: =ROUND(I8*TOTAL!B$14/100+'2'!AE8*TOTAL!B$15/100+'2'!J8*TOTAL!D$16,2) -> 19.62 | R8: =F8*TOTAL!I$18 -> 0 | S8: =C8*TOTAL!D$19 -> 1.1 | T8: =G8*TOTAL!F$15 -> 12.58 | U8: =ROUND(C8*TOTAL!C$26,2) -> 19.15 | V8: =TOTAL!$F$26 -> 0 | W8: =ROUND(I8*TOTAL!H$26/100,2) -> 8.11 | X8: =ROUND(TOTAL!K$7/11,2) -> 0 | Z8: 87.34 | AA8: 21 | AF8: =ROUND(I8*TOTAL!B$14/100,2) -> 19.62 | AG8: =AE8*TOTAL!B$15/100 -> 0 | AH8: =J8*TOTAL!D$16 -> 0 | AI8: 19.62
A9: 22 | B9: Indolean | C9: 2 | D9: 3 | G9: 2 | I9: 1.44 | K9: 5 | L9: 0 | M9: =K9*TOTAL!D$6 -> 21.65 | N9: =G9*TOTAL!F$7 -> 0.8 | O9: =L9*TOTAL!F$9 -> 0 | P9: =E9*TOTAL!F$12 -> 0 | Q9: =ROUND(I9*TOTAL!B$14/100+'2'!AE9*TOTAL!B$15/100+'2'!J9*TOTAL!D$16,2) -> 16.92 | R9: =F9*TOTAL!I$18 -> 0 | S9: =C9*TOTAL!D$19 -> 1.1 | T9: =G9*TOTAL!F$15 -> 12.58 | U9: =ROUND(C9*TOTAL!C$26,2) -> 19.15 | V9: =TOTAL!$F$26 -> 0 | W9: =ROUND(I9*TOTAL!H$26/100,2) -> 7 | X9: =ROUND(TOTAL!K$7/11,2) -> 0 | Z9: 79.2 | AA9: 22 | AF9: =ROUND(I9*TOTAL!B$14/100,2) -> 16.92 | AG9: =AE9*TOTAL!B$15/100 -> 0 | AH9: =J9*TOTAL!D$16 -> 0 | AI9: 16.92
A10: 23 | B10: Mureşan E | C10: 2 | D10: 4 | G10: 2 | I10: 0.67 | K10: 5 | L10: 0 | M10: =K10*TOTAL!D$6 -> 21.65 | N10: =G10*TOTAL!F$7 -> 0.8 | O10: =L10*TOTAL!F$9 -> 0 | P10: =E10*TOTAL!F$12 -> 0 | Q10: =ROUND(I10*TOTAL!B$14/100+'2'!AE10*TOTAL!B$15/100+'2'!J10*TOTAL!D$16,2) -> 7.87 | R10: =F10*TOTAL!I$18 -> 0 | S10: =C10*TOTAL!D$19 -> 1.1 | T10: =G10*TOTAL!F$15 -> 12.58 | U10: =ROUND(C10*TOTAL!C$26,2) -> 19.15 | V10: =TOTAL!$F$26 -> 0 | W10: =ROUND(I10*TOTAL!H$26/100,2) -> 3.26 | X10: =ROUND(TOTAL!K$7/11,2) -> 0 | Z10: 66.41 | AA10: 23 | AF10: =ROUND(I10*TOTAL!B$14/100,2) -> 7.87 | AG10: =AE10*TOTAL!B$15/100 -> 0 | AH10: =J10*TOTAL!D$16 -> 0 | AI10: 7.87
A11: 23A | B11: Stanimir | C11: 2 | D11: 4 | G11: 2 | I11: 1 | K11: 11 | L11: 0 | M11: =K11*TOTAL!D$6 -> 47.63 | N11: =G11*TOTAL!F$7 -> 0.8 | O11: =L11*TOTAL!F$9 -> 0 | P11: =E11*TOTAL!F$12 -> 0 | Q11: =ROUND(I11*TOTAL!B$14/100+'2'!AE11*TOTAL!B$15/100+'2'!J11*TOTAL!D$16,2) -> 11.75 | R11: =F11*TOTAL!I$18 -> 0 | S11: =C11*TOTAL!D$19 -> 1.1 | T11: =G11*TOTAL!F$15 -> 12.58 | U11: =ROUND(C11*TOTAL!C$26,2) -> 19.15 | V11: =TOTAL!$F$26 -> 0 | W11: =ROUND(I11*TOTAL!H$26/100,2) -> 4.86 | X11: =ROUND(TOTAL!K$7/11,2) -> 0 | Z11: 97.87 | AA11: 23A | AF11: =ROUND(I11*TOTAL!B$14/100,2) -> 11.75 | AG11: =AE11*TOTAL!B$15/100 -> 0 | AH11: =J11*TOTAL!D$16 -> 0 | AI11: 11.75
A12: 24 | B12: Cheţan | C12: 3 | D12: 3 | G12: 3 | I12: 1.44 | K12: 5 | L12: 0 | M12: =K12*TOTAL!D$6 -> 21.65 | N12: =G12*TOTAL!F$7 -> 1.2 | O12: =L12*TOTAL!F$9 -> 0 | P12: =E12*TOTAL!F$12 -> 0 | Q12: =ROUND(I12*TOTAL!B$14/100+'2'!AE12*TOTAL!B$15/100+'2'!J12*TOTAL!D$16,2) -> 16.92 | R12: =F12*TOTAL!I$18 -> 0 | S12: =C12*TOTAL!D$19 -> 1.65 | T12: =G12*TOTAL!F$15 -> 18.87 | U12: =ROUND(C12*TOTAL!C$26,2) -> 28.73 | V12: =TOTAL!$F$26 -> 0 | W12: =ROUND(I12*TOTAL!H$26/100,2) -> 7 | X12: =ROUND(TOTAL!K$7/11,2) -> 0 | Z12: 96.02 | AA12: 24 | AF12: =ROUND(I12*TOTAL!B$14/100,2) -> 16.92 | AG12: =AE12*TOTAL!B$15/100 -> 0 | AH12: =J12*TOTAL!D$16 -> 0 | AI12: 16.92
A13: 25 | B13: Călin | C13: 2 | D13: 4 | G13: 2 | I13: 1.67 | K13: 6 | L13: 0 | M13: =K13*TOTAL!D$6 -> 25.98 | N13: =G13*TOTAL!F$7 -> 0.8 | O13: =L13*TOTAL!F$9 -> 0 | P13: =E13*TOTAL!F$12 -> 0 | Q13: =ROUND(I13*TOTAL!B$14/100+'2'!AE13*TOTAL!B$15/100+'2'!J13*TOTAL!D$16,2) -> 19.62 | R13: =F13*TOTAL!I$18 -> 0 | S13: =C13*TOTAL!D$19 -> 1.1 | T13: =G13*TOTAL!F$15 -> 12.58 | U13: =ROUND(C13*TOTAL!C$26,2) -> 19.15 | V13: =TOTAL!$F$26 -> 0 | W13: =ROUND(I13*TOTAL!H$26/100,2) -> 8.11 | X13: =ROUND(TOTAL!K$7/11,2) -> 0 | Z13: 87.34 | AA13: 25 | AF13: =ROUND(I13*TOTAL!B$14/100,2) -> 19.62 | AG13: =AE13*TOTAL!B$15/100 -> 0 | AH13: =J13*TOTAL!D$16 -> 0 | AI13: 19.62
C14: =SUM(C3:C13) -> 25 | D14: 38 | E14: 2 | F14: 0 | G14: 25 | H14: 1 | I14: 15.28 | J14: 59.9 | K14: 70 | L14: 4 | M14: 303.1 | N14: 10 | O14: 44 | P14: -3.66 | Q14: 447.8 | R14: 0 | S14: 13.75 | T14: 157.25 | U14: 239.39 | V14: 0 | W14: 74.26 | X14: 0 | Y14: 0 | Z14: 1285.89 | AC14: =SUM(M14:X14)-Y14 -> 1285.89 | AD14: =AD4 -> 1.44 | AE14: =AE4 -> 1.924361887 | AF14: =SUM(AF3:AF13) -> 179.53 | AG14: =SUM(AG3:AG13) -> 21.93118268 | AH14: =SUM(AH3:AH13) -> 246.34474 | AI14: =SUM(AI3:AI13) -> 447.8059227
M15: Presedinte | O15: Sef Comisie Cenzori | S15: Contabil
B18: Pentru completarea cartii de imobil locatarii sunt rugati sa aduca o copie xerox dupa buletin, CI , certficat de nastere pt copii.
B19: De la toti care stau efectiv in apartament indiferent de calitate, proprietar, chirias cu flotant sau fara flotant.

Sheet 3
K1: Cons apă | M1: Apă rece | O1: Apă caldă
A2: Nr ap | B2: Locatar | C2: Nr pers | D2: Nr cam | E2: Fără CT | F2: Fără contor gaz | G2: Salubritate | H2: Ap fara CT | I2: Cota | J2: Supraf | K2: rece | L2: caldă | M2: Val | N2: Dif | O2: Val | P2: Dif | Q2: Încălz | R2: Gaz metan | S2: Energ elect | T2: Salubr | U2: Diverse pers | V2: Diverse apart | W2: Diverse cota | X2: Diverse scara | Y2: Compen | Z2: TOTAL | AA2: Ap | AD2: Cota incalz
A3: 26 | B3: Turcu | C3: 1 | D3: 3 | E3: 0 | F3: 1 | G3: 0 | H3: 1 | I3: 1.46 | J3: 0 | K3: 0 | L3: 0 | M3: =K3*TOTAL!D$6 -> 0 | N3: =G3*TOTAL!F$7 -> 0 | O3: =L3*TOTAL!F$9 -> 0 | P3: =E3*TOTAL!F$12 -> 0 | Q3: =ROUND(I3*TOTAL!B$14/100+'3'!AE3*TOTAL!B$15/100+'3'!J3*TOTAL!D$16,2) -> 39.39 | R3: =F3*TOTAL!J$20 -> 0 | S3: =C3*TOTAL!D$20 -> 0.31 | T3: =G3*TOTAL!F$15 -> 0 | U3: =ROUND(C3*TOTAL!C$26,2) -> 9.58 | V3: =TOTAL!$F$26 -> 0 | W3: =ROUND(I3*TOTAL!H$26/100,2) -> 7.09 | X3: =ROUND(TOTAL!K$9/'3'!C$13*'3'!C3,2) -> 0 | Z3: =SUM(M3:X3)-Y3 -> 56.37 | AA3: =A3 -> 26 | AD3: 1.46 | AE3: =AD3*100/TOTAL!H$3 -> 1.951089135 | AF3: =ROUND(I3*TOTAL!B$14/100,2) -> 17.15 | AG3: =AE3*TOTAL!B$15/100 -> 22.23578244 | AH3: =J3*TOTAL!D$16 -> 0 | AI3: =SUM(AF3:AH3) -> 39.38578244
A4: =A3+1 -> 27 | B4: Creţeanu | C4: 3 | D4: 3 | G4: =C4 -> 3 | I4: 1.46 | K4: 14 | L4: 0 | M4: =K4*TOTAL!D$6 -> 60.62 | N4: =G4*TOTAL!F$7 -> 1.2 | O4: =L4*TOTAL!F$9 -> 0 | P4: =E4*TOTAL!F$12 -> 0 | Q4: =ROUND(I4*TOTAL!B$14/100+'3'!AE4*TOTAL!B$15/100+'3'!J4*TOTAL!D$16,2) -> 39.39 | R4: =F4*TOTAL!J$20 -> 0 | S4: =C4*TOTAL!D$20 -> 0.93 | T4: =G4*TOTAL!F$15 -> 18.87 | U4: =ROUND(C4*TOTAL!C$26,2) -> 28.73 | V4: =TOTAL!$F$26 -> 0 | W4: =ROUND(I4*TOTAL!H$26/100,2) -> 7.09 | X4: =ROUND(TOTAL!K$9/'3'!C$13*'3'!C4,2) -> 0 | Z4: 156.83 | AA4: 27 | AD4: 1.46 | AE4: =AD4*100/TOTAL!H$3 -> 1.951089135 | AF4: =ROUND(I4*TOTAL!B$14/100,2) -> 17.15 | AG4: =AE4*TOTAL!B$15/100 -> 22.23578244 | AH4: =J4*TOTAL!D$16 -> 0 | AI4: 39.38578244
A5: 28 | B5: Zegreanu | C5: 1 | D5: 3 | E5: =C5 -> 1 | G5: 1 | H5: 1 | I5: 1.44 | J5: 59.9 | K5: 2 | L5: 3 | M5: =K5*TOTAL!D$6 -> 8.66 | N5: =G5*TOTAL!F$7 -> 0.4 | O5: =L5*TOTAL!F$9 -> 33 | P5: =E5*TOTAL!F$12 -> -1.83 | Q5: =ROUND(I5*TOTAL!B$14/100+'3'!AE5*TOTAL!B$15/100+'3'!J5*TOTAL!D$16,2) -> 285.19 | R5: =F5*TOTAL!J$20 -> 0 | S5: =C5*TOTAL!D$20 -> 0.31 | T5: =G5*TOTAL!F$15 -> 6.29 | U5: =ROUND(C5*TOTAL!C$26,2) -> 9.58 | V5: =TOTAL!$F$26 -> 0 | W5: =ROUND(I5*TOTAL!H$26/100,2) -> 7 | X5: =ROUND(TOTAL!K$9/'3'!C$13*'3'!C5,2) -> 0 | Z5: 348.6 | AA5: 28 | AD5: 1.44 | AE5: =AD5*100/TOTAL!H$3 -> 1.924361887 | AF5: =ROUND(I5*TOTAL!B$14/100,2) -> 16.92 | AG5: =AE5*TOTAL!B$15/100 -> 21.93118268 | AH5: =J5*TOTAL!D$16 -> 246.34474 | AI5: 285.1959227
A6: 29 | B6: Şerban | C6: 2 | D6: 4 | E6: =C6 -> 2 | G6: 2 | H6: 1 | I6: 1.67 | J6: 69.35 | K6: 2 | L6: 2 | M6: =K6*TOTAL!D$6 -> 8.66 | N6: =G6*TOTAL!F$7 -> 0.8 | O6: =L6*TOTAL!F$9 -> 22 | P6: =E6*TOTAL!F$12 -> -3.66 | Q6: =ROUND(I6*TOTAL!B$14/100+'3'!AE6*TOTAL!B$15/100+'3'!J6*TOTAL!D$16,2) -> 330.26 | R6: =F6*TOTAL!J$20 -> 0 | S6: =C6*TOTAL!D$20 -> 0.62 | T6: =G6*TOTAL!F$15 -> 12.58 | U6: =ROUND(C6*TOTAL!C$26,2) -> 19.15 | V6: =TOTAL!$F$26 -> 0 | W6: =ROUND(I6*TOTAL!H$26/100,2) -> 8.11 | X6: =ROUND(TOTAL!K$9/'3'!C$13*'3'!C6,2) -> 0 | Z6: 398.52 | AA6: 29 | AD6: 1.67 | AE6: =AD6*100/TOTAL!H$3 -> 2.231725244 | AF6: =ROUND(I6*TOTAL!B$14/100,2) -> 19.62 | AG6: =AE6*TOTAL!B$15/100 -> 25.43407991 | AH6: =J6*TOTAL!D$16 -> 285.20881 | AI6: 330.2628899
A7: 30 | B7: Mihăescu | C7: 2 | D7: 3 | E7: =C7 -> 2 | G7: 2 | H7: 1 | I7: 1.44 | J7: 59.88 | K7: 3 | L7: 5 | M7: =K7*TOTAL!D$6 -> 12.99 | N7: =G7*TOTAL!F$7 -> 0.8 | O7: =L7*TOTAL!F$9 -> 55 | P7: =E7*TOTAL!F$12 -> -3.66 | Q7: =ROUND(I7*TOTAL!B$14/100+'3'!AE7*TOTAL!B$15/100+'3'!J7*TOTAL!D$16,2) -> 285.11 | R7: =F7*TOTAL!J$20 -> 0 | S7: =C7*TOTAL!D$20 -> 0.62 | T7: =G7*TOTAL!F$15 -> 12.58 | U7: =ROUND(C7*TOTAL!C$26,2) -> 19.15 | V7: =TOTAL!$F$26 -> 0 | W7: =ROUND(I7*TOTAL!H$26/100,2) -> 7 | X7: =ROUND(TOTAL!K$9/'3'!C$13*'3'!C7,2) -> 0 | Z7: 389.59 | AA7: 30 | AD7: 1.44 | AE7: =AD7*100/TOTAL!H$3 -> 1.924361887 | AF7: =ROUND(I7*TOTAL!B$14/100,2) -> 16.92 | AG7: =AE7*TOTAL!B$15/100 -> 21.93118268 | AH7: =J7*TOTAL!D$16 -> 246.262488 | AI7: 285.1136707
A8: 31 | B8: Pop R | C8: 1 | D8: 4 | E8: =C8 -> 1 | G8: 1 | H8: 1 | I8: 1.65 | J8: 68.1 | K8: 0 | L8: 6 | M8: =K8*TOTAL!D$6 -> 0 | N8: =G8*TOTAL!F$7 -> 0.4 | O8: =L8*TOTAL!F$9 -> 66 | P8: =E8*TOTAL!F$12 -> -1.83 | Q8: =ROUND(I8*TOTAL!B$14/100+'3'!AE8*TOTAL!B$15/100+'3'!J8*TOTAL!D$16,2) -> 324.58 | R8: =F8*TOTAL!J$20 -> 0 | S8: =C8*TOTAL!D$20 -> 0.31 | T8: =G8*TOTAL!F$15 -> 6.29 | U8: =ROUND(C8*TOTAL!C$26,2) -> 9.58 | V8: =TOTAL!$F$26 -> 0 | W8: =ROUND(I8*TOTAL!H$26/100,2) -> 8.02 | X8: =ROUND(TOTAL!K$9/'3'!C$13*'3'!C8,2) -> 0 | Z8: 413.35 | AA8: 31 | AD8: 1.65 | AE8: =AD8*100/TOTAL!H$3 -> 2.204997995 | AF8: =ROUND(I8*TOTAL!B$14/100,2) -> 19.39 | AG8: =AE8*TOTAL!B$15/100 -> 25.12948016 | AH8: =J8*TOTAL!D$16 -> 280.06806 | AI8: 324.5875402
A9: 32 | B9: Lungu | C9: 2 | D9: 3 | G9: 2 | I9: 1.44 | K9: 6 | L9: 0 | M9: =K9*TOTAL!D$6 -> 25.98 | N9: =G9*TOTAL!F$7 -> 0.8 | O9: =L9*TOTAL!F$9 -> 0 | P9: =E9*TOTAL!F$12 -> 0 | Q9: =ROUND(I9*TOTAL!B$14/100+'3'!AE9*TOTAL!B$15/100+'3'!J9*TOTAL!D$16,2) -> 38.85 | R9: =F9*TOTAL!J$20 -> 0 | S9: =C9*TOTAL!D$20 -> 0.62 | T9: =G9*TOTAL!F$15 -> 12.58 | U9: =ROUND(C9*TOTAL!C$26,2) -> 19.15 | V9: =TOTAL!$F$26 -> 0 | W9: =ROUND(I9*TOTAL!H$26/100,2) -> 7 | X9: =ROUND(TOTAL!K$9/'3'!C$13*'3'!C9,2) -> 0 | Z9: 104.98 | AA9: 32 | AD9: 1.44 | AE9: =AD9*100/TOTAL!H$3 -> 1.924361887 | AF9: =ROUND(I9*TOTAL!B$14/100,2) -> 16.92 | AG9: =AE9*TOTAL!B$15/100 -> 21.93118268 | AH9: =J9*TOTAL!D$16 -> 0 | AI9: 38.85118268
A10: 33 | B10: Mihuţ | C10: 2 | D10: 4 | E10: =C10 -> 2 | G10: 2 | H10: 1 | I10: 1.67 | J10: 69.35 | K10: 3 | L10: 6 | M10: =K10*TOTAL!D$6 -> 12.99 | N10: =G10*TOTAL!F$7 -> 0.8 | O10: =L10*TOTAL!F$9 -> 66 | P10: =E10*TOTAL!F$12 -> -3.66 | Q10: =ROUND(I10*TOTAL!B$14/100+'3'!AE10*TOTAL!B$15/100+'3'!J10*TOTAL!D$16,2) -> 330.26 | R10: =F10*TOTAL!J$20 -> 0 | S10: =C10*TOTAL!D$20 -> 0.62 | T10: =G10*TOTAL!F$15 -> 12.58 | U10: =ROUND(C10*TOTAL!C$26,2) -> 19.15 | V10: =TOTAL!$F$26 -> 0 | W10: =ROUND(I10*TOTAL!H$26/100,2) -> 8.11 | X10: =ROUND(TOTAL!K$9/'3'!C$13*'3'!C10,2) -> 0 | Z10: 446.85 | AA10: 33 | AD10: 1.67 | AE10: =AD10*100/TOTAL!H$3 -> 2.231725244 | AF10: =ROUND(I10*TOTAL!B$14/100,2) -> 19.62 | AG10: =AE10*TOTAL!B$15/100 -> 25.43407991 | AH10: =J10*TOTAL!D$16 -> 285.20881 | AI10: 330.2628899
A11: 34 | B11: Postescu | C11: 2 | D11: 3 | G11: 2 | I11: 1.44 | K11: 8 | L11: 0 | M11: =K11*TOTAL!D$6 -> 34.64 | N11: =G11*TOTAL!F$7 -> 0.8 | O11: =L11*TOTAL!F$9 -> 0 | P11: =E11*TOTAL!F$12 -> 0 | Q11: =ROUND(I11*TOTAL!B$14/100+'3'!AE11*TOTAL!B$15/100+'3'!J11*TOTAL!D$16,2) -> 38.85 | R11: =F11*TOTAL!J$20 -> 0 | S11: =C11*TOTAL!D$20 -> 0.62 | T11: =G11*TOTAL!F$15 -> 12.58 | U11: =ROUND(C11*TOTAL!C$26,2) -> 19.15 | V11: =TOTAL!$F$26 -> 0 | W11: =ROUND(I11*TOTAL!H$26/100,2) -> 7 | X11: =ROUND(TOTAL!K$9/'3'!C$13*'3'!C11,2) -> 0 | Z11: 113.64 | AA11: 34 | AD11: 1.44 | AE11: =AD11*100/TOTAL!H$3 -> 1.924361887 | AF11: =ROUND(I11*TOTAL!B$14/100,2) -> 16.92 | AG11: =AE11*TOTAL!B$15/100 -> 21.93118268 | AH11: =J11*TOTAL!D$16 -> 0 | AI11: 38.85118268
A12: 35 | B12: Goia | C12: 2 | D12: 4 | E12: =C12 -> 2 | G12: 2 | H12: 1 | I12: 1.67 | J12: 69.35 | K12: 1 | L12: 2 | M12: =K12*TOTAL!D$6 -> 4.33 | N12: =G12*TOTAL!F$7 -> 0.8 | O12: =L12*TOTAL!F$9 -> 22 | P12: =E12*TOTAL!F$12 -> -3.66 | Q12: =ROUND(I12*TOTAL!B$14/100+'3'!AE12*TOTAL!B$15/100+'3'!J12*TOTAL!D$16,2) -> 330.26 | R12: =F12*TOTAL!J$20 -> 0 | S12: =C12*TOTAL!D$20 -> 0.62 | T12: =G12*TOTAL!F$15 -> 12.58 | U12: =ROUND(C12*TOTAL!C$26,2) -> 19.15 | V12: =TOTAL!$F$26 -> 0 | W12: =ROUND(I12*TOTAL!H$26/100,2) -> 8.11 | X12: =ROUND(TOTAL!K$9/'3'!C$13*'3'!C12,2) -> 0 | Z12: 394.19 | AA12: 35 | AD12: 1.67 | AE12: =AD12*100/TOTAL!H$3 -> 2.231725244 | AF12: =ROUND(I12*TOTAL!B$14/100,2) -> 19.62 | AG12: =AE12*TOTAL!B$15/100 -> 25.43407991 | AH12: =J12*TOTAL!D$16 -> 285.20881 | AI12: 330.2628899
C13: =SUM(C3:C12) -> 18 | D13: 34 | E13: 10 | F13: 1 | G13: 17 | H13: 7 | I13: 15.34 | J13: 395.93 | K13: 39 | L13: 24 | M13: 168.87 | N13: 6.8 | O13: 264 | P13: -18.3 | Q13: 2042.14 | R13: 0 | S13: 5.58 | T13: 106.93 | U13: 172.37 | V13: 0 | W13: 74.53 | X13: 0 | Y13: 0 | Z13: 2822.92 | AC13: =SUM(M13:X13)-Y13 -> 2822.92 | AD13: =SUM(AD3:AD12) -> 15.34 | AE13: =SUM(AE3:AE12) -> 20.49979955 | AF13: =SUM(AF3:AF12) -> 180.23 | AG13: =SUM(AG3:AG12) -> 233.6280155 | AH13: =SUM(AH3:AH12) -> 1628.301718 | AI13: =SUM(AI2:AI12) -> 2042.159734
M14: Presedinte | O14: Sef Comisie Cenzori | S14: Contabil
B17: Pentru completarea cartii de imobil locatarii sunt rugati sa aduca o copie xerox dupa buletin, CI , certficat de nastere pt copii.
B18: De la toti care stau efectiv in apartament indiferent de calitate, proprietar, chirias cu flotant sau fara flotant.

Sheet 4
K1: Cons apă | M1: Apă rece | O1: Apă caldă
A2: Nr ap | B2: Locatar | C2: Nr pers | D2: Nr cam | E2: Fără CT | F2: Fără contor gaz | G2: Salubritate | H2: Ap fara CT | I2: Cota | J2: Supraf | K2: rece | L2: caldă | M2: Val | N2: Dif | O2: Val | P2: Dif | Q2: Încălz | R2: Gaz metan | S2: Energ elect | T2: Salubr | U2: Diverse pers | V2: Diverse apart | W2: Diverse cota | X2: Diverse scara | Y2: Compen | Z2: TOTAL | AA2: Ap | AD2: Cota incalz
A3: 36 | B3: Dodu | C3: 2 | D3: 3 | E3: 2 | F3: 0 | G3: =C3 -> 2 | H3: 1 | I3: 1.44 | J3: 59.9 | K3: 3 | L3: 4 | M3: =K3*TOTAL!D$6 -> 12.99 | N3: =G3*TOTAL!F$7 -> 0.8 | O3: =L3*TOTAL!F$9 -> 44 | P3: =E3*TOTAL!F$12 -> -3.66 | Q3: =ROUND(I3*TOTAL!B$14/100+'4'!AE3*TOTAL!B$15/100+'4'!J3*TOTAL!D$16,2) -> 285.19 | R3: =F3*TOTAL!J$21 -> 0 | S3: =C3*TOTAL!D$21 -> 0.4 | T3: =G3*TOTAL!F$15 -> 12.58 | U3: =ROUND(C3*TOTAL!C$26,2) -> 19.15 | V3: =TOTAL!$F$26 -> 0 | W3: =ROUND(I3*TOTAL!H$26/100,2) -> 7 | X3: =ROUND(TOTAL!K$11/'4'!C$13*'4'!C3,2) -> 0 | Z3: =SUM(M3:X3)-Y3 -> 378.45 | AA3: =A3 -> 36 | AD3: 1.44 | AE3: =AD3*100/TOTAL!H$3 -> 1.924361887 | AF3: =ROUND(I3*TOTAL!B$14/100,2) -> 16.92 | AG3: =AE3*TOTAL!B$15/100 -> 21.93118268 | AH3: =J3*TOTAL!D$16 -> 246.34474 | AI3: =SUM(AF3:AH3) -> 285.1959227
A4: =A3+1 -> 37 | B4: Drăghici | C4: 2 | D4: 2 | F4: 0 | G4: =C4 -> 2 | I4: 1.13 | K4: 15 | L4: 0 | M4: =K4*TOTAL!D$6 -> 64.95 | N4: =G4*TOTAL!F$7 -> 0.8 | O4: =L4*TOTAL!F$9 -> 0 | P4: =E4*TOTAL!F$12 -> 0 | Q4: =ROUND(I4*TOTAL!B$14/100+'4'!AE4*TOTAL!B$15/100+'4'!J4*TOTAL!D$16,2) -> 30.49 | R4: =F4*TOTAL!J$21 -> 0 | S4: =C4*TOTAL!D$21 -> 0.4 | T4: =G4*TOTAL!F$15 -> 12.58 | U4: =ROUND(C4*TOTAL!C$26,2) -> 19.15 | V4: =TOTAL!$F$26 -> 0 | W4: =ROUND(I4*TOTAL!H$26/100,2) -> 5.49 | X4: =ROUND(TOTAL!K$11/'4'!C$13*'4'!C4,2) -> 0 | Z4: 133.86 | AA4: 37 | AD4: 1.13 | AE4: =AD4*100/TOTAL!H$3 -> 1.510089536 | AF4: =ROUND(I4*TOTAL!B$14/100,2) -> 13.28 | AG4: =AE4*TOTAL!B$15/100 -> 17.20988641 | AH4: =J4*TOTAL!D$16 -> 0 | AI4: 30.48988641
A5: 38 | B5: Néda | C5: 2 | D5: 3 | E5: =C5 -> 2 | G5: 2 | H5: 1 | I5: 1.44 | J5: 59.9 | K5: 5 | L5: 7 | M5: =K5*TOTAL!D$6 -> 21.65 | N5: =G5*TOTAL!F$7 -> 0.8 | O5: =L5*TOTAL!F$9 -> 77 | P5: =E5*TOTAL!F$12 -> -3.66 | Q5: =ROUND(I5*TOTAL!B$14/100+'4'!AE5*TOTAL!B$15/100+'4'!J5*TOTAL!D$16,2) -> 285.19 | R5: =F5*TOTAL!J$21 -> 0 | S5: =C5*TOTAL!D$21 -> 0.4 | T5: =G5*TOTAL!F$15 -> 12.58 | U5: =ROUND(C5*TOTAL!C$26,2) -> 19.15 | V5: =TOTAL!$F$26 -> 0 | W5: =ROUND(I5*TOTAL!H$26/100,2) -> 7 | X5: =ROUND(TOTAL!K$11/'4'!C$13*'4'!C5,2) -> 0 | Z5: 420.11 | AA5: 38 | AD5: 1.44 | AE5: =AD5*100/TOTAL!H$3 -> 1.924361887 | AF5: =ROUND(I5*TOTAL!B$14/100,2) -> 16.92 | AG5: =AE5*TOTAL!B$15/100 -> 21.93118268 | AH5: =J5*TOTAL!D$16 -> 246.34474 | AI5: 285.1959227
A6: 39 | B6: Vornicescu | C6: 2 | D6: 4 | G6: 2 | I6: 1.67 | K6: 10 | L6: 0 | M6: =K6*TOTAL!D$6 -> 43.3 | N6: =G6*TOTAL!F$7 -> 0.8 | O6: =L6*TOTAL!F$9 -> 0 | P6: =E6*TOTAL!F$12 -> 0 | Q6: =ROUND(I6*TOTAL!B$14/100+'4'!AE6*TOTAL!B$15/100+'4'!J6*TOTAL!D$16,2) -> 45.06 | R6: =F6*TOTAL!J$21 -> 0 | S6: =C6*TOTAL!D$21 -> 0.4 | T6: =G6*TOTAL!F$15 -> 12.58 | U6: =ROUND(C6*TOTAL!C$26,2) -> 19.15 | V6: =TOTAL!$F$26 -> 0 | W6: =ROUND(I6*TOTAL!H$26/100,2) -> 8.11 | X6: =ROUND(TOTAL!K$11/'4'!C$13*'4'!C6,2) -> 0 | Z6: 129.4 | AA6: 39 | AD6: 1.67 | AE6: =AD6*100/TOTAL!H$3 -> 2.231725244 | AF6: =ROUND(I6*TOTAL!B$14/100,2) -> 19.62 | AG6: =AE6*TOTAL!B$15/100 -> 25.43407991 | AH6: =J6*TOTAL!D$16 -> 0 | AI6: 45.05407991
A7: 40 | B7: Sparleanu | C7: 2 | D7: 3 | G7: 2 | I7: 1.44 | K7: 9 | L7: 0 | M7: =K7*TOTAL!D$6 -> 38.97 | N7: =G7*TOTAL!F$7 -> 0.8 | O7: =L7*TOTAL!F$9 -> 0 | P7: =E7*TOTAL!F$12 -> 0 | Q7: =ROUND(I7*TOTAL!B$14/100+'4'!AE7*TOTAL!B$15/100+'4'!J7*TOTAL!D$16,2) -> 16.92 | R7: =F7*TOTAL!J$21 -> 0 | S7: =C7*TOTAL!D$21 -> 0.4 | T7: =G7*TOTAL!F$15 -> 12.58 | U7: =ROUND(C7*TOTAL!C$26,2) -> 19.15 | V7: =TOTAL!$F$26 -> 0 | W7: =ROUND(I7*TOTAL!H$26/100,2) -> 7 | X7: =ROUND(TOTAL!K$11/'4'!C$13*'4'!C7,2) -> 0 | Z7: 95.82 | AA7: 40 | AE7: =AD7*100/TOTAL!H$3 -> 0 | AF7: =ROUND(I7*TOTAL!B$14/100,2) -> 16.92 | AG7: =AE7*TOTAL!B$15/100 -> 0 | AH7: =J7*TOTAL!D$16 -> 0 | AI7: 16.92
A8: 41 | B8: Raboca | C8: 3 | D8: 4 | E8: =C8 -> 3 | F8: =C8 -> 3 | G8: 3 | H8: 1 | I8: 1.65 | J8: 68.1 | K8: 4 | L8: 5 | M8: =K8*TOTAL!D$6 -> 17.32 | N8: =G8*TOTAL!F$7 -> 1.2 | O8: =L8*TOTAL!F$9 -> 55 | P8: =E8*TOTAL!F$12 -> -5.49 | Q8: =ROUND(I8*TOTAL!B$14/100+'4'!AE8*TOTAL!B$15/100+'4'!J8*TOTAL!D$16,2) -> 324.58 | R8: =F8*TOTAL!J$21 -> 42.48 | S8: =C8*TOTAL!D$21 -> 0.6 | T8: =G8*TOTAL!F$15 -> 18.87 | U8: =ROUND(C8*TOTAL!C$26,2) -> 28.73 | V8: =TOTAL!$F$26 -> 0 | W8: =ROUND(I8*TOTAL!H$26/100,2) -> 8.02 | X8: =ROUND(TOTAL!K$11/'4'!C$13*'4'!C8,2) -> 0 | Z8: 491.31 | AA8: 41 | AD8: 1.65 | AE8: =AD8*100/TOTAL!H$3 -> 2.204997995 | AF8: =ROUND(I8*TOTAL!B$14/100,2) -> 19.39 | AG8: =AE8*TOTAL!B$15/100 -> 25.12948016 | AH8: =J8*TOTAL!D$16 -> 280.06806 | AI8: 324.5875402
A9: 42 | B9: Negru | C9: 2 | D9: 3 | G9: 2 | I9: 1.44 | K9: 10 | L9: 0 | M9: =K9*TOTAL!D$6 -> 43.3 | N9: =G9*TOTAL!F$7 -> 0.8 | O9: =L9*TOTAL!F$9 -> 0 | P9: =E9*TOTAL!F$12 -> 0 | Q9: =ROUND(I9*TOTAL!B$14/100+'4'!AE9*TOTAL!B$15/100+'4'!J9*TOTAL!D$16,2) -> 16.92 | R9: =F9*TOTAL!J$21 -> 0 | S9: =C9*TOTAL!D$21 -> 0.4 | T9: =G9*TOTAL!F$15 -> 12.58 | U9: =ROUND(C9*TOTAL!C$26,2) -> 19.15 | V9: =TOTAL!$F$26 -> 0 | W9: =ROUND(I9*TOTAL!H$26/100,2) -> 7 | X9: =ROUND(TOTAL!K$11/'4'!C$13*'4'!C9,2) -> 0 | Z9: 100.15 | AA9: 42 | AE9: =AD9*100/TOTAL!H$3 -> 0 | AF9: =ROUND(I9*TOTAL!B$14/100,2) -> 16.92 | AG9: =AE9*TOTAL!B$15/100 -> 0 | AH9: =J9*TOTAL!D$16 -> 0 | AI9: 16.92
A10: 43 | B10: Roşescu | C10: 4 | D10: 4 | G10: 4 | I10: 1.67 | K10: 8 | L10: 0 | M10: =K10*TOTAL!D$6 -> 34.64 | N10: =G10*TOTAL!F$7 -> 1.6 | O10: =L10*TOTAL!F$9 -> 0 | P10: =E10*TOTAL!F$12 -> 0 | Q10: =ROUND(I10*TOTAL!B$14/100+'4'!AE10*TOTAL!B$15/100+'4'!J10*TOTAL!D$16,2) -> 45.06 | R10: =F10*TOTAL!J$21 -> 0 | S10: =C10*TOTAL!D$21 -> 0.8 | T10: =G10*TOTAL!F$15 -> 25.16 | U10: =ROUND(C10*TOTAL!C$26,2) -> 38.31 | V10: =TOTAL!$F$26 -> 0 | W10: =ROUND(I10*TOTAL!H$26/100,2) -> 8.11 | X10: =ROUND(TOTAL!K$11/'4'!C$13*'4'!C10,2) -> 0 | Z10: 153.68 | AA10: 43 | AD10: 1.67 | AE10: =AD10*100/TOTAL!H$3 -> 2.231725244 | AF10: =ROUND(I10*TOTAL!B$14/100,2) -> 19.62 | AG10: =AE10*TOTAL!B$15/100 -> 25.43407991 | AH10: =J10*TOTAL!D$16 -> 0 | AI10: 45.05407991
A11: 44 | B11: Ursu | C11: 2 | D11: 3 | G11: 2 | I11: 1.44 | K11: 4 | L11: 0 | M11: =K11*TOTAL!D$6 -> 17.32 | N11: =G11*TOTAL!F$7 -> 0.8 | O11: =L11*TOTAL!F$9 -> 0 | P11: =E11*TOTAL!F$12 -> 0 | Q11: =ROUND(I11*TOTAL!B$14/100+'4'!AE11*TOTAL!B$15/100+'4'!J11*TOTAL!D$16,2) -> 16.92 | R11: =F11*TOTAL!J$21 -> 0 | S11: =C11*TOTAL!D$21 -> 0.4 | T11: =G11*TOTAL!F$15 -> 12.58 | U11: =ROUND(C11*TOTAL!C$26,2) -> 19.15 | V11: =TOTAL!$F$26 -> 0 | W11: =ROUND(I11*TOTAL!H$26/100,2) -> 7 | X11: =ROUND(TOTAL!K$11/'4'!C$13*'4'!C11,2) -> 0 | Z11: 74.17 | AA11: 44 | AE11: =AD11*100/TOTAL!H$3 -> 0 | AF11: =ROUND(I11*TOTAL!B$14/100,2) -> 16.92 | AG11: =AE11*TOTAL!B$15/100 -> 0 | AH11: =J11*TOTAL!D$16 -> 0 | AI11: 16.92
A12: 45 | B12: Săcui | C12: 2 | D12: 4 | G12: 2 | I12: 1.67 | K12: 3 | L12: 0 | M12: =K12*TOTAL!D$6 -> 12.99 | N12: =G12*TOTAL!F$7 -> 0.8 | O12: =L12*TOTAL!F$9 -> 0 | P12: =E12*TOTAL!F$12 -> 0 | Q12: =ROUND(I12*TOTAL!B$14/100+'4'!AE12*TOTAL!B$15/100+'4'!J12*TOTAL!D$16,2) -> 45.06 | R12: =F12*TOTAL!J$21 -> 0 | S12: =C12*TOTAL!D$21 -> 0.4 | T12: =G12*TOTAL!F$15 -> 12.58 | U12: =ROUND(C12*TOTAL!C$26,2) -> 19.15 | V12: =TOTAL!$F$26 -> 0 | W12: =ROUND(I12*TOTAL!H$26/100,2) -> 8.11 | X12: =ROUND(TOTAL!K$11/'4'!C$13*'4'!C12,2) -> 0 | Z12: 99.09 | AA12: 45 | AD12: 1.67 | AE12: =AD12*100/TOTAL!H$3 -> 2.231725244 | AF12: =ROUND(I12*TOTAL!B$14/100,2) -> 19.62 | AG12: =AE12*TOTAL!B$15/100 -> 25.43407991 | AH12: =J12*TOTAL!D$16 -> 0 | AI12: 45.05407991
C13: =SUM(C3:C12) -> 23 | D13: 33 | E13: 7 | F13: 3 | G13: 23 | H13: 3 | I13: 14.99 | J13: 187.9 | K13: 71 | L13: 16 | M13: 307.43 | N13: 9.2 | O13: 176 | P13: -12.81 | Q13: 1111.39 | R13: 42.48 | S13: 4.6 | T13: 144.67 | U13: 220.24 | V13: 0 | W13: 72.84 | X13: 0 | Y13: 0 | Z13: 2076.04 | AC13: =SUM(M13:X13)-Y13 -> 2076.04 | AD13: =SUM(AD3:AD12) -> 10.67 | AE13: =SUM(AE3:AE12) -> 14.25898704 | AF13: =SUM(AF3:AF12) -> 176.13 | AG13: =SUM(AG3:AG12) -> 162.5039717 | AH13: =SUM(AH3:AH12) -> 772.75754 | AI13: =SUM(AI2:AI12) -> 1111.391512
M14: Presedinte | O14: Sef Comisie Cenzori | S14: Contabil
B17: Pentru completarea cartii de imobil locatarii sunt rugati sa aduca o copie xerox dupa buletin, CI , certficat de nastere pt copii.
B18: De la toti care stau efectiv in apartament indiferent de calitate, proprietar, chirias cu flotant sau fara flotant.

Sheet 5
K1: Cons apă | M1: Apă rece | O1: Apă caldă
A2: Nr ap | B2: Locatar | C2: Nr pers | D2: Nr cam | E2: Fără CT | F2: Fără contor gaz | G2: Salubritate | H2: Ap fara CT | I2: Cota | J2: Supraf | K2: rece | L2: caldă | M2: Val | N2: Dif | O2: Val | P2: Dif | Q2: Încălz | R2: Gaz metan | S2: Energ elect | T2: Salubr | U2: Diverse pers | V2: Diverse apart | W2: Diverse cota | X2: Diverse scara | Y2: Compen | Z2: TOTAL | AA2: Ap | AD2: Cota incalz
A3: 46 | B3: Mărinceanu | C3: 2 | D3: 3 | E3: =C3 -> 2 | F3: =C3 -> 2 | G3: =C3 -> 2 | H3: 1 | I3: 1.44 | J3: 59.83 | K3: 5 | L3: 5 | M3: =K3*TOTAL!D$6 -> 21.65 | N3: =G3*TOTAL!F$7 -> 0.8 | O3: =L3*TOTAL!F$9 -> 55 | P3: =E3*TOTAL!F$12 -> -3.66 | Q3: =ROUND(I3*TOTAL!B$14/100+'5'!AE3*TOTAL!B$15/100+'5'!J3*TOTAL!D$16,2) -> 284.91 | R3: =F3*TOTAL!J$22 -> 19.08 | S3: =C3*TOTAL!D$22 -> 1.16 | T3: =G3*TOTAL!F$15 -> 12.58 | U3: =ROUND(C3*TOTAL!C$26,2) -> 19.15 | V3: =TOTAL!$F$26 -> 0 | W3: =ROUND(I3*TOTAL!H$26/100,2) -> 7 | X3: =ROUND(TOTAL!K$13/'5'!C$13*'5'!C3,2) -> 0 | Z3: =SUM(M3:X3)-Y3 -> 417.67 | AA3: =A3 -> 46 | AD3: 1.44 | AE3: =AD3*100/TOTAL!H$3 -> 1.924361887 | AF3: =ROUND(I3*TOTAL!B$14/100,2) -> 16.92 | AG3: =AE3*TOTAL!B$15/100 -> 21.93118268 | AH3: =J3*TOTAL!D$16 -> 246.056858 | AI3: =SUM(AF3:AH3) -> 284.9080407
A4: =A3+1 -> 47 | B4: Ricean | C4: 2 | D4: 3 | G4: =C4 -> 2 | I4: 1.45 | K4: 9 | L4: 0 | M4: =K4*TOTAL!D$6 -> 38.97 | N4: =G4*TOTAL!F$7 -> 0.8 | O4: =L4*TOTAL!F$9 -> 0 | P4: =E4*TOTAL!F$12 -> 0 | Q4: =ROUND(I4*TOTAL!B$14/100+'5'!AE4*TOTAL!B$15/100+'5'!J4*TOTAL!D$16,2) -> 39.12 | R4: =F4*TOTAL!J$22 -> 0 | S4: =C4*TOTAL!D$22 -> 1.16 | T4: =G4*TOTAL!F$15 -> 12.58 | U4: =ROUND(C4*TOTAL!C$26,2) -> 19.15 | V4: =TOTAL!$F$26 -> 0 | W4: =ROUND(I4*TOTAL!H$26/100,2) -> 7.04 | X4: =ROUND(TOTAL!K$13/'5'!C$13*'5'!C4,2) -> 0 | Z4: 118.82 | AA4: 47 | AD4: 1.45 | AE4: =AD4*100/TOTAL!H$3 -> 1.937725511 | AF4: =ROUND(I4*TOTAL!B$14/100,2) -> 17.04 | AG4: =AE4*TOTAL!B$15/100 -> 22.08348256 | AH4: =J4*TOTAL!D$16 -> 0 | AI4: 39.12348256
A5: 48 | B5: Sabo | C5: 1 | D5: 3 | E5: =C5 -> 1 | F5: 3 | G5: 1 | H5: 1 | I5: 1.44 | J5: 59.88 | K5: 5 | L5: 4 | M5: =K5*TOTAL!D$6 -> 21.65 | N5: =G5*TOTAL!F$7 -> 0.4 | O5: =L5*TOTAL!F$9 -> 44 | P5: =E5*TOTAL!F$12 -> -1.83 | Q5: =ROUND(I5*TOTAL!B$14/100+'5'!AE5*TOTAL!B$15/100+'5'!J5*TOTAL!D$16,2) -> 285.11 | R5: =F5*TOTAL!J$22 -> 28.62 | S5: =C5*TOTAL!D$22 -> 0.58 | T5: =G5*TOTAL!F$15 -> 6.29 | U5: =ROUND(C5*TOTAL!C$26,2) -> 9.58 | V5: =TOTAL!$F$26 -> 0 | W5: =ROUND(I5*TOTAL!H$26/100,2) -> 7 | X5: =ROUND(TOTAL!K$13/'5'!C$13*'5'!C5,2) -> 0 | Y5: 59.03 | Z5: 342.37 | AA5: 48 | AD5: 1.44 | AE5: =AD5*100/TOTAL!H$3 -> 1.924361887 | AF5: =ROUND(I5*TOTAL!B$14/100,2) -> 16.92 | AG5: =AE5*TOTAL!B$15/100 -> 21.93118268 | AH5: =J5*TOTAL!D$16 -> 246.262488 | AI5: 285.1136707
A6: 49 | B6: Câmpan | C6: 2 | D6: 4 | E6: 2 | F6: 2 | G6: 2 | H6: 1 | I6: 1.65 | J6: 68.1 | K6: 5 | L6: 2 | M6: =K6*TOTAL!D$6 -> 21.65 | N6: =G6*TOTAL!F$7 -> 0.8 | O6: =L6*TOTAL!F$9 -> 22 | P6: =E6*TOTAL!F$12 -> -3.66 | Q6: =ROUND(I6*TOTAL!B$14/100+'5'!AE6*TOTAL!B$15/100+'5'!J6*TOTAL!D$16,2) -> 324.58 | R6: =F6*TOTAL!J$22 -> 19.08 | S6: =C6*TOTAL!D$22 -> 1.16 | T6: =G6*TOTAL!F$15 -> 12.58 | U6: =ROUND(C6*TOTAL!C$26,2) -> 19.15 | V6: =TOTAL!$F$26 -> 0 | W6: =ROUND(I6*TOTAL!H$26/100,2) -> 8.02 | X6: =ROUND(TOTAL!K$13/'5'!C$13*'5'!C6,2) -> 0 | Z6: 425.36 | AA6: 49 | AD6: 1.65 | AE6: =AD6*100/TOTAL!H$3 -> 2.204997995 | AF6: =ROUND(I6*TOTAL!B$14/100,2) -> 19.39 | AG6: =AE6*TOTAL!B$15/100 -> 25.12948016 | AH6: =J6*TOTAL!D$16 -> 280.06806 | AI6: 324.5875402
A7: 50 | B7: Tudoran | C7: 3 | D7: 3 | E7: 3 | F7: =C7 -> 3 | G7: 3 | H7: 1 | I7: 1.44 | J7: 56.67 | K7: 9 | L7: 10 | M7: =K7*TOTAL!D$6 -> 38.97 | N7: =G7*TOTAL!F$7 -> 1.2 | O7: =L7*TOTAL!F$9 -> 110 | P7: =E7*TOTAL!F$12 -> -5.49 | Q7: =ROUND(I7*TOTAL!B$14/100+'5'!AE7*TOTAL!B$15/100+'5'!J7*TOTAL!D$16,2) -> 271.91 | R7: =F7*TOTAL!J$22 -> 28.62 | S7: =C7*TOTAL!D$22 -> 1.74 | T7: =G7*TOTAL!F$15 -> 18.87 | U7: =ROUND(C7*TOTAL!C$26,2) -> 28.73 | V7: =TOTAL!$F$26 -> 0 | W7: =ROUND(I7*TOTAL!H$26/100,2) -> 7 | X7: =ROUND(TOTAL!K$13/'5'!C$13*'5'!C7,2) -> 0 | Z7: 501.55 | AA7: 50 | AD7: 1.44 | AE7: =AD7*100/TOTAL!H$3 -> 1.924361887 | AF7: =ROUND(I7*TOTAL!B$14/100,2) -> 16.92 | AG7: =AE7*TOTAL!B$15/100 -> 21.93118268 | AH7: =J7*TOTAL!D$16 -> 233.061042 | AI7: 271.9122247
A8: 51 | B8: Ciubotariu | C8: 2 | D8: 4 | E8: 2 | F8: 2 | G8: 2 | H8: 1 | I8: 1.67 | J8: 69.35 | K8: 6 | L8: 5 | M8: =K8*TOTAL!D$6 -> 25.98 | N8: =G8*TOTAL!F$7 -> 0.8 | O8: =L8*TOTAL!F$9 -> 55 | P8: =E8*TOTAL!F$12 -> -3.66 | Q8: =ROUND(I8*TOTAL!B$14/100+'5'!AE8*TOTAL!B$15/100+'5'!J8*TOTAL!D$16,2) -> 330.26 | R8: =F8*TOTAL!J$22 -> 19.08 | S8: =C8*TOTAL!D$22 -> 1.16 | T8: =G8*TOTAL!F$15 -> 12.58 | U8: =ROUND(C8*TOTAL!C$26,2) -> 19.15 | V8: =TOTAL!$F$26 -> 0 | W8: =ROUND(I8*TOTAL!H$26/100,2) -> 8.11 | X8: =ROUND(TOTAL!K$13/'5'!C$13*'5'!C8,2) -> 0 | Z8: 468.46 | AA8: 51 | AD8: 1.67 | AE8: =AD8*100/TOTAL!H$3 -> 2.231725244 | AF8: =ROUND(I8*TOTAL!B$14/100,2) -> 19.62 | AG8: =AE8*TOTAL!B$15/100 -> 25.43407991 | AH8: =J8*TOTAL!D$16 -> 285.20881 | AI8: 330.2628899
A9: 52 | B9: Cristea | C9: 2 | D9: 3 | E9: 2 | F9: 2 | G9: 2 | H9: 1 | I9: 1.44 | J9: 59.9 | K9: 0 | L9: 3 | M9: =K9*TOTAL!D$6 -> 0 | N9: =G9*TOTAL!F$7 -> 0.8 | O9: =L9*TOTAL!F$9 -> 33 | P9: =E9*TOTAL!F$12 -> -3.66 | Q9: =ROUND(I9*TOTAL!B$14/100+'5'!AE9*TOTAL!B$15/100+'5'!J9*TOTAL!D$16,2) -> 285.19 | R9: =F9*TOTAL!J$22 -> 19.08 | S9: =C9*TOTAL!D$22 -> 1.16 | T9: =G9*TOTAL!F$15 -> 12.58 | U9: =ROUND(C9*TOTAL!C$26,2) -> 19.15 | V9: =TOTAL!$F$26 -> 0 | W9: =ROUND(I9*TOTAL!H$26/100,2) -> 7 | X9: =ROUND(TOTAL!K$13/'5'!C$13*'5'!C9,2) -> 0 | Z9: 374.3 | AA9: 52 | AD9: 1.44 | AE9: =AD9*100/TOTAL!H$3 -> 1.924361887 | AF9: =ROUND(I9*TOTAL!B$14/100,2) -> 16.92 | AG9: =AE9*TOTAL!B$15/100 -> 21.93118268 | AH9: =J9*TOTAL!D$16 -> 246.34474 | AI9: 285.1959227
A10: 53 | B10: Stănescu | C10: 1 | D10: 4 | E10: 1 | F10: 1 | G10: 1 | H10: 1 | I10: 1.67 | J10: 69.35 | K10: 2 | L10: 2 | M10: =K10*TOTAL!D$6 -> 8.66 | N10: =G10*TOTAL!F$7 -> 0.4 | O10: =L10*TOTAL!F$9 -> 22 | P10: =E10*TOTAL!F$12 -> -1.83 | Q10: =ROUND(I10*TOTAL!B$14/100+'5'!AE10*TOTAL!B$15/100+'5'!J10*TOTAL!D$16,2) -> 330.26 | R10: =F10*TOTAL!J$22 -> 9.54 | S10: =C10*TOTAL!D$22 -> 0.58 | T10: =G10*TOTAL!F$15 -> 6.29 | U10: =ROUND(C10*TOTAL!C$26,2) -> 9.58 | V10: =TOTAL!$F$26 -> 0 | W10: =ROUND(I10*TOTAL!H$26/100,2) -> 8.11 | X10: =ROUND(TOTAL!K$13/'5'!C$13*'5'!C10,2) -> 0 | Z10: 393.59 | AA10: 53 | AD10: 1.67 | AE10: =AD10*100/TOTAL!H$3 -> 2.231725244 | AF10: =ROUND(I10*TOTAL!B$14/100,2) -> 19.62 | AG10: =AE10*TOTAL!B$15/100 -> 25.43407991 | AH10: =J10*TOTAL!D$16 -> 285.20881 | AI10: 330.2628899
A11: 54 | B11: Dejeu | C11: 1 | D11: 3 | E11: 1 | F11: 1 | G11: 1 | H11: 1 | I11: 1.44 | J11: 59.9 | K11: 4 | L11: 4 | M11: =K11*TOTAL!D$6 -> 17.32 | N11: =G11*TOTAL!F$7 -> 0.4 | O11: =L11*TOTAL!F$9 -> 44 | P11: =E11*TOTAL!F$12 -> -1.83 | Q11: =ROUND(I11*TOTAL!B$14/100+'5'!AE11*TOTAL!B$15/100+'5'!J11*TOTAL!D$16,2) -> 285.19 | R11: =F11*TOTAL!J$22 -> 9.54 | S11: =C11*TOTAL!D$22 -> 0.58 | T11: =G11*TOTAL!F$15 -> 6.29 | U11: =ROUND(C11*TOTAL!C$26,2) -> 9.58 | V11: =TOTAL!$F$26 -> 0 | W11: =ROUND(I11*TOTAL!H$26/100,2) -> 7 | X11: =ROUND(TOTAL!K$13/'5'!C$13*'5'!C11,2) -> 0 | Z11: 378.07 | AA11: 54 | AD11: 1.44 | AE11: =AD11*100/TOTAL!H$3 -> 1.924361887 | AF11: =ROUND(I11*TOTAL!B$14/100,2) -> 16.92 | AG11: =AE11*TOTAL!B$15/100 -> 21.93118268 | AH11: =J11*TOTAL!D$16 -> 246.34474 | AI11: 285.1959227
A12: 55 | B12: Feşnic | C12: 6 | D12: 4 | E12: 6 | F12: 6 | G12: 6 | H12: 1 | I12: 1.67 | J12: 69.35 | K12: 8 | L12: 9 | M12: =K12*TOTAL!D$6 -> 34.64 | N12: =G12*TOTAL!F$7 -> 2.4 | O12: =L12*TOTAL!F$9 -> 99 | P12: =E12*TOTAL!F$12 -> -10.98 | Q12: =ROUND(I12*TOTAL!B$14/100+'5'!AE12*TOTAL!B$15/100+'5'!J12*TOTAL!D$16,2) -> 330.26 | R12: =F12*TOTAL!J$22 -> 57.24 | S12: =C12*TOTAL!D$22 -> 3.48 | T12: =G12*TOTAL!F$15 -> 37.74 | U12: =ROUND(C12*TOTAL!C$26,2) -> 57.46 | V12: =TOTAL!$F$26 -> 0 | W12: =ROUND(I12*TOTAL!H$26/100,2) -> 8.11 | X12: =ROUND(TOTAL!K$13/'5'!C$13*'5'!C12,2) -> 0 | Z12: 619.35 | AA12: 55 | AD12: 1.67 | AE12: =AD12*100/TOTAL!H$3 -> 2.231725244 | AF12: =ROUND(I12*TOTAL!B$14/100,2) -> 19.62 | AG12: =AE12*TOTAL!B$15/100 -> 25.43407991 | AH12: =J12*TOTAL!D$16 -> 285.20881 | AI12: 330.2628899
C13: =SUM(C3:C12) -> 22 | D13: 34 | E13: 20 | F13: 22 | G13: 22 | H13: 9 | I13: 15.31 | J13: 572.33 | K13: 53 | L13: 44 | M13: 229.49 | N13: 8.8 | O13: 484 | P13: -36.6 | Q13: 2766.79 | R13: 209.88 | S13: 12.76 | T13: 138.38 | U13: 210.68 | V13: 0 | W13: 74.39 | X13: 0 | Y13: 59.03 | Z13: 4039.54 | AC13: =SUM(M13:X13)-Y13 -> 4039.54 | AD13: =SUM(AD3:AD12) -> 15.31 | AE13: =SUM(AE3:AE12) -> 20.45970867 | AF13: =SUM(AF3:AF12) -> 179.89 | AG13: =SUM(AG3:AG12) -> 233.1711159 | AH13: =SUM(AH3:AH12) -> 2353.764358 | AI13: =SUM(AI2:AI12) -> 2766.825474
M14: Presedinte | O14: Sef Comisie Cenzori | S14: Contabil
B17: Pentru completarea cartii de imobil locatarii sunt rugati sa aduca o copie xerox dupa buletin, CI , certficat de nastere pt copii.
B18: De la toti care stau efectiv in apartament indiferent de calitate, proprietar, chirias cu flotant sau fara flotant.

Sheet 6
K1: Cons apă | M1: Apă rece | O1: Apă caldă
A2: Nr ap | B2: Locatar | C2: Nr pers | D2: Nr cam | E2: Fără CT | F2: Fără contor gaz | G2: Salubritate | H2: Ap fara CT | I2: Cota | J2: Supraf | K2: rece | L2: caldă | M2: Val | N2: Dif | O2: Val | P2: Dif | Q2: Încălz | R2: Gaz metan | S2: Energ elect | T2: Salubr | U2: Diverse pers | V2: Diverse apart | W2: Diverse cota | X2: Diverse scara | Y2: Compen | Z2: TOTAL | AA2: Ap | AD2: Cota incalz
A3: 56 | B3: Fonoage | C3: 1 | D3: 2 | E3: 0 | F3: 1 | G3: 0 | H3: 1 | I3: 1.13 | J3: 46.53 | K3: 0 | L3: 0 | M3: =K3*TOTAL!D$6 -> 0 | N3: =G3*TOTAL!F$7 -> 0 | O3: =L3*TOTAL!F$9 -> 0 | P3: =E3*TOTAL!F$12 -> 0 | Q3: =ROUND(I3*TOTAL!B$14/100+'6'!AE3*TOTAL!B$15/100+'6'!J3*TOTAL!D$16,2) -> 221.85 | R3: =F3*TOTAL!J$23 -> 52.45 | S3: =C3*TOTAL!D$23 -> 0.24 | T3: =G3*TOTAL!F$15 -> 0 | U3: =ROUND(C3*TOTAL!C$26,2) -> 9.58 | V3: =TOTAL!$F$26 -> 0 | W3: =ROUND(I3*TOTAL!H$26/100,2) -> 5.49 | X3: =ROUND(TOTAL!K$15/'6'!C$18*'6'!C3,2) -> 0 | Z3: =SUM(M3:X3)-Y3 -> 289.61 | AA3: =A3 -> 56 | AD3: 1.13 | AE3: =AD3*100/TOTAL!H$3 -> 1.510089536 | AF3: =ROUND(I3*TOTAL!B$14/100,2) -> 13.28 | AG3: =AE3*TOTAL!B$15/100 -> 17.20988641 | AH3: =J3*TOTAL!D$16 -> 191.359278 | AI3: =SUM(AF3:AH3) -> 221.8491644
A4: =A3+1 -> 57 | B4: Baras A | C4: 1 | D4: 2 | E4: =C4 -> 1 | F4: =C4 -> 1 | G4: =C4 -> 1 | H4: 1 | I4: 1.13 | J4: 46.73 | K4: 1 | L4: 1 | M4: =K4*TOTAL!D$6 -> 4.33 | N4: =G4*TOTAL!F$7 -> 0.4 | O4: =L4*TOTAL!F$9 -> 11 | P4: =E4*TOTAL!F$12 -> -1.83 | Q4: =ROUND(I4*TOTAL!B$14/100+'6'!AE4*TOTAL!B$15/100+'6'!J4*TOTAL!D$16,2) -> 222.67 | R4: =F4*TOTAL!J$23 -> 52.45 | S4: =C4*TOTAL!D$23 -> 0.24 | T4: =G4*TOTAL!F$15 -> 6.29 | U4: =ROUND(C4*TOTAL!C$26,2) -> 9.58 | V4: =TOTAL!$F$26 -> 0 | W4: =ROUND(I4*TOTAL!H$26/100,2) -> 5.49 | X4: =ROUND(TOTAL!K$15/'6'!C$18*'6'!C4,2) -> 0 | Z4: 310.62 | AA4: 57 | AD4: 1.13 | AE4: =AD4*100/TOTAL!H$3 -> 1.510089536 | AF4: =ROUND(I4*TOTAL!B$14/100,2) -> 13.28 | AG4: =AE4*TOTAL!B$15/100 -> 17.20988641 | AH4: =J4*TOTAL!D$16 -> 192.181798 | AI4: 222.6716844
A5: 58 | B5: Fărcaş N | C5: 1 | D5: 2 | G5: 1 | I5: 1.18 | K5: 5 | L5: 0 | M5: =K5*TOTAL!D$6 -> 21.65 | N5: =G5*TOTAL!F$7 -> 0.4 | O5: =L5*TOTAL!F$9 -> 0 | P5: =E5*TOTAL!F$12 -> 0 | Q5: =ROUND(I5*TOTAL!B$14/100+'6'!AE5*TOTAL!B$15/100+'6'!J5*TOTAL!D$16,2) -> 13.86 | R5: =F5*TOTAL!J$23 -> 0 | S5: =C5*TOTAL!D$23 -> 0.24 | T5: =G5*TOTAL!F$15 -> 6.29 | U5: =ROUND(C5*TOTAL!C$26,2) -> 9.58 | V5: =TOTAL!$F$26 -> 0 | W5: =ROUND(I5*TOTAL!H$26/100,2) -> 5.73 | X5: =ROUND(TOTAL!K$15/'6'!C$18*'6'!C5,2) -> 0 | Z5: 57.75 | AA5: 58 | AE5: =AD5*100/TOTAL!H$3 -> 0 | AF5: =ROUND(I5*TOTAL!B$14/100,2) -> 13.86 | AG5: =AE5*TOTAL!B$15/100 -> 0 | AH5: =J5*TOTAL!D$16 -> 0 | AI5: 13.86
A6: 59 | B6: Bagaméri | C6: 1 | D6: 2 | E6: =C6 -> 1 | F6: =C6 -> 1 | G6: 1 | H6: 1 | I6: 1.13 | J6: 46.93 | K6: 1 | L6: 1 | M6: =K6*TOTAL!D$6 -> 4.33 | N6: =G6*TOTAL!F$7 -> 0.4 | O6: =L6*TOTAL!F$9 -> 11 | P6: =E6*TOTAL!F$12 -> -1.83 | Q6: =ROUND(I6*TOTAL!B$14/100+'6'!AE6*TOTAL!B$15/100+'6'!J6*TOTAL!D$16,2) -> 223.49 | R6: =F6*TOTAL!J$23 -> 52.45 | S6: =C6*TOTAL!D$23 -> 0.24 | T6: =G6*TOTAL!F$15 -> 6.29 | U6: =ROUND(C6*TOTAL!C$26,2) -> 9.58 | V6: =TOTAL!$F$26 -> 0 | W6: =ROUND(I6*TOTAL!H$26/100,2) -> 5.49 | X6: =ROUND(TOTAL!K$15/'6'!C$18*'6'!C6,2) -> 0 | Z6: 311.44 | AA6: 59 | AD6: 1.13 | AE6: =AD6*100/TOTAL!H$3 -> 1.510089536 | AF6: =ROUND(I6*TOTAL!B$14/100,2) -> 13.28 | AG6: =AE6*TOTAL!B$15/100 -> 17.20988641 | AH6: =J6*TOTAL!D$16 -> 193.004318 | AI6: 223.4942044
A7: 60 | B7: Cristovici | C7: 1 | D7: 3 | G7: 1 | I7: 1.46 | K7: 6 | L7: 0 | M7: =K7*TOTAL!D$6 -> 25.98 | N7: =G7*TOTAL!F$7 -> 0.4 | O7: =L7*TOTAL!F$9 -> 0 | P7: =E7*TOTAL!F$12 -> 0 | Q7: =ROUND(I7*TOTAL!B$14/100+'6'!AE7*TOTAL!B$15/100+'6'!J7*TOTAL!D$16,2) -> 17.15 | R7: =F7*TOTAL!J$23 -> 0 | S7: =C7*TOTAL!D$23 -> 0.24 | T7: =G7*TOTAL!F$15 -> 6.29 | U7: =ROUND(C7*TOTAL!C$26,2) -> 9.58 | V7: =TOTAL!$F$26 -> 0 | W7: =ROUND(I7*TOTAL!H$26/100,2) -> 7.09 | X7: =ROUND(TOTAL!K$15/'6'!C$18*'6'!C7,2) -> 0 | Z7: 66.73 | AA7: 60 | AE7: =AD7*100/TOTAL!H$3 -> 0 | AF7: =ROUND(I7*TOTAL!B$14/100,2) -> 17.15 | AG7: =AE7*TOTAL!B$15/100 -> 0 | AH7: =J7*TOTAL!D$16 -> 0 | AI7: 17.15
A8: 61 | B8: Ureche | C8: 3 | D8: 3 | G8: 3 | I8: 1.44 | K8: 10 | L8: 0 | M8: =K8*TOTAL!D$6 -> 43.3 | N8: =G8*TOTAL!F$7 -> 1.2 | O8: =L8*TOTAL!F$9 -> 0 | P8: =E8*TOTAL!F$12 -> 0 | Q8: =ROUND(I8*TOTAL!B$14/100+'6'!AE8*TOTAL!B$15/100+'6'!J8*TOTAL!D$16,2) -> 38.85 | R8: =F8*TOTAL!J$23 -> 0 | S8: =C8*TOTAL!D$23 -> 0.72 | T8: =G8*TOTAL!F$15 -> 18.87 | U8: =ROUND(C8*TOTAL!C$26,2) -> 28.73 | V8: =TOTAL!$F$26 -> 0 | W8: =ROUND(I8*TOTAL!H$26/100,2) -> 7 | X8: =ROUND(TOTAL!K$15/'6'!C$18*'6'!C8,2) -> 0 | Z8: 138.67 | AA8: 61 | AD8: 1.44 | AE8: =AD8*100/TOTAL!H$3 -> 1.924361887 | AF8: =ROUND(I8*TOTAL!B$14/100,2) -> 16.92 | AG8: =AE8*TOTAL!B$15/100 -> 21.93118268 | AH8: =J8*TOTAL!D$16 -> 0 | AI8: 38.85118268
A9: 62 | B9: Fabian | C9: 2 | D9: 2 | G9: 2 | I9: 1.13 | K9: 9 | L9: 0 | M9: =K9*TOTAL!D$6 -> 38.97 | N9: =G9*TOTAL!F$7 -> 0.8 | O9: =L9*TOTAL!F$9 -> 0 | P9: =E9*TOTAL!F$12 -> 0 | Q9: =ROUND(I9*TOTAL!B$14/100+'6'!AE9*TOTAL!B$15/100+'6'!J9*TOTAL!D$16,2) -> 30.49 | R9: =F9*TOTAL!J$23 -> 0 | S9: =C9*TOTAL!D$23 -> 0.48 | T9: =G9*TOTAL!F$15 -> 12.58 | U9: =ROUND(C9*TOTAL!C$26,2) -> 19.15 | V9: =TOTAL!$F$26 -> 0 | W9: =ROUND(I9*TOTAL!H$26/100,2) -> 5.49 | X9: =ROUND(TOTAL!K$15/'6'!C$18*'6'!C9,2) -> 0 | Z9: 107.96 | AA9: 62 | AD9: 1.13 | AE9: =AD9*100/TOTAL!H$3 -> 1.510089536 | AF9: =ROUND(I9*TOTAL!B$14/100,2) -> 13.28 | AG9: =AE9*TOTAL!B$15/100 -> 17.20988641 | AH9: =J9*TOTAL!D$16 -> 0 | AI9: 30.48988641
A10: 63 | B10: Fărăgău | C10: 2 | D10: 3 | G10: 2 | I10: 1.46 | K10: 11 | L10: 0 | M10: =K10*TOTAL!D$6 -> 47.63 | N10: =G10*TOTAL!F$7 -> 0.8 | O10: =L10*TOTAL!F$9 -> 0 | P10: =E10*TOTAL!F$12 -> 0 | Q10: =ROUND(I10*TOTAL!B$14/100+'6'!AE10*TOTAL!B$15/100+'6'!J10*TOTAL!D$16,2) -> 17.15 | R10: =F10*TOTAL!J$23 -> 0 | S10: =C10*TOTAL!D$23 -> 0.48 | T10: =G10*TOTAL!F$15 -> 12.58 | U10: =ROUND(C10*TOTAL!C$26,2) -> 19.15 | V10: =TOTAL!$F$26 -> 0 | W10: =ROUND(I10*TOTAL!H$26/100,2) -> 7.09 | X10: =ROUND(TOTAL!K$15/'6'!C$18*'6'!C10,2) -> 0 | Z10: 104.88 | AA10: 63 | AE10: =AD10*100/TOTAL!H$3 -> 0 | AF10: =ROUND(I10*TOTAL!B$14/100,2) -> 17.15 | AG10: =AE10*TOTAL!B$15/100 -> 0 | AH10: =J10*TOTAL!D$16 -> 0 | AI10: 17.15
A11: 64 | B11: Rus | C11: 1 | D11: 3 | E11: =C11 -> 1 | F11: =C11 -> 1 | G11: 1 | H11: 1 | I11: 1.44 | J11: 59.75 | K11: 5 | L11: 6 | M11: =K11*TOTAL!D$6 -> 21.65 | N11: =G11*TOTAL!F$7 -> 0.4 | O11: =L11*TOTAL!F$9 -> 66 | P11: =E11*TOTAL!F$12 -> -1.83 | Q11: =ROUND(I11*TOTAL!B$14/100+'6'!AE11*TOTAL!B$15/100+'6'!J11*TOTAL!D$16,2) -> 284.58 | R11: =F11*TOTAL!J$23 -> 52.45 | S11: =C11*TOTAL!D$23 -> 0.24 | T11: =G11*TOTAL!F$15 -> 6.29 | U11: =ROUND(C11*TOTAL!C$26,2) -> 9.58 | V11: =TOTAL!$F$26 -> 0 | W11: =ROUND(I11*TOTAL!H$26/100,2) -> 7 | X11: =ROUND(TOTAL!K$15/'6'!C$18*'6'!C11,2) -> 0 | Z11: 446.36 | AA11: 64 | AD11: 1.44 | AE11: =AD11*100/TOTAL!H$3 -> 1.924361887 | AF11: =ROUND(I11*TOTAL!B$14/100,2) -> 16.92 | AG11: =AE11*TOTAL!B$15/100 -> 21.93118268 | AH11: =J11*TOTAL!D$16 -> 245.72785 | AI11: 284.5790327
A12: 65 | B12: Pop | C12: 4 | D12: 2 | F12: 0 | G12: =C12 -> 4 | I12: 1.13 | K12: 14 | L12: 0 | M12: =K12*TOTAL!D$6 -> 60.62 | N12: =G12*TOTAL!F$7 -> 1.6 | O12: =L12*TOTAL!F$9 -> 0 | P12: =E12*TOTAL!F$12 -> 0 | Q12: =ROUND(I12*TOTAL!B$14/100+'6'!AE12*TOTAL!B$15/100+'6'!J12*TOTAL!D$16,2) -> 30.49 | R12: =F12*TOTAL!J$23 -> 0 | S12: =C12*TOTAL!D$23 -> 0.96 | T12: =G12*TOTAL!F$15 -> 25.16 | U12: =ROUND(C12*TOTAL!C$26,2) -> 38.31 | V12: =TOTAL!$F$26 -> 0 | W12: =ROUND(I12*TOTAL!H$26/100,2) -> 5.49 | X12: =ROUND(TOTAL!K$15/'6'!C$18*'6'!C12,2) -> 0 | Z12: 162.63 | AA12: 65 | AD12: 1.13 | AE12: =AD12*100/TOTAL!H$3 -> 1.510089536 | AF12: =ROUND(I12*TOTAL!B$14/100,2) -> 13.28 | AG12: =AE12*TOTAL!B$15/100 -> 17.20988641 | AH12: =J12*TOTAL!D$16 -> 0 | AI12: 30.48988641
A13: 66 | B13: Bejan | C13: 2 | D13: 3 | F13: 0 | G13: 2 | I13: 1.46 | K13: 10 | L13: 0 | M13: =K13*TOTAL!D$6 -> 43.3 | N13: =G13*TOTAL!F$7 -> 0.8 | O13: =L13*TOTAL!F$9 -> 0 | P13: =E13*TOTAL!F$12 -> 0 | Q13: =ROUND(I13*TOTAL!B$14/100+'6'!AE13*TOTAL!B$15/100+'6'!J13*TOTAL!D$16,2) -> 17.15 | R13: =F13*TOTAL!J$23 -> 0 | S13: =C13*TOTAL!D$23 -> 0.48 | T13: =G13*TOTAL!F$15 -> 12.58 | U13: =ROUND(C13*TOTAL!C$26,2) -> 19.15 | V13: =TOTAL!$F$26 -> 0 | W13: =ROUND(I13*TOTAL!H$26/100,2) -> 7.09 | X13: =ROUND(TOTAL!K$15/'6'!C$18*'6'!C13,2) -> 0 | Z13: 100.55 | AA13: 66 | AE13: =AD13*100/TOTAL!H$3 -> 0 | AF13: =ROUND(I13*TOTAL!B$14/100,2) -> 17.15 | AG13: =AE13*TOTAL!B$15/100 -> 0 | AH13: =J13*TOTAL!D$16 -> 0 | AI13: 17.15
A14: 67 | B14: Moga | C14: 1 | D14: 3 | F14: 0 | G14: 0 | I14: 1.44 | K14: 0 | L14: 0 | M14: =K14*TOTAL!D$6 -> 0 | N14: =G14*TOTAL!F$7 -> 0 | O14: =L14*TOTAL!F$9 -> 0 | P14: =E14*TOTAL!F$12 -> 0 | Q14: =ROUND(I14*TOTAL!B$14/100+'6'!AE14*TOTAL!B$15/100+'6'!J14*TOTAL!D$16,2) -> 38.85 | R14: =F14*TOTAL!J$23 -> 0 | S14: =C14*TOTAL!D$23 -> 0.24 | T14: =G14*TOTAL!F$15 -> 0 | U14: =ROUND(C14*TOTAL!C$26,2) -> 9.58 | V14: =TOTAL!$F$26 -> 0 | W14: =ROUND(I14*TOTAL!H$26/100,2) -> 7 | X14: =ROUND(TOTAL!K$15/'6'!C$18*'6'!C14,2) -> 0 | Z14: 55.67 | AA14: 67 | AD14: 1.44 | AE14: =AD14*100/TOTAL!H$3 -> 1.924361887 | AF14: =ROUND(I14*TOTAL!B$14/100,2) -> 16.92 | AG14: =AE14*TOTAL!B$15/100 -> 21.93118268 | AH14: =J14*TOTAL!D$16 -> 0 | AI14: 38.85118268
A15: 68 | B15: Legian | C15: 3 | D15: 2 | E15: =C15 -> 3 | F15: 0 | G15: 3 | H15: 1 | I15: 1.13 | J15: 46.93 | K15: 8 | L15: 13 | M15: =K15*TOTAL!D$6 -> 34.64 | N15: =G15*TOTAL!F$7 -> 1.2 | O15: =L15*TOTAL!F$9 -> 143 | P15: =E15*TOTAL!F$12 -> -5.49 | Q15: =ROUND(I15*TOTAL!B$14/100+'6'!AE15*TOTAL!B$15/100+'6'!J15*TOTAL!D$16,2) -> 223.49 | R15: =F15*TOTAL!J$23 -> 0 | S15: =C15*TOTAL!D$23 -> 0.72 | T15: =G15*TOTAL!F$15 -> 18.87 | U15: =ROUND(C15*TOTAL!C$26,2) -> 28.73 | V15: =TOTAL!$F$26 -> 0 | W15: =ROUND(I15*TOTAL!H$26/100,2) -> 5.49 | X15: =ROUND(TOTAL!K$15/'6'!C$18*'6'!C15,2) -> 0 | Z15: 450.65 | AA15: 68 | AD15: 1.13 | AE15: =AD15*100/TOTAL!H$3 -> 1.510089536 | AF15: =ROUND(I15*TOTAL!B$14/100,2) -> 13.28 | AG15: =AE15*TOTAL!B$15/100 -> 17.20988641 | AH15: =J15*TOTAL!D$16 -> 193.004318 | AI15: 223.4942044
A16: 69 | B16: Mocanu | C16: 4 | D16: 3 | F16: 0 | G16: 4 | I16: 1.46 | K16: 14 | L16: 0 | M16: =K16*TOTAL!D$6 -> 60.62 | N16: =G16*TOTAL!F$7 -> 1.6 | O16: =L16*TOTAL!F$9 -> 0 | P16: =E16*TOTAL!F$12 -> 0 | Q16: =ROUND(I16*TOTAL!B$14/100+'6'!AE16*TOTAL!B$15/100+'6'!J16*TOTAL!D$16,2) -> 17.15 | R16: =F16*TOTAL!J$23 -> 0 | S16: =C16*TOTAL!D$23 -> 0.96 | T16: =G16*TOTAL!F$15 -> 25.16 | U16: =ROUND(C16*TOTAL!C$26,2) -> 38.31 | V16: =TOTAL!$F$26 -> 0 | W16: =ROUND(I16*TOTAL!H$26/100,2) -> 7.09 | X16: =ROUND(TOTAL!K$15/'6'!C$18*'6'!C16,2) -> 0 | Z16: 150.89 | AA16: 69 | AE16: =AD16*100/TOTAL!H$3 -> 0 | AF16: =ROUND(I16*TOTAL!B$14/100,2) -> 17.15 | AG16: =AE16*TOTAL!B$15/100 -> 0 | AH16: =J16*TOTAL!D$16 -> 0 | AI16: 17.15
A17: 70 | B17: Pop C. | C17: 4 | D17: 3 | F17: 0 | G17: 4 | I17: 1.44 | K17: 12 | L17: 0 | M17: =K17*TOTAL!D$6 -> 51.96 | N17: =G17*TOTAL!F$7 -> 1.6 | O17: =L17*TOTAL!F$9 -> 0 | P17: =E17*TOTAL!F$12 -> 0 | Q17: =ROUND(I17*TOTAL!B$14/100+'6'!AE17*TOTAL!B$15/100+'6'!J17*TOTAL!D$16,2) -> 38.85 | R17: =F17*TOTAL!J$23 -> 0 | S17: =C17*TOTAL!D$23 -> 0.96 | T17: =G17*TOTAL!F$15 -> 25.16 | U17: =ROUND(C17*TOTAL!C$26,2) -> 38.31 | V17: =TOTAL!$F$26 -> 0 | W17: =ROUND(I17*TOTAL!H$26/100,2) -> 7 | X17: =ROUND(TOTAL!K$15/'6'!C$18*'6'!C17,2) -> 0 | Z17: 163.84 | AA17: 70 | AD17: 1.44 | AE17: =AD17*100/TOTAL!H$3 -> 1.924361887 | AF17: =ROUND(I17*TOTAL!B$14/100,2) -> 16.92 | AG17: =AE17*TOTAL!B$15/100 -> 21.93118268 | AH17: =J17*TOTAL!D$16 -> 0 | AI17: 38.85118268
C18: =SUM(C3:C17) -> 31 | D18: 38 | E18: 6 | F18: 4 | G18: 29 | H18: 5 | I18: 19.56 | J18: 246.87 | K18: 106 | L18: 21 | M18: 458.98 | N18: 11.6 | O18: 231 | P18: -10.98 | Q18: 1436.07 | R18: 209.8 | S18: 7.44 | T18: 182.41 | U18: 296.9 | V18: 0 | W18: 95.03 | X18: 0 | Y18: 0 | Z18: 2918.25 | AC18: =SUM(M18:X18)-Y18 -> 2918.25 | AD18: =SUM(AD3:AD17) -> 12.54 | AE18: 16.75798477 | AF18: 229.82 | AG18: 190.9840492 | AH18: 1015.277562 | AI18: 1436.081611
M19: Presedinte | O19: Sef Comisie Cenzori | S19: Contabil
Y20: 0.5
B22: Pentru completarea cartii de imobil locatarii sunt rugati sa aduca o copie xerox dupa buletin, CI , certficat de nastere pt copii.
B23: De la toti care stau efectiv in apartament indiferent de calitate, proprietar, chirias cu flotant sau fara flotant.

Sheet TOTAL
A2: Nr persoane | B2: ='1'!C18+'2'!C14+'3'!C13+'4'!C13+'5'!C13+'6'!C18 -> 142 | C2: pers fara CT | D2: ='1'!E18+'2'!E14+'3'!E13+'5'!E13+'6'!E18+'4'!E13 -> 54 | E2: Ap fara CT | F2: ='1'!H18+'2'!H14+'3'!H13+'4'!H13+'5'!H13+'6'!H18 -> 30 | G2: Supr total | H2: ='1'!J18+'2'!J14+'3'!J13+'5'!J13+'6'!J18+'4'!J13 -> 1693.82 | Y2: 6.56
A3: Prezente | B3: ='1'!G18+'2'!G14+'3'!G13+'4'!G13+'5'!G13+'6'!G18 -> 136 | C3: Nr apart | D3: 71 | E3: Nr camere | F3: ='1'!D18+'2'!D14+'3'!D13+'4'!D13+'5'!D13+'6'!D18 -> 215 | G3: Sum cote | H3: ='1'!AD18+'2'!AD14+'3'!AD13+'4'!AD13+'5'!AD13+'6'!AD18 -> 74.83 | J3: ='1'!AE18+'2'!AE14+'3'!AE13+'4'!AE13+'5'!AE13+'6'!AE18 -> 100 | Y3: 6.26
A4: Apa rece | I4: Chelt pe scari | Y4: 6.36
A5: Consum contor bloc | B5: =A38 -> 425 | C5: Valoare fact | D5: =E38 -> 1838.21 | E5: Incasat | F5: ='1'!M18+'2'!M14+'3'!M13+'4'!M13+'5'!M13+'6'!M18 -> 1783.96 | G5: Dif luna anter | H5: 0 | I5: 1 | K5: 0 | Y5: 8.02
A6: Consum locatari | B6: ='1'!K18+'2'!K14+'3'!K13+'4'!K13+'5'!K13+'6'!K18 -> 412 | C6: Pret | D6: =ROUND(D5/B5,2) -> 4.33 | H6: =F5+H7 -> 1838.36 | K6: ='1'!X18 -> 0 | Y6: 8.05
A7: Diferenta contoare | B7: =B5-B6 -> 13 | C7: Valoare | D7: =D5-F5+H5 -> 54.25 | E7: Pe pers. | F7: =ROUND(D7/B3,2) -> 0.4 | G7: Incasat | H7: ='1'!N18+'2'!N14+'3'!N13+'4'!N13+'5'!N13+'6'!N18 -> 54.4 | I7: 2 | K7: 0 | Y7: 6.22
A8: Apa calda | K8: ='2'!X14 -> 0 | Y8: 8.02
A9: Consum contor bloc | B9: =A39 -> 125 | C9: Valoare apa | D9: =E39 -> 540.65 | E9: Pret unitar | F9: =ROUND(D11/B9,2) -> 11 | G9: Dif luna anter | H9: 0 | I9: 3 | K9: 0 | Y9: 8.05
A10: Consum locatari | B10: ='1'!L18+'2'!L14+'3'!L13+'4'!L13+'5'!L13+'6'!L18 -> 134 | C10: Preparare | D10: =H40 -> 834.41 | K10: ='3'!X13 -> 0 | Y10: 6.22
C11: TOTAL | D11: =D9+D10 -> 1375.06 | E11: Incasat | F11: ='1'!O18+'2'!O14+'3'!O13+'4'!O13+'5'!O13+'6'!O18 -> 1474 | H11: =F11+H12 -> 1375.18 | I11: 4 | K11: 0 | Y11: 8.02
A12: Diferenta contoare | B12: =B9-B10 -> -9 | C12: Valoare | D12: =D11-F11+H9 -> -98.94 | E12: Pe pers. | F12: =ROUND(D12/D2,2) -> -1.83 | G12: Incasat | H12: ='1'!P18+'2'!P14+'3'!P13+'4'!P13+'5'!P13+'6'!P18 -> -98.82 | K12: ='4'!X13 -> 0 | Y12: 8.05
A13: Incalzire | B13: =J40 -> 9280.64 | C13: Incasat | D13: ='1'!Q18+'2'!Q14+'3'!Q13+'4'!Q13+'5'!Q13+'6'!Q18 -> 9280.67 | E13: Salubritate | I13: 5 | K13: 0 | Y13: 6.22
A14: Parti comune | B14: =ROUND(B13*C14/100,2) -> 1174.93 | C14: 12.66 | E14: Facturat | F14: 837.45 | G14: Dif luna anter | H14: 18.07 | K14: ='5'!X13 -> 0 | Y14: 8.02
A15: Coloane | B15: =ROUND(B13*C15/100,2) -> 1139.66 | C15: 12.28 | D15: Pret mp | E15: Pe pers | F15: =ROUND((F14+H14)/B3,2) -> 6.29 | I15: 6 | K15: 0 | Y15: 7.91
A16: Apartamente | B16: =ROUND(B13*C16/100,2) -> 6966.05 | C16: 75.06 | D16: =ROUND(B16/H2,4) -> 4.1126 | E16: Incasat | F16: ='1'!T18+'2'!T14+'3'!T13+'4'!T13+'5'!T13+'6'!T18 -> 855.44 | K16: ='6'!X18 -> 0 | Y16: 6.26
A17: Energie electrica | B17: Valoare | C17: Dif | D17: Pe pers | E17: Incasat | F17: GAZ | G17: Valoare | H17: Dif | J17: Pe pers | K17: Incasat
A18: scara 1 | B18: 14.64 | C18: 0 | D18: =ROUND((B18/3*2+C18+B$18/3/(B$2)*'1'!C18)/'1'!C18,2) -> 0.46 | E18: ='1'!S18 -> 10.58 | F18: scara 1 | G18: 172.4 | J18: =ROUND((G18+H18)/'1'!F18,2) -> 19.16 | K18: ='1'!R18 -> 172.44
A19: scara 2 | B19: 13 | C19: 0 | D19: =ROUND((B19+C19+B$18/3/(B$2)*'2'!C14)/'2'!C14,2) -> 0.55 | E19: ='2'!S14 -> 13.75 | F19: scara 2 | J19: 0 | K19: ='2'!R14 -> 0
A20: scara 3 | B20: 4.88 | C20: 0 | D20: =ROUND((B20+C20+B$18/3/(B$2)*'3'!C13)/'3'!C13,2) -> 0.31 | E20: ='3'!S13 -> 5.58 | F20: scara 3 | J20: =ROUND((G20+H20)/'3'!F13,2) -> 0 | K20: ='3'!R13 -> 0
A21: scara 4 | B21: 3.78 | C21: 0 | D21: =ROUND((B21+C21+B$18/3/(B$2)*'4'!C13)/'4'!C13,2) -> 0.2 | E21: ='4'!S13 -> 4.6 | F21: scara 4 | G21: 42.48 | J21: =ROUND((G21+H21)/'4'!F13,2) -> 14.16 | K21: ='4'!R13 -> 42.48
A22: scara 5 | B22: 11.93 | C22: 0 | D22: =ROUND((B22+C22+B$18/3/(B$2)*'5'!C13)/'5'!C13,2) -> 0.58 | E22: ='5'!S13 -> 12.76 | F22: scara 5 | G22: 209.92 | J22: =ROUND((G22+H22)/'5'!F13,2) -> 9.54 | K22: ='5'!R13 -> 209.88
A23: scara 6 | B23: 6.51 | C23: 0 | D23: =ROUND((B23+C23+B$18/3/(B$2)*'6'!C18)/'6'!C18,2) -> 0.24 | E23: ='6'!S18 -> 7.44 | F23: scara 6 | G23: 209.8 | J23: =ROUND((G23+H23)/'6'!F18,2) -> 52.45 | K23: ='6'!R18 -> 209.8
B24: =SUM(B18:B23) -> 54.74 | C24: =SUM(C18:C23) -> 0 | E24: =SUM(E18:E23) -> 54.71 | G24: =SUM(G18:G23) -> 634.6 | H24: =SUM(H18:H23) -> 0 | K24: =SUM(K18:K23) -> 634.6 | O24: =D5+D11+B13+F14+B24+G24+H24+B26+H26 -> 15866.54
A25: Cheltuieli pe persoana | C25: Pe pers | D25: Cheltuieli pe apart | F25: pe apart | G25: Cheltuieli pe cota
A26: TOTAL | B26: =SUM(B27:B33) -> 1360 | C26: =B26/B2 -> 9.577464789 | D26: TOTAL | E26: =SUM(E27:E33) -> 0 | F26: =ROUND(E26/D3,2) -> 0 | G26: TOTAL | H26: =SUM(H27:H34) -> 485.84 | J26: Incasat
A27: Salarii | B27: 1260 | C27: Incasat | F27: Incasat | G27: rep inst termica | H27: 167 | J27: ='1'!W18+'2'!W14+'3'!W13+'4'!W13+'5'!W13+'6'!W18 -> 485.93
A28: premiere fem serviciu | B28: 100 | C28: ='1'!U18+'2'!U14+'3'!U13+'4'!U13+'5'!U13+'6'!U18 -> 1359.86 | F28: ='1'!V18+'2'!V14+'3'!V13+'4'!V13+'5'!V13+'6'!V18 -> 0 | G28: robineti | H28: 56.5
G29: matura | H29: 11
G30: lopeti zapada | H30: 65.97
G31: priector, bec | H31: 103
G32: recom | H32: 2.4
G33: lopata, spargator | H33: 79.97
H36: TERMOFICARE
A37: apa | H37: apa calda | J37: caldura
A38: 425 | B38: 2.19 | C38: =A38*B38 -> 930.75 | D38: =C38+A38*B40 -> 1457.75 | E38: =ROUND(D38*1.24+A38*B41,2) -> 1838.21 | H38: 672.91 | J38: 7484.39
A39: 125 | B39: 2.19 | C39: =A39*B39 -> 273.75 | D39: =C39+A39*B40 -> 428.75 | E39: =ROUND(D39*1.24+A39*B41,2) -> 540.65 | H39: 161.5 | J39: 1796.25
A40: =SUM(A38:A39) -> 550 | B40: 1.24 | C40: =A40*B40 -> 682 | E40: =SUM(E38:E39) -> 2378.86 | H40: =SUM(H38:H39) -> 834.41 | J40: =SUM(J38:J39) -> 9280.64 | K40: =J40+H40 -> 10115.05
A41: =A40 -> 550 | B41: 0.072 | C41: =A41*B41 -> 39.6 | J41: subventie | K41: 59.03
K42: Total
K43: =K40-K41 -> 10056.02
A45: Observatii
A47: IMPORTANT! Pentru corectitudinea calculelor este recomandat ca sa nu folositi setari personalizate nici pentru Excel nici pentru Windows. Sau mai pe romaneste
A48: sa folositi punctul zecimal implicit fara a umbla in Excel la Optiuni sau in Windows la Setari Regionale.
A49: In celule VERZI se inlocuiesc valoriile
A50: Valorile din factura de apa si termoficare se introduc in cele doua casute de jos. Formatul acesor zone este conform cu facturile folosite in Cluj.Se pot personaliza.
A51: Dupa introducerea acestor date automat o sa fie preluate in partea de calcul. Vezi celule cu fond galben de sus.
A52: Selectand o celula para informatii despre continutul celulei.
A54: Consumurile de apa se importa din fisierul corespunzator. Vezi buton dreapta tabel.
A55: Numele fiserului se poate seta in pagina d.
A56: Fisierul trebuie sa fie deschisa inainte de import
A57: Diferentele de consum de apa se repartizeaza proportional cu numarul de persoane, conform hotarare Comitet. SE pot implementa si alte solutii.
A59: Incalzirea, dupa o expertiza s-a evaluat consumul pe spatii comune, consumul pe tevi (evid procentual) si factura de incalzire se imparta in trei dupa acesti consumatori.
A60: Consumul ptr apart se imparte conform suprafetei locuintelor.
A61: Consumul ptr parti comune se imparte conform cota indiviza.
A62: Consumul ptr coloane vericale se imparte conform cota indiviza recalculata. In asociatia noastra avem unele apartamente unde nu exista deloc tevi verticale (s-au taiat)
A63: Comitetul a hotarat ca aceste apart sa nu contribuie la aceasta cheltuiala. Ptr repartitie practic cotele de indivize ale aprt cu coloane se imultesc cu un coeficient in asa fel
A64: incat suma lor sa dee 100%, aceasta este cota indiviza recalculata, poate nu-I cea mai buna denumire.
A66: Energie electrica, in principiu se imparte pe scara si persoane. La noi avand in vedere ca o parte din consumatori comuni sunt alimentati exclusiv de la sc1 s-a hotarat
A67: ca o parte (1/3) din costurile din scara 1 sa fie achitate de toti locatarii.
A69: Gaz, factura pe scari se imparte pe locatari, evident numai pentru apart care nu au contor individual
A71: Cheltuieli diverse
A72: Aici repartizarea lor depinde de legislatiedar si de hotararea Comitetului.
A73: Sunt definite patru posibilitati de repartitie:
A74: pe persoana: de ex. salar femeie de serviciu, se pot repartiza mai multe cheltuiel se inscriu in coloana B
A75: cheltuieli pe apartament: de ex la noi asa se reartizeaza chelt cu dezinsectie sau cv coroane la inmormantari, coloana E
A76: cheltuieli pe cota indiviza: majoritatea cheltuielilor, coloana H
A77: cheltuieli pe scara, chelt ce privesc exclusiv o scara aceste cheltuieli pot sa fie repartizate pe persoane sau pe apartament, selectia buton pe fiecare pagina
A79: Vizualizarea coloanelor din tabele pe scari
A80: Pe aceasta pagina sunt doua butoane, cu carte se pot vizualiza/ascunde coloanele de care depind repartitia chelt, dar care nu se afiseaza (deex. Suprafata, cota indivza….)
A82: Setarea modului de afisare a coloanelor se face din pagina comenzi, individual pentru fiecare scara si coloana.
A83: Tot de aici se seteaza si antetul tabelului, precum si orarul de incasare.
A85: Generare Chitante
A86: Se tasteaza butonul corespunzator.
A87: Programul preia din listele de cheltuieli, sumele pentru fiecare apartament, din evidenta chitantelor preia numarul ultimei chitante.
A88: O sa fie imprimate chitantele pentru apartamentele bifate din ListBox.
A89: Formularul actual permite imprimarea a maximum 8 chitante simultan.
A90: Se modifica data, se poate modica manul, in concordanta cu setarile sistemului, sau Preferabil! cu calendar.
A91: Calendarul putem afisa, daca selectam casuta datei si facem DoubleClick sau apasam tasta F2.
A92: Modul de lucru recomandat, dupa afisarea panoului introduceti data chitantei, completati la observati luna pentru care se incaseaza, bifati Avans automatic, apasati
A93: Scriu chitante si dupa aceasta Imprimare. Programul va imprima doua exemplare de formular de chitante, modelul vezi in pagina Chitante.
A94: Repetati ultimii doi pasi pana la epuizarea apartamentelor. In lista apartamente aveti vizualizarea a ce se imprima.
A95: Inainte de prima utilizare pagina Chitante se personalizeaza cu datele asociatiei.
A98: Setarile pentru fiecare apartament, ca suprafat, nr pers, nr pers prezente se fac in coloanele C-J din tabelele pentru fiecare scara.
A100: O scurta descriere a functionarii registrului de casa aveti in pagina ian.

Sheet utilizare
A3: Pentru utilizare trebuie sa autorizati functionarea macrourilor.
A6: Office Ribbon -> Excel options->Trust Center->Settings->Macros
A8: Inchideti si redeschideti fisierul.

Sheet Recapitulare
A1: TOTAL CHELTUIELI | C1: ÎNCASĂRI
B2: Cheltuieli | C2: incas | F2: efectiv | I2: 91 | J2: =DEC2HEX(I2) -> 5B | K2: =J2&J3&J4 -> 5B7479 | L2: 5B7479
A3: Apă rece + canalizare | B3: =TOTAL!D5 -> 1838.21 | C3: =TOTAL!F5+TOTAL!H7 -> 1838.36 | D3: =C3-B3 -> 0.15 | E3: sc1 | F3: ='1'!Z18 -> 2665.01 | I3: 116 | J3: =DEC2HEX(I3) -> 74
A4: Apă caldă | B4: =TOTAL!D11 -> 1375.06 | C4: =TOTAL!F11+TOTAL!H12 -> 1375.18 | D4: =C4-B4 -> 0.12 | E4: sc2 | F4: ='2'!Z14 -> 1285.89 | I4: 121 | J4: 79
A5: Încălzire | B5: =TOTAL!B13 -> 9280.64 | C5: =TOTAL!D13 -> 9280.67 | D5: 0.03 | E5: sc3 | F5: ='3'!Z13 -> 2822.92
A6: Gaz | B6: =TOTAL!G24 -> 634.6 | C6: =TOTAL!K24 -> 634.6 | D6: 0 | E6: sc4 | F6: ='4'!Z13 -> 2076.04
A7: Energie electrică | B7: =TOTAL!B24 -> 54.74 | C7: =TOTAL!E24 -> 54.71 | D7: -0.03 | E7: sc5 | F7: ='5'!Z13 -> 4039.54
A8: Salubritate | B8: =TOTAL!F14 -> 837.45 | C8: =TOTAL!F16 -> 855.44 | D8: 17.99 | E8: sc6 | F8: ='6'!Z18 -> 2918.25
A9: Diverse pe persoana | B9: =TOTAL!B26 -> 1360 | C9: =TOTAL!C28 -> 1359.86 | D9: -0.14 | F9: =SUM(F3:F8) -> 15807.65
A10: Diverse pe apart | B10: =TOTAL!E26 -> 0 | C10: =TOTAL!F28 -> 0 | D10: 0
A11: Diverse cota | B11: =TOTAL!H26 -> 485.84 | C11: =TOTAL!J27 -> 485.93 | D11: 0.09
A12: Div scara
B13: =SUM(B3:B12) -> 15866.54 | C13: =SUM(C3:C12) -> 15884.75 | E13: =F9-C13 -> -77.1
A15: Compensare | B15: =TOTAL!K41 -> 59.03 | C15: ='5'!Y13+'6'!Y18 -> 59.03

Sheet comenzi
C1: Scara
A2: Cheltuiala | B2: Coloana | C2: 1 | D2: 2 | E2: 3 | F2: 4 | G2: 5 | H2: 6
A3: Apă rece m3 | B3: K | C3: DA | D3: DA | E3: DA | F3: DA | G3: DA | H3: DA
A4: Apă caldă m3 | B4: L | C4: DA | D4: DA | E4: DA | F4: DA | G4: DA | H4: DA
A5: Apă rece | B5: M | C5: DA | D5: DA | E5: DA | F5: DA | G5: DA | H5: DA
A6: Diferenţe apă rece | B6: N | C6: DA | D6: DA | E6: DA | F6: DA | G6: DA | H6: DA | K6: Luna | L6: 12 | M6: Decembrie
A7: Apă caldă | B7: O | C7: DA | D7: DA | E7: DA | F7: DA | G7: DA | H7: DA | K7: Anul | M7: 2010
A8: Diferenţe apă caldă | B8: P | C8: DA | D8: DA | E8: DA | F8: DA | G8: DA | H8: DA | M8: 20, 21 şi 25 ianuarie intre orele 17-19
A9: Încălzire | B9: Q | C9: DA | D9: DA | E9: DA | F9: DA | G9: DA | H9: DA
A10: Gaz metan | B10: R | C10: DA | D10: DA | E10: DA | F10: DA | G10: DA | H10: DA
A11: Energie electrică | B11: S | C11: DA | D11: DA | E11: DA | F11: DA | G11: DA | H11: DA
A12: Salubritate | B12: T | C12: DA | D12: DA | E12: DA | F12: DA | G12: DA | H12: DA
A13: Diverse / pers | B13: U | C13: DA | D13: DA | E13: DA | F13: DA | G13: DA | H13: DA
A14: Diverse/ap | B14: V | C14: DA | D14: DA | E14: DA | F14: DA | G14: DA | H14: DA
A15: Diverse / cota | B15: W | C15: DA | D15: DA | E15: DA | F15: DA | G15: DA | H15: DA
A16: Diverse / scara | B16: X | C16: DA | D16: DA | E16: DA | F16: DA | G16: DA | H16: DA
A17: Compensare | B17: Y | C17: DA | D17: DA | E17: DA | F17: DA | G17: DA | H17: DA

Sheet total apart
A1: Ap | B1: Nr doc | C1: Valoare | E1: Ap | F1: Nr doc | G1: Valoare | I1: 1 | K1: 57.51
A2: 1 | B2: 2628 | C2: 72.63 | E2: 36 | F2: 2664 | G2: 266.03 | I2: 6 | K2: 49.74
A3: 2 | B3: 2629 | C3: 53.74 | E3: 37 | F3: 2665 | G3: 93.08 | I3: 9 | K3: 97.62
A4: 3 | B4: 2630 | C4: 222.5 | E4: 38 | F4: 2666 | G4: 301.68 | I4: 20 | K4: 97.74
A5: 4 | B5: 2631 | C5: 64.36 | E5: 39 | F5: 2667 | G5: 99.68 | I5: 27 | K5: 69.56
A6: 5 | B6: 2632 | C6: 411.64 | E6: 40 | F6: 2668 | G6: 90.71 | I6: 50 | K6: 291.58
A7: 6 | B7: 2633 | C7: 152.68 | E7: 41 | F7: 2669 | G7: 331.48 | I7: 54 | K7: 25.6
A8: 7 | B8: 2634 | C8: 182.79 | E8: 42 | F8: 2670 | G8: 116.69 | I8: 56 | K8: 15.9
A9: 8 | B9: 2635 | C9: 51.77 | E9: 43 | F9: 2671 | G9: 126.59 | K9: =SUM(K1:K8) -> 705.25
A10: 9 | B10: 2636 | C10: 124.13 | E10: 44 | F10: 2672 | G10: 63.09 | K10: =G38+K9 -> 11910
A11: 10 | B11: 2637 | C11: 42.71 | E11: 45 | F11: 2673 | G11: 61.07
A12: 11 | B12: 2638 | C12: 51.77 | E12: 46 | F12: 2674 | G12: 296.52
A13: 12 | B13: 2639 | C13: 277.98 | E13: 47 | F13: 2675 | G13: 78.16
A14: 13 | B14: 2640 | C14: 45.4 | E14: 48 | F14: 2676 | G14: 284.86
A15: 14 | B15: 2641 | C15: 28.28 | E15: 49 | F15: 2677 | G15: 263.05
A16: 15 | B16: 2642 | C16: 64.46 | E16: 50 | F16: 2678 | G16: 450.18
A17: 16 | B17: 2643 | C17: 111.93 | E17: 51 | F17: 2679 | G17: 244.7
A18: 17 | B18: 2644 | C18: 272.38 | E18: 52 | F18: 2680 | G18: 287.02
A19: 18 | B19: 2645 | C19: 89.31 | E19: 53 | F19: 2681 | G19: 229.17
A20: 19 | B20: 2646 | C20: 74.1 | E20: 54 | F20: 2682 | G20: 182.24
A21: 20 | B21: 2647 | C21: 59 | E21: 55 | F21: 2683 | G21: 482.67
A22: 21 | B22: 2648 | C22: 78.63 | E22: 56 | F22: 2684 | G22: 149.49
A23: 22 | B23: 2649 | C23: 67.66 | E23: 57 | F23: 2685 | G23: 161.7
A24: 23 | B24: 2650 | C24: 65.64 | E24: 58 | F24: 2686 | G24: 58.81
A25: 23a | B25: 2651 | C25: 70.45 | E25: 59 | F25: 2687 | G25: 183.08
A26: 24 | B26: 2652 | C26: 85.57 | E26: 60 | F26: 2688 | G26: 68.81
A27: 25 | B27: 2653 | C27: 82.96 | E27: 61 | F27: 2689 | G27: 125.52
A28: 26 | B28: 2654 | C28: 23.29 | E28: 62 | F28: 2690 | G28: 88.37
A29: 27 | B29: 2655 | C29: 145.01 | E29: 63 | F29: 2691 | G29: 73.41
A30: 28 | B30: 2656 | C30: 243.37 | E30: 64 | F30: 2692 | G30: 273.97
A31: 29 | B31: 2657 | C31: 270.73 | E31: 65 | F31: 2693 | G31: 153.87
A32: 30 | B32: 2658 | C32: 263.59 | E32: 66 | F32: 2694 | G32: 103.72
A33: 31 | B33: 2659 | C33: 232.2 | E33: 67 | F33: 2695 | G33: 86
A34: 32 | B34: 2660 | C34: 88.32 | E34: 68 | F34: 2625 | G34: 237.58
A35: 33 | B35: 2661 | C35: 308.16 | E35: 69 | F35: 2626 | G35: 100.62
A36: 34 | B36: 2662 | C36: 78.02 | E36: 70 | F36: 2627 | G36: 108.9
A37: 35 | B37: 2663 | C37: 325.07 | G37: =SUM(G2:G36) -> 6322.52
C38: =SUM(C2:C37) -> 4882.23 | E38: TOTAL | G38: =C38+G37 -> 11204.75
B40: incasarea s-a facut in 23 iunie

Sheet reg_chitante
A1: Nr Chitante | B1: Din | C1: Platitor | D1: Valoare | E1: Reprez
A2: 1988 | B2: 22 01 2010 | C2: Pop C. ap. 70 | D2: 114.87 | E2: chelt com luna dec 2009
A3: 1989 | B3: 24 02 2010 | C3: Csapo ap. 1 | D3: 19.52 | E3: chelt com luna ian
A4: 1990 | B4: 24 02 2010 | C4: Bugnar ap. 2 | D4: 56.55 | E4: chelt com luna ian
A5: 1991 | B5: 24 02 2010 | C5: Tunyogi ap. 3 | D5: 329.76 | E5: chelt com luna ian
A6: 1992 | B6: 24 02 2010 | C6: Garbou ap. 4 | D6: 22.08 | E6: chelt com luna ian
A7: 1993 | B7: 24 02 2010 | C7: Szép ap. 5 | D7: 524.06 | E7: chelt com luna ian
A8: 1994 | B8: 24 02 2010 | C8: Bara ap. 6 | D8: 330.82 | E8: chelt com luna ian
A9: 1995 | B9: 24 02 2010 | C9: Colceriu ap. 7 | D9: 246.47 | E9: chelt com luna ian
A10: 1996 | B10: 24 02 2010 | C10: Gabor ap. 8 | D10: 32.41 | E10: chelt com luna ian
A11: 1997 | B11: 24 02 2010 | C11: Neamţ ap. 9 | D11: 66.17 | E11: chelt com luna ian
A12: 1998 | B12: 24 02 2010 | C12: Micşunescu ap. 10 | D12: 44.04 | E12: chelt com luna ian
A13: 1999 | B13: 24 02 2010 | C13: Jugrestan ap. 11 | D13: 44.11 | E13: chelt com luna ian
A14: 2000 | B14: 24 02 2010 | C14: Tárkányi ap. 12 | D14: 380.33 | E14: chelt com luna ian
A15: 2001 | B15: 24 02 2010 | C15: Nebert ap. 13 | D15: 40.14 | E15: chelt com luna ian
A16: 2002 | B16: 24 02 2010 | C16: Crişan ap. 14 | D16: 61.38 | E16: chelt com luna ian
A17: 2003 | B17: 24 02 2010 | C17: Lazăr ap. 15 | D17: 62.33 | E17: chelt com luna ian
A18: 2004 | B18: 24 02 2010 | C18: Vescan ap. 16 | D18: 42.83 | E18: chelt com luna ian
A19: 2005 | B19: 24 02 2010 | C19: Mihăescu ap. 17 | D19: 428.92 | E19: chelt com luna ian
A20: 2006 | B20: 24 02 2010 | C20: Pop T ap. 18 | D20: 88.04 | E20: chelt com luna ian
A21: 2007 | B21: 24 02 2010 | C21: Mureşan I ap. 19 | D21: 78.73 | E21: chelt com luna ian
A22: 2008 | B22: 24 02 2010 | C22: Ibbison ap. 20 | D22: 49.04 | E22: chelt com luna ian
A23: 2009 | B23: 24 02 2010 | C23: Kállai ap. 21 | D23: 86.76 | E23: chelt com luna ian
A24: 2010 | B24: 24 02 2010 | C24: Indolean ap. 22 | D24: 64.64 | E24: chelt com luna ian
A25: 2011 | B25: 24 02 2010 | C25: Mureşan E ap. 23 | D25: 59.37 | E25: chelt com luna ian
A26: 2012 | B26: 24 02 2010 | C26: Stanimir ap. 23A | D26: 90.57 | E26: chelt com luna ian
A27: 2013 | B27: 24 02 2010 | C27: Cheţan ap. 24 | D27: 78.31 | E27: chelt com luna ian
A28: 2014 | B28: 24 02 2010 | C28: Călin ap. 25 | D28: 82.86 | E28: chelt com luna ian
A29: 2015 | B29: 24 02 2010 | C29: Turcu ap. 26 | D29: 340.53 | E29: chelt com luna ian
A30: 2016 | B30: 24 02 2010 | C30: Creţeanu ap. 27 | D30: 82.18 | E30: chelt com luna ian
A31: 2017 | B31: 24 02 2010 | C31: Zegreanu ap. 28 | D31: 388.73 | E31: chelt com luna ian
A32: 2018 | B32: 24 02 2010 | C32: Şerban ap. 29 | D32: 449.69 | E32: chelt com luna ian
A33: 2019 | B33: 24 02 2010 | C33: Mihăescu ap. 30 | D33: 445.68 | E33: chelt com luna ian
A34: 2020 | B34: 24 02 2010 | C34: Pop R ap. 31 | D34: 430.15 | E34: chelt com luna ian
A35: 2021 | B35: 24 02 2010 | C35: Lungu ap. 32 | D35: 89.9 | E35: chelt com luna ian
A36: 2022 | B36: 24 02 2010 | C36: Mihuţ ap. 33 | D36: 482.99 | E36: chelt com luna ian
A37: 2023 | B37: 24 02 2010 | C37: Postescu ap. 34 | D37: 70.4 | E37: chelt com luna ian
A38: 2024 | B38: 24 02 2010 | C38: Goia ap. 35 | D38: 494.09 | E38: chelt com luna ian
A39: 2025 | B39: 24 02 2010 | C39: Dodu ap. 36 | D39: 446.67 | E39: chelt com luna ian
A40: 2026 | B40: 24 02 2010 | C40: Drăghici ap. 37 | D40: 90.73 | E40: chelt com luna ian
A41: 2027 | B41: 24 02 2010 | C41: Néda ap. 38 | D41: 476.67 | E41: chelt com luna ian
A42: 2028 | B42: 24 02 2010 | C42: Vornicescu ap. 39 | D42: 150.17 | E42: chelt com luna ian
A43: 2029 | B43: 24 02 2010 | C43: Sparleanu ap. 40 | D43: 108.49 | E43: chelt com luna ian
A44: 2030 | B44: 24 02 2010 | C44: Raboca ap. 41 | D44: 542.48 | E44: chelt com luna ian
A45: 2031 | B45: 24 02 2010 | C45: Negru ap. 42 | D45: 120.19 | E45: chelt com luna ian
A46: 2032 | B46: 24 02 2010 | C46: Roşescu ap. 43 | D46: 142.05 | E46: chelt com luna ian
A47: 2033 | B47: 24 02 2010 | C47: Ursu ap. 44 | D47: 108.44 | E47: chelt com luna ian
A48: 2034 | B48: 24 02 2010 | C48: Săcui ap. 45 | D48: 107.27 | E48: chelt com luna ian
A49: 2035 | B49: 24 02 2010 | C49: Mărinceanu ap. 46 | D49: 426.45 | E49: chelt com luna ian
A50: 2036 | B50: 24 02 2010 | C50: Ricean ap. 47 | D50: 68.37 | E50: chelt com luna ian
A51: 2037 | B51: 24 02 2010 | C51: Sabo ap. 48 | D51: 203.76 | E51: chelt com luna ian
A52: 2038 | B52: 24 02 2010 | C52: Câmpan ap. 49 | D52: 446.59 | E52: chelt com luna ian
A53: 2039 | B53: 24 02 2010 | C53: Tudoran ap. 50 | D53: 547.9 | E53: chelt com luna ian
A54: 2040 | B54: 24 02 2010 | C54: Ciubotariu ap. 51 | D54: 397.01 | E54: chelt com luna ian
A55: 2041 | B55: 24 02 2010 | C55: Cristea ap. 52 | D55: 404.57 | E55: chelt com luna ian
A56: 2042 | B56: 24 02 2010 | C56: Stănescu ap. 53 | D56: 418.37 | E56: chelt com luna ian
A57: 2043 | B57: 24 02 2010 | C57: Dejeu ap. 54 | D57: 476.27 | E57: chelt com luna ian
A58: 2044 | B58: 24 02 2010 | C58: Feşnic ap. 55 | D58: 605.87 | E58: chelt com luna ian
A59: 2045 | B59: 24 02 2010 | C59: Fonoage ap. 56 | D59: 269.17 | E59: chelt com luna ian
A60: 2046 | B60: 24 02 2010 | C60: Baras A ap. 57 | D60: 296.81 | E60: chelt com luna ian
A61: 2047 | B61: 24 02 2010 | C61: Fărcaş N ap. 58 | D61: 41.26 | E61: chelt com luna ian
A62: 2048 | B62: 24 02 2010 | C62: Bagaméri ap. 59 | D62: 294.01 | E62: chelt com luna ian
A63: 2049 | B63: 24 02 2010 | C63: Cristovici ap. 60 | D63: 47.85 | E63: chelt com luna ian
A64: 2050 | B64: 24 02 2010 | C64: Trifoiu ap. 61 | D64: 88.33 | E64: chelt com luna ian
A65: 2051 | B65: 24 02 2010 | C65: Fabian ap. 62 | D65: 77.49 | E65: chelt com luna ian
A66: 2052 | B66: 24 02 2010 | C66: Fărăgău ap. 63 | D66: 76.81 | E66: chelt com luna ian
A67: 2053 | B67: 24 02 2010 | C67: Rus ap. 64 | D67: 354.34 | E67: chelt com luna ian
A68: 2054 | B68: 24 02 2010 | C68: Pop ap. 65 | D68: 135.41 | E68: chelt com luna ian
A69: 2055 | B69: 24 02 2010 | C69: Bejan ap. 66 | D69: 72.91 | E69: chelt com luna ian
A70: 2056 | B70: 24 02 2010 | C70: Moga ap. 67 | D70: 21.81 | E70: chelt com luna ian
A71: 2057 | B71: 24 02 2010 | C71: Legian ap. 68 | D71: 163.24 | E71: chelt com luna ian
A72: 2058 | B72: 24 02 2010 | C72: Mocanu ap. 69 | D72: 126.93 | E72: chelt com luna ian
A73: 2059 | B73: 24 02 2010 | C73: Pop C. ap. 70 | D73: 126.75 | E73: chelt com luna ian
A74: 2060 | B74: 24 03 2010 | C74: Csapo ap. 1 | D74: 15.64 | E74: chelt com luna febr
A75: 2061 | B75: 24 03 2010 | C75: Bugnar ap. 2 | D75: 62.7 | E75: chelt com luna febr
A76: 2062 | B76: 24 03 2010 | C76: Tunyogi ap. 3 | D76: 279.15 | E76: chelt com luna febr
A77: 2063 | B77: 24 03 2010 | C77: Garbou ap. 4 | D77: 17.38 | E77: chelt com luna febr
A78: 2064 | B78: 24 03 2010 | C78: Szép ap. 5 | D78: 435.45 | E78: chelt com luna febr
A79: 2065 | B79: 24 03 2010 | C79: Bara ap. 6 | D79: 299.37 | E79: chelt com luna febr
A80: 2066 | B80: 24 03 2010 | C80: Colceriu ap. 7 | D80: 176.8 | E80: chelt com luna febr
A81: 2067 | B81: 24 03 2010 | C81: Gabor ap. 8 | D81: 33.01 | E81: chelt com luna febr
A82: 2068 | B82: 24 03 2010 | C82: Neamţ ap. 9 | D82: 15.23 | E82: chelt com luna febr
A83: 2069 | B83: 24 03 2010 | C83: Micşunescu ap. 10 | D83: 40.93 | E83: chelt com luna febr
A84: 2070 | B84: 24 03 2010 | C84: Jugrestan ap. 11 | D84: 29.03 | E84: chelt com luna febr
A85: 2071 | B85: 24 03 2010 | C85: Tárkányi ap. 12 | D85: 343.32 | E85: chelt com luna febr
A86: 2072 | B86: 24 03 2010 | C86: Nebert ap. 13 | D86: 36.95 | E86: chelt com luna febr
A87: 2073 | B87: 24 03 2010 | C87: Crişan ap. 14 | D87: 56.19 | E87: chelt com luna febr
A88: 2074 | B88: 24 03 2010 | C88: Lazăr ap. 15 | D88: 54.2 | E88: chelt com luna febr
A89: 2075 | B89: 24 03 2010 | C89: Vescan ap. 16 | D89: 38.64 | E89: chelt com luna febr
A90: 2076 | B90: 24 03 2010 | C90: Mihăescu ap. 17 | D90: 339.1 | E90: chelt com luna febr
A91: 2077 | B91: 24 03 2010 | C91: Pop T ap. 18 | D91: 77.84 | E91: chelt com luna febr
A92: 2078 | B92: 24 03 2010 | C92: Mureşan I ap. 19 | D92: 79.5 | E92: chelt com luna febr
A93: 2079 | B93: 24 03 2010 | C93: Ibbison ap. 20 | D93: 53.96 | E93: chelt com luna febr
A94: 2080 | B94: 24 03 2010 | C94: Kállai ap. 21 | D94: 75.69 | E94: chelt com luna febr
A95: 2081 | B95: 24 03 2010 | C95: Indolean ap. 22 | D95: 69.88 | E95: chelt com luna febr
A96: 2082 | B96: 24 03 2010 | C96: Mureşan E ap. 23 | D96: 50.89 | E96: chelt com luna febr
A97: 2083 | B97: 24 03 2010 | C97: Stanimir ap. 23A | D97: 66.92 | E97: chelt com luna febr
A98: 2084 | B98: 24 03 2010 | C98: Cheţan ap. 24 | D98: 84.96 | E98: chelt com luna febr
A99: 2085 | B99: 24 03 2010 | C99: Călin ap. 25 | D99: 67.73 | E99: chelt com luna febr
A100: 2086 | B100: 24 03 2010 | C100: Turcu ap. 26 | D100: 255.56 | E100: chelt com luna febr
A101: 2087 | B101: 24 03 2010 | C101: Creţeanu ap. 27 | D101: 92.72 | E101: chelt com luna febr
A102: 2088 | B102: 24 03 2010 | C102: Zegreanu ap. 28 | D102: 312.3 | E102: chelt com luna febr
A103: 2089 | B103: 24 03 2010 | C103: Şerban ap. 29 | D103: 350.26 | E103: chelt com luna febr
A104: 2090 | B104: 24 03 2010 | C104: Mihăescu ap. 30 | D104: 322.49 | E104: chelt com luna febr
A105: 2091 | B105: 24 03 2010 | C105: Pop R ap. 31 | D105: 319.36 | E105: chelt com luna febr
A106: 2092 | B106: 24 03 2010 | C106: Lungu ap. 32 | D106: 72.78 | E106: chelt com luna febr
A107: 2093 | B107: 24 03 2010 | C107: Mihuţ ap. 33 | D107: 365.71 | E107: chelt com luna febr
A108: 2094 | B108: 24 03 2010 | C108: Postescu ap. 34 | D108: 68.8 | E108: chelt com luna febr
A109: 2095 | B109: 24 03 2010 | C109: Goia ap. 35 | D109: 361.73 | E109: chelt com luna febr
A110: 2096 | B110: 24 03 2010 | C110: Dodu ap. 36 | D110: 319.33 | E110: chelt com luna febr
A111: 2097 | B111: 24 03 2010 | C111: Drăghici ap. 37 | D111: 62.41 | E111: chelt com luna febr
A112: 2098 | B112: 24 03 2010 | C112: Néda ap. 38 | D112: 334.31 | E112: chelt com luna febr
A113: 2099 | B113: 24 03 2010 | C113: Vornicescu ap. 39 | D113: 62.98 | E113: chelt com luna febr
A114: 2100 | B114: 24 03 2010 | C114: Sparleanu ap. 40 | D114: 49.18 | E114: chelt com luna febr
A115: 2101 | B115: 24 03 2010 | C115: Raboca ap. 41 | D115: 385.08 | E115: chelt com luna febr
A116: 2102 | B116: 24 03 2010 | C116: Negru ap. 42 | D116: 77.04 | E116: chelt com luna febr
A117: 2103 | B117: 24 03 2010 | C117: Roşescu ap. 43 | D117: 92.11 | E117: chelt com luna febr
A118: 2104 | B118: 24 03 2010 | C118: Ursu ap. 44 | D118: 57.1 | E118: chelt com luna febr
A119: 2105 | B119: 24 03 2010 | C119: Săcui ap. 45 | D119: 62.98 | E119: chelt com luna febr
A120: 2106 | B120: 24 03 2010 | C120: Mărinceanu ap. 46 | D120: 356.5 | E120: chelt com luna febr
A121: 2107 | B121: 24 03 2010 | C121: Ricean ap. 47 | D121: 55.22 | E121: chelt com luna febr
A122: 2108 | B122: 24 03 2010 | C122: Sabo ap. 48 | D122: 217.03 | E122: chelt com luna febr
A123: 2109 | B123: 24 03 2010 | C123: Câmpan ap. 49 | D123: 360.29 | E123: chelt com luna febr
A124: 2110 | B124: 24 03 2010 | C124: Tudoran ap. 50 | D124: 539.3 | E124: chelt com luna febr
A125: 2111 | B125: 24 03 2010 | C125: Ciubotariu ap. 51 | D125: 297.36 | E125: chelt com luna febr
A126: 2112 | B126: 24 03 2010 | C126: Cristea ap. 52 | D126: 345.27 | E126: chelt com luna febr
A127: 2113 | B127: 24 03 2010 | C127: Stănescu ap. 53 | D127: 342.06 | E127: chelt com luna febr
A128: 2114 | B128: 24 03 2010 | C128: Dejeu ap. 54 | D128: 347.06 | E128: chelt com luna febr
A129: 2115 | B129: 24 03 2010 | C129: Feşnic ap. 55 | D129: 512.8 | E129: chelt com luna febr
A130: 2116 | B130: 24 03 2010 | C130: Fonoage ap. 56 | D130: 205.8 | E130: chelt com luna febr
A131: 2117 | B131: 24 03 2010 | C131: Baras A ap. 57 | D131: 209.92 | E131: chelt com luna febr
A132: 2118 | B132: 24 03 2010 | C132: Fărcaş N ap. 58 | D132: 38.94 | E132: chelt com luna febr
A133: 2119 | B133: 24 03 2010 | C133: Bagaméri ap. 59 | D133: 237.67 | E133: chelt com luna febr
A134: 2120 | B134: 24 03 2010 | C134: Cristovici ap. 60 | D134: 44.74 | E134: chelt com luna febr
A135: 2121 | B135: 24 03 2010 | C135: Trifoiu ap. 61 | D135: 87.61 | E135: chelt com luna febr
A136: 2122 | B136: 24 03 2010 | C136: Fabian ap. 62 | D136: 77.58 | E136: chelt com luna febr
A137: 2123 | B137: 24 03 2010 | C137: Fărăgău ap. 63 | D137: 83.75 | E137: chelt com luna febr
A138: 2124 | B138: 24 03 2010 | C138: Rus ap. 64 | D138: 243.73 | E138: chelt com luna febr
A139: 2125 | B139: 24 03 2010 | C139: Pop ap. 65 | D139: 135.69 | E139: chelt com luna febr
A140: 2126 | B140: 24 03 2010 | C140: Bejan ap. 66 | D140: 71.81 | E140: chelt com luna febr
A141: 2127 | B141: 24 03 2010 | C141: Moga ap. 67 | D141: 52.58 | E141: chelt com luna febr
A142: 2128 | B142: 24 03 2010 | C142: Legian ap. 68 | D142: 191.18 | E142: chelt com luna febr
A143: 2129 | B143: 24 03 2010 | C143: Mocanu ap. 69 | D143: 121.96 | E143: chelt com luna febr
A144: 2130 | B144: 24 03 2010 | C144: Pop C. ap. 70 | D144: 117.86 | E144: chelt com luna febr
A145: 2131 | B145: 22 04 2010 | C145: Lăpuştea ap. 1 | D145: 51.37 | E145: chelt com luna martie 2010
A146: 2132 | B146: 22 04 2010 | C146: Bugnar ap. 2 | D146: 42.78 | E146: chelt com luna martie 2010
A147: 2133 | B147: 22 04 2010 | C147: Tunyogi ap. 3 | D147: 234.36 | E147: chelt com luna martie 2010
A148: 2134 | B148: 22 04 2010 | C148: Garbou ap. 4 | D148: 32.7 | E148: chelt com luna martie 2010
A149: 2135 | B149: 22 04 2010 | C149: Szép ap. 5 | D149: 436.99 | E149: chelt com luna martie 2010
A150: 2136 | B150: 22 04 2010 | C150: Bara ap. 6 | D150: 250.9 | E150: chelt com luna martie 2010
A151: 2137 | B151: 22 04 2010 | C151: Colceriu ap. 7 | D151: 215.04 | E151: chelt com luna martie 2010
A152: 2138 | B152: 22 04 2010 | C152: Gabor ap. 8 | D152: 24.78 | E152: chelt com luna martie 2010
A153: 2139 | B153: 22 04 2010 | C153: Neamţ ap. 9 | D153: 103.08 | E153: chelt com luna martie 2010
A154: 2140 | B154: 22 04 2010 | C154: Micşunescu ap. 10 | D154: 40.66 | E154: chelt com luna martie 2010
A155: 2141 | B155: 22 04 2010 | C155: Jugrestan ap. 11 | D155: 28.76 | E155: chelt com luna martie 2010
A156: 2142 | B156: 22 04 2010 | C156: Tárkányi ap. 12 | D156: 296.3 | E156: chelt com luna martie 2010
A157: 2143 | B157: 22 04 2010 | C157: Nebert ap. 13 | D157: 36.68 | E157: chelt com luna martie 2010
A158: 2144 | B158: 22 04 2010 | C158: Crişan ap. 14 | D158: 56.8 | E158: chelt com luna martie 2010
A159: 2145 | B159: 22 04 2010 | C159: Lazăr ap. 15 | D159: 47.08 | E159: chelt com luna martie 2010
A160: 2146 | B160: 22 04 2010 | C160: Vescan ap. 16 | D160: 78.3 | E160: chelt com luna martie 2010
A161: 2147 | B161: 22 04 2010 | C161: Mihăescu ap. 17 | D161: 295.68 | E161: chelt com luna martie 2010
A162: 2148 | B162: 22 04 2010 | C162: Pop T ap. 18 | D162: 86.93 | E162: chelt com luna martie 2010
A163: 2149 | B163: 22 04 2010 | C163: Mureşan I ap. 19 | D163: 76.45 | E163: chelt com luna martie 2010
A164: 2150 | B164: 22 04 2010 | C164: Ibbison ap. 20 | D164: 59.07 | E164: chelt com luna martie 2010
A165: 2151 | B165: 22 04 2010 | C165: Kállai ap. 21 | D165: 68.63 | E165: chelt com luna martie 2010
A166: 2152 | B166: 22 04 2010 | C166: Indolean ap. 22 | D166: 63.05 | E166: chelt com luna martie 2010
A167: 2153 | B167: 22 04 2010 | C167: Mureşan E ap. 23 | D167: 53.06 | E167: chelt com luna martie 2010
A168: 2154 | B168: 22 04 2010 | C168: Stanimir ap. 23A | D168: 92.11 | E168: chelt com luna martie 2010
A169: 2155 | B169: 22 04 2010 | C169: Cheţan ap. 24 | D169: 67.49 | E169: chelt com luna martie 2010
A170: 2156 | B170: 22 04 2010 | C170: Călin ap. 25 | D170: 64.65 | E170: chelt com luna martie 2010
A171: 2157 | B171: 22 04 2010 | C171: Turcu ap. 26 | D171: 221.3 | E171: chelt com luna martie 2010
A172: 2158 | B172: 22 04 2010 | C172: Creţeanu ap. 27 | D172: 80.46 | E172: chelt com luna martie 2010
A173: 2159 | B173: 22 04 2010 | C173: Zegreanu ap. 28 | D173: 251.06 | E173: chelt com luna martie 2010
A174: 2160 | B174: 22 04 2010 | C174: Şerban ap. 29 | D174: 318.85 | E174: chelt com luna martie 2010
A175: 2161 | B175: 22 04 2010 | C175: Mihăescu ap. 30 | D175: 308.93 | E175: chelt com luna martie 2010
A176: 2162 | B176: 22 04 2010 | C176: Pop R ap. 31 | D176: 280.21 | E176: chelt com luna martie 2010
A177: 2163 | B177: 22 04 2010 | C177: Lungu ap. 32 | D177: 56.54 | E177: chelt com luna martie 2010
A178: 2164 | B178: 22 04 2010 | C178: Mihuţ ap. 33 | D178: 338.61 | E178: chelt com luna martie 2010
A179: 2165 | B179: 22 04 2010 | C179: Postescu ap. 34 | D179: 68.48 | E179: chelt com luna martie 2010
A180: 2166 | B180: 22 04 2010 | C180: Goia ap. 35 | D180: 326.74 | E180: chelt com luna martie 2010
A181: 2167 | B181: 22 04 2010 | C181: Dodu ap. 36 | D181: 283.33 | E181: chelt com luna martie 2010
A182: 2168 | B182: 22 04 2010 | C182: Drăghici ap. 37 | D182: 46.43 | E182: chelt com luna martie 2010
A183: 2169 | B183: 22 04 2010 | C183: Néda ap. 38 | D183: 330.88 | E183: chelt com luna martie 2010
A184: 2170 | B184: 22 04 2010 | C184: Vornicescu ap. 39 | D184: 96.05 | E184: chelt com luna martie 2010
A185: 2171 | B185: 22 04 2010 | C185: Sparleanu ap. 40 | D185: 17.48 | E185: chelt com luna martie 2010
A186: 2172 | B186: 22 04 2010 | C186: Raboca ap. 41 | D186: 344.91 | E186: chelt com luna martie 2010
A187: 2173 | B187: 22 04 2010 | C187: Negru ap. 42 | D187: 74.51 | E187: chelt com luna martie 2010
A188: 2174 | B188: 22 04 2010 | C188: Roşescu ap. 43 | D188: 84.36 | E188: chelt com luna martie 2010
A189: 2175 | B189: 22 04 2010 | C189: Ursu ap. 44 | D189: 54.58 | E189: chelt com luna martie 2010
A190: 2176 | B190: 22 04 2010 | C190: Săcui ap. 45 | D190: 64.21 | E190: chelt com luna martie 2010
A191: 2177 | B191: 22 04 2010 | C191: Mărinceanu ap. 46 | D191: 344.24 | E191: chelt com luna martie 2010
A192: 2178 | B192: 22 04 2010 | C192: Ricean ap. 47 | D192: 54.99 | E192: chelt com luna martie 2010
A193: 2179 | B193: 22 04 2010 | C193: Sabo ap. 48 | D193: 234.9 | E193: chelt com luna martie 2010
A194: 2180 | B194: 22 04 2010 | C194: Câmpan ap. 49 | D194: 337.99 | E194: chelt com luna martie 2010
A195: 2181 | B195: 22 04 2010 | C195: Tudoran ap. 50 | D195: 507.31 | E195: chelt com luna martie 2010
A196: 2182 | B196: 22 04 2010 | C196: Ciubotariu ap. 51 | D196: 220.61 | E196: chelt com luna martie 2010
A197: 2183 | B197: 22 04 2010 | C197: Cristea ap. 52 | D197: 285.03 | E197: chelt com luna martie 2010
A198: 2184 | B198: 22 04 2010 | C198: Stănescu ap. 53 | D198: 292.46 | E198: chelt com luna martie 2010
A199: 2185 | B199: 22 04 2010 | C199: Dejeu ap. 54 | D199: 306.42 | E199: chelt com luna martie 2010
A200: 2186 | B200: 22 04 2010 | C200: Feşnic ap. 55 | D200: 490.51 | E200: chelt com luna martie 2010
... 940 more rows

Sheet chitante
A1: Asociatia de Proprietari sc I-VI | D1: CHITANTA Nr | G1: Asociatia de Proprietari sc I-VI | J1: CHITANTA Nr
A2: Cod Unic de Inregistrare 7112206 | D2: 3132 | G2: Cod Unic de Inregistrare 7112206
A3: Cluj-Napoca, aleea Baita nr 2 | G3: Cluj-Napoca, aleea Baita nr 2
A4: Cont RO12 CECE CJ01 34RO N010 0349 | D4: din 30 01 2011 | G4: Cont RO12 CECE CJ01 34RO N010 0349
A5: CEC Cluj-Napoca | G5: CEC Cluj-Napoca
A7: Am primit de la Gabor
A8: Adresa sc.1 ap 8
A9: Suma de 63,21 RON
A10: Adica saizecisitrei si 21/100
A11: Reprezentand chelt com luna
A14: Casier | G14: Casier
A16: Asociatia de Proprietari sc I-VI | D16: CHITANTA Nr | G16: Asociatia de Proprietari sc I-VI | J16: CHITANTA Nr
A17: Cod Unic de Inregistrare 7112206 | D17: 3133 | G17: Cod Unic de Inregistrare 7112206
A18: Cluj-Napoca, aleea Baita nr 2 | G18: Cluj-Napoca, aleea Baita nr 2
A19: Cont RO12 CECE CJ01 34RO N010 0349 | D19: din 30 01 2011 | G19: Cont RO12 CECE CJ01 34RO N010 0349
A20: CEC Cluj-Napoca | G20: CEC Cluj-Napoca
A22: Am primit de la Nebert
A23: Adresa sc.1 ap 13
A24: Suma de 79,9 RON
A25: Adica saptezecisinoua si 90/100
A26: Reprezentand chelt com luna
A29: Casier | G29: Casier
A31: Asociatia de Proprietari sc I-VI | D31: CHITANTA Nr | G31: Asociatia de Proprietari sc I-VI | J31: CHITANTA Nr
A32: Cod Unic de Inregistrare 7112206 | D32: 3134 | G32: Cod Unic de Inregistrare 7112206
A33: Cluj-Napoca, aleea Baita nr 2 | G33: Cluj-Napoca, aleea Baita nr 2
A34: Cont RO12 CECE CJ01 34RO N010 0349 | D34: din 30 01 2011 | G34: Cont RO12 CECE CJ01 34RO N010 0349
A35: CEC Cluj-Napoca | G35: CEC Cluj-Napoca
A37: Am primit de la Vescan
A38: Adresa sc.2 ap 16
A39: Suma de 108,17 RON
A40: Adica osutasiopt si 17/100
A41: Reprezentand chelt com luna
A44: Casier | G44: Casier
A46: Asociatia de Proprietari sc I-VI | D46: CHITANTA Nr | G46: Asociatia de Proprietari sc I-VI | J46: CHITANTA Nr
A47: Cod Unic de Inregistrare 7112206 | G47: Cod Unic de Inregistrare 7112206
A48: Cluj-Napoca, aleea Baita nr 2 | G48: Cluj-Napoca, aleea Baita nr 2
A49: Cont RO12 CECE CJ01 34RO N010 0349 | G49: Cont RO12 CECE CJ01 34RO N010 0349
A50: CEC Cluj-Napoca | G50: CEC Cluj-Napoca
A59: Casier | G59: Casier

Sheet d
A1: osuta | B1: zece | C1: unu | D1: unsprezece | F1: ianuarie | G1: 1 | H1: 105 | I1: bloc_2011.xlsm
A2: douasute | B2: douazeci | C2: doi | D2: doisprezece | F2: februarie | G2: 1.2 | H2: 110 | I2: archiva liste cheltuieli.xlsx
A3: treisute | B3: treizeci | C3: trei | D3: treisprezece | F3: martie | G3: 1.2 | H3: 110 | I3: viz_2011.xlsm
A4: patrusute | B4: patruzeci | C4: patru | D4: patrusprezece | F4: aprilie | G4: 1.2 | H4: 110
A5: cincisute | B5: cincizeci | C5: cinci | D5: cincisprezece | F5: mai | G5: 1.2 | H5: 110
A6: sasesute | B6: saizeci | C6: sase | D6: saisprezece | F6: iunie | G6: 1 | H6: 105
A7: saptesute | B7: saptezeci | C7: sapte | D7: saptesprezece | F7: iulie
A8: optsute | B8: optzeci | C8: opt | D8: optsprezece | F8: august
A9: nouasute | B9: nouzeci | C9: noua | D9: nouasprezece | F9: septembrie
F10: octombrie
F11: noiembrie
F12: decembrie

Sheet termoficare
A1: Cod abon | B1: 964
A3: suprafata totala | C3: =TOTAL!H2 -> 1693.82 | F3: =B7/C3 -> 0.03707595848
A4: Gcal citire | C4: 39.7492 | D4: =C4/C3 -> 0.0234671925 | F4: =C4*F3 -> 1.473739689
A5: pret Gcal | C5: 165
A6: ap | B6: supraf | C6: Gcal | D6: coeficient | E6: Gcal | F6: Valoare
A7: 48 | B7: 62.8 | C7: =D$4*B7 -> 1.473739689 | D7: 0.9 | E7: =C7*D7 -> 1.32636572 | F7: =E7*C$5 -> 218.8503438
A8: 50 | B8: 51 | C8: =D$4*B8 -> 1.196826817 | D8: 0.9 | E8: =C8*D8 -> 1.077144136 | F8: =E8*C$5 -> 177.7287824
A9: 64 | B9: 62.11 | C9: =D$4*B9 -> 1.457547326 | D9: 0.3 | E9: =C9*D9 -> 0.4372641978 | F9: =E9*C$5 -> 72.14859265
A10: 68 | B10: 48.77 | C10: =D$4*B10 -> 1.144494978 | D10: 0.9 | E10: =C10*D10 -> 1.03004548 | F10: =E10*C$5 -> 169.9575043
C11: =SUM(C7:C10) -> 5.272608811
A13: ap | B13: supraf
A14: 48 | B14: 62.8 | C14: =B14/C$3 -> 0.03707595848 | D14: =C$4*C14 -> 1.473739689
A15: 50 | B15: 51 | C15: =B15/C$3 -> 0.03010945673 | D15: =C$4*C15 -> 1.196826817
A16: 64 | B16: 62.11 | C16: =B16/C$3 -> 0.03666859525 | D16: =C$4*C16 -> 1.457547326
A17: 68 | B17: 48.77 | C17: =B17/C$3 -> 0.02879290598 | D17: =C$4*C17 -> 1.144494978
D18: =SUM(D14:D17) -> 5.272608811

Sheet stat
A1: Numele | B1: Functia | C1: Venit brut | D1: Impozit | E1: Fond de sanatate | F1: Rest de plata | G1: Semnatura
A2: Zegreanu Doina | B2: cenzor | C2: 70 | D2: =ROUND(C2*0.16,0) -> 11 | E2: 0 | F2: =C2-D2-E2 -> 59
A3: Suciu Emilia | B3: femeie de serviciu | C3: 500 | D3: =ROUND(C3*0.16,0) -> 80 | E3: 0 | F3: =C3-D3-E3 -> 420
A4: Szep Elena | B4: contabil | C4: 364 | D4: =ROUND(C4*0.16,0) -> 58 | E4: 0 | F4: =C4-D4-E4 -> 306
C5: =SUM(C2:C4) -> 934 | D5: =SUM(D2:D4) -> 149 | E5: =SUM(E2:E4) -> 0 | F5: =SUM(F2:F4) -> 785 | I5: =D5*3 -> 447
B9: Presedinte | D9: Pop Remus
B11: Sef Comisie de Cenzori | D11: Zegreanu Doina
B13: Contabil | D13: Szep Elena

Sheet fRU
E1: Suma
A2: Nr. Doc | B2: din | C2: Ap | D2: Explicatii | E2: Stabilita | F2: Incasata | G2: Restituita | I2: Restante | J2: =Rulm[[#Totals],[Stabilita]]-Rulm[[#Totals],[Incasata]] -> 1098.12
A3: A1 | C3: 1 | D3: Sold preluat in 2011 | E3: 70 | F3: 70
A4: A1 | C4: 2 | D4: Sold preluat in 2011 | E4: 50 | F4: 50
A5: A1 | C5: 3 | D5: Sold preluat in 2011 | E5: 330 | F5: 330
A6: A1 | C6: 4 | D6: Sold preluat in 2011 | E6: 50 | F6: 50
A7: A1 | C7: 5 | D7: Sold preluat in 2011 | E7: 570 | F7: 570
A8: A1 | C8: 6 | D8: Sold preluat in 2011 | E8: 390 | F8: 390
A9: A1 | C9: 7 | D9: Sold preluat in 2011 | E9: 260 | F9: 260
A10: A1 | C10: 8 | D10: Sold preluat in 2011 | E10: 40 | F10: 40
A11: A1 | C11: 9 | D11: Sold preluat in 2011 | E11: 80 | F11: 80
A12: A1 | C12: 10 | D12: Sold preluat in 2011 | E12: 50 | F12: 20
A13: A1 | C13: 11 | D13: Sold preluat in 2011 | E13: 40 | F13: 40
A14: A1 | C14: 12 | D14: Sold preluat in 2011 | E14: 450 | F14: 158.8
A15: A1 | C15: 13 | D15: Sold preluat in 2011 | E15: 60 | F15: 49.9
A16: A1 | C16: 14 | D16: Sold preluat in 2011 | E16: 50 | F16: 50
A17: A1 | C17: 15 | D17: Sold preluat in 2011 | E17: 59 | F17: 59
A18: A1 | C18: 16 | D18: Sold preluat in 2011 | E18: 60 | F18: 60
A19: A1 | C19: 17 | D19: Sold preluat in 2011 | E19: 430 | F19: 430
A20: A1 | C20: 18 | D20: Sold preluat in 2011 | E20: 60 | F20: 60
A21: A1 | C21: 19 | D21: Sold preluat in 2011 | E21: 80 | F21: 80
A22: A1 | C22: 20 | D22: Sold preluat in 2011 | E22: 40 | F22: 40
A23: A1 | C23: 21 | D23: Sold preluat in 2011 | E23: 60 | F23: 60
A24: A1 | C24: 22 | D24: Sold preluat in 2011 | E24: 60 | F24: 60
A25: A1 | C25: 23 | D25: Sold preluat in 2011 | E25: 40 | F25: 40
A26: A1 | C26: 23A | D26: Sold preluat in 2011 | E26: 60 | F26: 60
A27: A1 | C27: 24 | D27: Sold preluat in 2011 | E27: 70 | F27: 70
A28: A1 | C28: 25 | D28: Sold preluat in 2011 | E28: 60 | F28: 60
A29: A1 | C29: 26 | D29: Sold preluat in 2011 | E29: 570 | F29: 570
A30: A1 | C30: 27 | D30: Sold preluat in 2011 | E30: 70 | F30: 70
A31: A1 | C31: 28 | D31: Sold preluat in 2011 | E31: 450 | F31: 425
A32: A1 | C32: 29 | D32: Sold preluat in 2011 | E32: 470 | F32: 470
A33: A1 | C33: 30 | D33: Sold preluat in 2011 | E33: 440 | F33: 440
A34: A1 | C34: 31 | D34: Sold preluat in 2011 | E34: 430 | F34: 430
A35: A1 | C35: 32 | D35: Sold preluat in 2011 | E35: 80 | F35: 20
A36: A1 | C36: 33 | D36: Sold preluat in 2011 | E36: 490 | F36: 490
A37: A1 | C37: 34 | D37: Sold preluat in 2011 | E37: 60 | F37: 60
A38: A1 | C38: 35 | D38: Sold preluat in 2011 | E38: 490 | F38: 490
A39: A1 | C39: 36 | D39: Sold preluat in 2011 | E39: 420 | F39: 420
A40: A1 | C40: 37 | D40: Sold preluat in 2011 | E40: 40 | F40: 40
A41: A1 | C41: 38 | D41: Sold preluat in 2011 | E41: 470 | F41: 470
A42: A1 | C42: 39 | D42: Sold preluat in 2011 | E42: 60 | F42: 60
A43: A1 | C43: 40 | D43: Sold preluat in 2011 | E43: 60 | F43: 60
A44: A1 | C44: 41 | D44: Sold preluat in 2011 | E44: 520 | F44: 520
A45: A1 | C45: 42 | D45: Sold preluat in 2011 | E45: 80 | F45: 80
A46: A1 | C46: 43 | D46: Sold preluat in 2011 | E46: 70 | F46: 70
A47: A1 | C47: 44 | D47: Sold preluat in 2011 | E47: 50 | F47: 50
A48: A1 | C48: 45 | D48: Sold preluat in 2011 | E48: 60 | F48: 31
A49: A1 | C49: 46 | D49: Sold preluat in 2011 | E49: 480 | F49: 480
A50: A1 | C50: 47 | D50: Sold preluat in 2011 | E50: 60 | F50: 50
A51: A1 | C51: 48 | D51: Sold preluat in 2011 | E51: 220 | F51: 220
A52: A1 | C52: 49 | D52: Sold preluat in 2011 | E52: 470 | F52: 470
A53: A1 | C53: 50 | D53: Sold preluat in 2011 | E53: 510 | F53: 95
A54: A1 | C54: 51 | D54: Sold preluat in 2011 | E54: 530 | F54: 530
A55: A1 | C55: 52 | D55: Sold preluat in 2011 | E55: 440 | F55: 390
A56: A1 | C56: 53 | D56: Sold preluat in 2011 | E56: 540 | F56: 540
A57: A1 | C57: 54 | D57: Sold preluat in 2011 | E57: 520 | F57: 520
A58: A1 | C58: 55 | D58: Sold preluat in 2011 | E58: 620 | F58: 620
A59: A1 | C59: 56 | D59: Sold preluat in 2011 | E59: 470 | F59: 328
A60: A1 | C60: 57 | D60: Sold preluat in 2011 | E60: 340 | F60: 340
A61: A1 | C61: 58 | D61: Sold preluat in 2011 | E61: 30 | F61: 30
A62: A1 | C62: 59 | D62: Sold preluat in 2011 | E62: 320 | F62: 320
A63: A1 | C63: 60 | D63: Sold preluat in 2011 | E63: 40 | F63: 40
A64: A1 | C64: 61 | D64: Sold preluat in 2011 | E64: 60 | F64: 60
A65: A1 | C65: 62 | D65: Sold preluat in 2011 | E65: 60 | F65: 60
A66: A1 | C66: 63 | D66: Sold preluat in 2011 | E66: 60 | F66: 60
A67: A1 | C67: 64 | D67: Sold preluat in 2011 | E67: 500 | F67: 422
A68: A1 | C68: 65 | D68: Sold preluat in 2011 | E68: 70 | F68: 70
A69: A1 | C69: 66 | D69: Sold preluat in 2011 | E69: 60 | F69: 60
A70: A1 | C70: 67 | D70: Sold preluat in 2011 | E70: 40 | F70: 40
A71: A1 | C71: 68 | D71: Sold preluat in 2011 | E71: 340 | F71: 340
A72: A1 | C72: 69 | D72: Sold preluat in 2011 | E72: 90 | F72: 90
A73: A1 | C73: 70 | D73: Sold preluat in 2011 | E73: 80 | F73: 80
A74: 599 | B74: 2010-11-22 | C74: 15 | D74: FRU | F74: 14.06
A75: 599 | B75: 2010-11-24 | C75: 15 | D75: FRU | F75: 14.06
A76: 599 | B76: 2010-11-24 | C76: 15 | D76: FRU | F76: 14.06
A81: Total | E81: =SUBTOTAL(109,Rulm[Stabilita]) -> 15899 | F81: =SUBTOTAL(109,Rulm[Incasata]) -> 14800.88 | G81: =SUBTOTAL(103,Rulm[Restituita]) -> 0

Sheet fRE
E1: Suma
A2: Nr. Doc | B2: din | C2: Ap | D2: Explicatii | E2: Stabilita | F2: Incasata | G2: Cheltuita | I2: Restante | J2: =Repar[[#Totals],[Stabilita]]-Repar[[#Totals],[Incasata]] -> 1302.7
A3: A1 | C3: 1 | D3: Sold preluat in 2011 | E3: 177 | F3: 177
A4: A1 | C4: 2 | D4: Sold preluat in 2011 | E4: 169.5 | F4: 80.22
A5: A1 | C5: 3 | D5: Sold preluat in 2011 | E5: 168 | F5: 168
A6: A1 | C6: 4 | D6: Sold preluat in 2011 | E6: 216 | F6: 216
A7: A1 | C7: 5 | D7: Sold preluat in 2011 | E7: 219 | F7: 219
A8: A1 | C8: 6 | D8: Sold preluat in 2011 | E8: 169.5 | F8: 169.5
A9: A1 | C9: 7 | D9: Sold preluat in 2011 | E9: 216 | F9: 216
A10: A1 | C10: 8 | D10: Sold preluat in 2011 | E10: 219 | F10: 129.8
A11: A1 | C11: 9 | D11: Sold preluat in 2011 | E11: 169.5 | F11: 169.5
A12: A1 | C12: 10 | D12: Sold preluat in 2011 | E12: 216 | F12: 216
A13: A1 | C13: 11 | D13: Sold preluat in 2011 | E13: 219 | F13: 219
A14: A1 | C14: 12 | D14: Sold preluat in 2011 | E14: 166.5 | F14: 166.5
A15: A1 | C15: 13 | D15: Sold preluat in 2011 | E15: 216 | F15: 216
A16: A1 | C16: 14 | D16: Sold preluat in 2011 | E16: 219 | F16: 219
A17: A1 | C17: 15 | D17: Sold preluat in 2011 | E17: 169.5 | F17: 169.5
A18: A1 | C18: 16 | D18: Sold preluat in 2011 | E18: 213 | F18: 213
A19: A1 | C19: 17 | D19: Sold preluat in 2011 | E19: 216 | F19: 216
A20: A1 | C20: 18 | D20: Sold preluat in 2011 | E20: 216 | F20: 216
A21: A1 | C21: 19 | D21: Sold preluat in 2011 | E21: 247.5 | F21: 247.5
A22: A1 | C22: 20 | D22: Sold preluat in 2011 | E22: 216 | F22: 216
A23: A1 | C23: 21 | D23: Sold preluat in 2011 | E23: 250.5 | F23: 250.5
A24: A1 | C24: 22 | D24: Sold preluat in 2011 | E24: 216 | F24: 216
A25: A1 | C25: 23 | D25: Sold preluat in 2011 | E25: 250.5 | F25: 250.5
A26: A1 | C26: 23A | D26: Sold preluat in 2011 | E26: 0 | F26: 0
A27: A1 | C27: 24 | D27: Sold preluat in 2011 | E27: 216 | F27: 216
A28: A1 | C28: 25 | D28: Sold preluat in 2011 | E28: 250.5 | F28: 250.5
A29: A1 | C29: 26 | D29: Sold preluat in 2011 | E29: 219 | F29: 219
A30: A1 | C30: 27 | D30: Sold preluat in 2011 | E30: 219 | F30: 219
A31: A1 | C31: 28 | D31: Sold preluat in 2011 | E31: 216 | F31: 142.45
A32: A1 | C32: 29 | D32: Sold preluat in 2011 | E32: 250.5 | F32: 250.5
A33: A1 | C33: 30 | D33: Sold preluat in 2011 | E33: 216 | F33: 216
A34: A1 | C34: 31 | D34: Sold preluat in 2011 | E34: 247.5 | F34: 247.5
A35: A1 | C35: 32 | D35: Sold preluat in 2011 | E35: 216 | F35: 87.45
A36: A1 | C36: 33 | D36: Sold preluat in 2011 | E36: 250.5 | F36: 129.27
A37: A1 | C37: 34 | D37: Sold preluat in 2011 | E37: 216 | F37: 216
A38: A1 | C38: 35 | D38: Sold preluat in 2011 | E38: 250.5 | F38: 250.5
A39: A1 | C39: 36 | D39: Sold preluat in 2011 | E39: 216 | F39: 216
A40: A1 | C40: 37 | D40: Sold preluat in 2011 | E40: 169.5 | F40: 169.5
A41: A1 | C41: 38 | D41: Sold preluat in 2011 | E41: 216 | F41: 216
A42: A1 | C42: 39 | D42: Sold preluat in 2011 | E42: 250.5 | F42: 250.5
A43: A1 | C43: 40 | D43: Sold preluat in 2011 | E43: 216 | F43: 216
A44: A1 | C44: 41 | D44: Sold preluat in 2011 | E44: 247.5 | F44: 247.5
A45: A1 | C45: 42 | D45: Sold preluat in 2011 | E45: 216 | F45: 216
A46: A1 | C46: 43 | D46: Sold preluat in 2011 | E46: 250.5 | F46: 250.5
A47: A1 | C47: 44 | D47: Sold preluat in 2011 | E47: 216 | F47: 216
A48: A1 | C48: 45 | D48: Sold preluat in 2011 | E48: 250.5 | F48: 189.87
A49: A1 | C49: 46 | D49: Sold preluat in 2011 | E49: 216 | F49: 216
A50: A1 | C50: 47 | D50: Sold preluat in 2011 | E50: 217.5 | F50: 73.88
A51: A1 | C51: 48 | D51: Sold preluat in 2011 | E51: 216 | F51: 216
A52: A1 | C52: 49 | D52: Sold preluat in 2011 | E52: 247.5 | F52: 247.5
A53: A1 | C53: 50 | D53: Sold preluat in 2011 | E53: 216 | F53: 216
A54: A1 | C54: 51 | D54: Sold preluat in 2011 | E54: 250.5 | F54: 250.5
A55: A1 | C55: 52 | D55: Sold preluat in 2011 | E55: 216 | F55: 188.95
A56: A1 | C56: 53 | D56: Sold preluat in 2011 | E56: 250.5 | F56: 250.5
A57: A1 | C57: 54 | D57: Sold preluat in 2011 | E57: 216 | F57: 216
A58: A1 | C58: 55 | D58: Sold preluat in 2011 | E58: 250.5 | F58: 250.5
A59: A1 | C59: 56 | D59: Sold preluat in 2011 | E59: 169.5 | F59: 169.5
A60: A1 | C60: 57 | D60: Sold preluat in 2011 | E60: 169.5 | F60: 169.5
A61: A1 | C61: 58 | D61: Sold preluat in 2011 | E61: 177 | F61: -37.14
A62: A1 | C62: 59 | D62: Sold preluat in 2011 | E62: 169.5 | F62: 169.5
A63: A1 | C63: 60 | D63: Sold preluat in 2011 | E63: 219 | F63: 84.8
A64: A1 | C64: 61 | D64: Sold preluat in 2011 | E64: 216 | F64: 216
A65: A1 | C65: 62 | D65: Sold preluat in 2011 | E65: 169.5 | F65: 169.5
A66: A1 | C66: 63 | D66: Sold preluat in 2011 | E66: 219 | F66: 219
A67: A1 | C67: 64 | D67: Sold preluat in 2011 | E67: 216 | F67: 88.45
A68: A1 | C68: 65 | D68: Sold preluat in 2011 | E68: 169.5 | F68: 169.5
A69: A1 | C69: 66 | D69: Sold preluat in 2011 | E69: 219 | F69: 219
A70: A1 | C70: 67 | D70: Sold preluat in 2011 | E70: 216 | F70: 216
A71: A1 | C71: 68 | D71: Sold preluat in 2011 | E71: 169.5 | F71: 55.22
A72: A1 | C72: 69 | D72: Sold preluat in 2011 | E72: 219 | F72: 84.8
A73: A1 | C73: 70 | D73: Sold preluat in 2011 | E73: 216 | F73: 134.47
A74: 165 | B74: 2010-11-11 | C74: 10 | D74: Fre | F74: 16.03
A75: 165 | B75: 2010-11-11 | C75: 10 | D75: Fre | F75: 16.03
A77: Total | E77: =SUBTOTAL(109,Repar[Stabilita]) -> 11637 | F77: =SUBTOTAL(109,Repar[Incasata]) -> 10334.3 | G77: =SUBTOTAL(103,Repar[Cheltuita]) -> 0

Sheet penal
A1: Nr doc | B1: din | C1: Ap | D1: Incasat | E1: Cheltuit | F1: Explicatii
A2: 682 | B2: 2008-02-09 | C2: 50 | D2: 25
A3: 692 | B3: 2008-04-25 | C3: 26 | D3: 27
A4: 693 | B4: 2008-05-06 | C4: 27 | D4: 1.87
A5: 719 | B5: 2008-08-29 | C5: 50 | D5: 93.6
A6: 725 | B6: 2008-10-02 | C6: 50 | D6: 29.26
A7: 727 | B7: 2008-10-09 | C7: 9 | D7: 5.58
A8: 4 | B8: 2009-01-07 | C8: 50 | D8: 39.37
A9: 6 | B9: 2009-01-20 | C9: 2 | D9: 7.47
A10: 7 | B10: 2009-02-17 | C10: 50 | D10: 8
A11: 10 | B11: 2009-03-17 | C11: 26 | D11: 23.9
A12: 38 | B12: 2009-05-20 | C12: 50 | D12: 80.91
A13: 64 | B13: 2009-06-22 | C13: 27 | D13: 29.2
A14: 101 | B14: 2009-09-11 | C14: 9 | D14: 8.1
A15: 104 | B15: 2009-09-16 | C15: 26 | D15: 143.01
A16: 105 | B16: 2009-09-16 | C16: 26 | D16: 2.02
A17: 120 | B17: 2009-11-23 | C17: 50 | D17: 96
A18: 125 | B18: 2009-12-15 | C18: 1 | D18: 14.3
A19: 251 | B19: 2010-01-22 | C19: 50 | D19: 69.74
A20: 144 | B20: 2010-03-02 | C20: 50 | D20: 98.09
A21: 261 | B21: 2010-04-21 | C21: 50 | D21: 79.11
A22: 266 | B22: 2010-05-19 | C22: 50 | D22: 156.67
A23: 283 | B23: 2010-08-04 | C23: 50 | D23: 67.22
A24: 153 | B24: 2010-09-27 | C24: 50 | D24: 168.91
A25: 163 | B25: 2010-11-24 | C25: 50 | D25: 86.17
A26: 157 | B26: 2010-11-16 | C26: 9 | D26: 3.2
A27: 155 | B27: 2010-11-21 | C27: 9 | D27: 1.05
A40: Total | D40: =SUBTOTAL(109,Penal[Incasat]) -> 1364.75

Sheet RegJurnal
C1: Document primar | G1: Numerar | I1: Banca
A2: Nr crt | B2: Data inreg | C2: Tip doc | D2: Nr doc | E2: din | F2: Explicatii | G2: Incasari | H2: Plati | I2: Incasari | J2: Plati | K2: TOTAL
F3: Report
A4: 1 | B4: 2010-01-02 | C4: SP | D4: 1 | E4: =B4 -> 2010-01-02 | F4: Stat de plata dec 2009 | H4: 781 | K4: =G4+H4+I4+J4 -> 781
A5: =A4+1 -> 2 | B5: 2010-01-04 | C5: BF | D5: 180 | E5: 2010-01-04 | F5: Dulie | H5: 18 | K5: =G5+H5+I5+J5 -> 18
A6: =A5+1 -> 3 | B6: 2010-01-05 | C6: BF | D6: 116 | E6: 2010-01-05 | F6: Lacat | H6: 1.4 | K6: 1.4
A7: 4 | B7: 2010-01-06 | C7: CH | D7: 3345428 | E7: 2010-01-06 | F7: Impozit venit | H7: 447 | K7: 447
A8: 5 | B8: 2010-01-06 | C8: BF | D8: 6 | E8: 2010-01-06 | F8: Lacat | H8: 7 | K8: 7
A9: 6 | B9: 2010-01-06 | C9: BF | D9: 60 | E9: 2010-01-06 | F9: Piulita, burghiu, lacat | H9: 29.4 | K9: 29.4
A10: 7 | B10: 2010-01-07 | C10: BF | D10: 9 | E10: 2010-01-07 | F10: Lacat | H10: 7 | K10: 7
A11: 8 | B11: 2010-01-08 | C11: BF | D11: 70 | E11: 2010-01-08 | F11: Burghiu, lacat | H11: 20.3 | K11: 20.3
A12: 9 | B12: 2010-01-09 | C12: DP | D12: 1 | E12: 2010-01-09 | F12: Maturi nuiele Bercea Ioan | H12: 20 | K12: 20
A13: 10 | B13: 2010-01-09 | C13: CH | E13: 2010-01-09 | F13: Salubritate | H13: 852 | K13: 852
A14: 11 | B14: 2010-01-14 | C14: CH | D14: 1060771 | E14: 2010-01-14 | F14: Apa canal | H14: 2373.96 | K14: 2373.96
A15: 12 | B15: 2010-01-15 | C15: CH | D15: 6501 | E15: 2010-01-15 | F15: Electrica sc 1 | H15: 16.64 | K15: 16.64
A16: 13 | B16: 2010-01-15 | C16: CH | D16: 6601 | E16: 2010-01-15 | F16: Electrica sc 2 | H16: 12.09 | K16: 12.09
A17: 14 | B17: 2010-01-15 | C17: CH | D17: 6701 | E17: 2010-01-15 | F17: Electrica sc 3 | H17: 25.7 | K17: 25.7
A18: 15 | B18: 2010-01-15 | C18: CH | D18: 9701 | E18: 2010-01-15 | F18: Electrica sc 4 | H18: 8.09 | K18: 8.09
A19: 16 | B19: 2010-01-15 | C19: CH | D19: 9801 | E19: 2010-01-15 | F19: Electrica sc 5 | H19: 11.58 | K19: 11.58
A20: 17 | B20: 2010-01-15 | C20: CH | D20: 9901 | E20: 2010-01-15 | F20: Electrica sc 6 | H20: 7.06 | K20: 7.06
A21: 18 | B21: 2010-01-20 | C21: DP | D21: 1 | E21: 2010-01-20 | F21: Reparatii electrice Ladanyi Bela | H21: 15 | K21: 15
A22: 19 | B22: 2010-01-20 | C22: CH | D22: 136 | E22: 2010-01-20 | F22: Crisan ap 14 FREP | G22: 30 | K22: 30
A23: 20 | B23: 2010-01-20 | C23: CH | D23: 137 | E23: 2010-01-20 | F23: Bara ap 6 CH | G23: 241.27 | K23: 241.27
A24: 21 | B24: 2010-01-21 | C24: CH | D24: 97811 | E24: 2010-01-21 | F24: Gaz | H24: 228 | K24: 228
A25: 22 | B25: 2010-01-21 | C25: CH | D25: 123201 | E25: 2010-01-21 | F25: Termoficare | H25: 9741.42 | K25: 9741.42
A26: 23 | B26: 2010-01-21 | C26: CH | D26: 138 | E26: 2010-01-21 | F26: Vornicescu ap 39 CH | G26: 182.16 | K26: 182.16
A27: 24 | B27: 2010-01-21 | C27: CH | D27: 139 | E27: 2010-01-21 | F27: Farcas ap 58 CH | G27: 40.4 | K27: 40.4
A28: 25 | B28: 2010-01-22 | C28: CH | D28: 251 | E28: 2010-01-22 | F28: Tudoran ap 50 CH | G28: 315 | K28: 315
A29: 26 | B29: 2010-01-22 | C29: CH | D29: 1918 | E29: 2010-01-22 | F29: Csapo ap. 1 | G29: 18.46 | K29: 18.46
A30: 27 | B30: 2010-01-22 | C30: CH | D30: 1919 | E30: 2010-01-22 | F30: Bugnar ap. 2 | G30: 38.21 | K30: 38.21
A31: 28 | B31: 2010-01-22 | C31: CH | D31: 1920 | E31: 2010-01-22 | F31: Tunyogi ap. 3 | G31: 337.06 | K31: 337.06
A32: 29 | B32: 2010-01-22 | C32: CH | D32: 1921 | E32: 2010-01-22 | F32: Garbou ap. 4 | G32: 29.34 | K32: 29.34
A33: 30 | B33: 2010-01-22 | C33: CH | D33: 1922 | E33: 2010-01-22 | F33: Szép ap. 5 | G33: 549.36 | K33: 549.36
A34: 31 | B34: 2010-01-22 | C34: CH | D34: 1923 | E34: 2010-01-22 | F34: Bara ap. 6 | G34: 334.11 | K34: 334.11
A35: 32 | B35: 2010-01-22 | C35: CH | D35: 1924 | E35: 2010-01-22 | F35: Colceriu ap. 7 | G35: 227.58 | K35: 227.58
A36: 33 | B36: 2010-01-22 | C36: CH | D36: 1925 | E36: 2010-01-22 | F36: Gabor ap. 8 | G36: 29.42 | K36: 29.42
A37: 34 | B37: 2010-01-22 | C37: CH | D37: 1926 | E37: 2010-01-22 | F37: Neamţ ap. 9 | G37: 57.73 | K37: 57.73
A38: 35 | B38: 2010-01-22 | C38: CH | D38: 1927 | E38: 2010-01-22 | F38: Micşunescu ap. 10 | G38: 49.14 | K38: 49.14
A39: 36 | B39: 2010-01-22 | C39: CH | D39: 1928 | E39: 2010-01-22 | F39: Jugrestan ap. 11 | G39: 41.3 | K39: 41.3
A40: 37 | B40: 2010-01-22 | C40: CH | D40: 1929 | E40: 2010-01-22 | F40: Tárkányi ap. 12 | G40: 393.03 | K40: 393.03
A41: 38 | B41: 2010-01-22 | C41: CH | D41: 1930 | E41: 2010-01-22 | F41: Nebert ap. 13 | G41: 45.18 | K41: 45.18
A42: 39 | B42: 2010-01-22 | C42: CH | D42: 1931 | E42: 2010-01-22 | F42: Crişan ap. 14 | G42: 76.51 | K42: 76.51
A43: 40 | B43: 2010-01-22 | C43: CH | D43: 1932 | E43: 2010-01-22 | F43: Lazăr ap. 15 | G43: 61.74 | K43: 61.74
A44: 41 | B44: 2010-01-22 | C44: CH | D44: 1933 | E44: 2010-01-22 | F44: Vescan ap. 16 | G44: 47.74 | K44: 47.74
A45: 42 | B45: 2010-01-22 | C45: CH | D45: 1934 | E45: 2010-01-22 | F45: Mihăescu ap. 17 | G45: 413.48 | K45: 413.48
A46: 43 | B46: 2010-01-22 | C46: CH | D46: 1935 | E46: 2010-01-22 | F46: Pop T ap. 18 | G46: 91.5 | K46: 91.5
A47: 44 | B47: 2010-01-22 | C47: CH | D47: 1936 | E47: 2010-01-22 | F47: Mureşan I ap. 19 | G47: 89.87 | K47: 89.87
A48: 45 | B48: 2010-01-22 | C48: CH | D48: 1937 | E48: 2010-01-22 | F48: Ibbison ap. 20 | G48: 59.82 | K48: 59.82
A49: 46 | B49: 2010-01-22 | C49: CH | D49: 1938 | E49: 2010-01-22 | F49: Kállai ap. 21 | G49: 86.13 | K49: 86.13
A50: 47 | B50: 2010-01-22 | C50: CH | D50: 1939 | E50: 2010-01-22 | F50: Indolean ap. 22 | G50: 71.7 | K50: 71.7
A51: 48 | B51: 2010-01-22 | C51: CH | D51: 1940 | E51: 2010-01-22 | F51: Mureşan E ap. 23 | G51: 55.18 | K51: 55.18
A52: 49 | B52: 2010-01-22 | C52: CH | D52: 1941 | E52: 2010-01-22 | F52: Stanimir ap. 23A | G52: 82.19 | K52: 82.19
A53: 50 | B53: 2010-01-22 | C53: CH | D53: 1942 | E53: 2010-01-22 | F53: Cheţan ap. 24 | G53: 87.41 | K53: 87.41
A54: 51 | B54: 2010-01-22 | C54: CH | D54: 1943 | E54: 2010-01-22 | F54: Călin ap. 25 | G54: 74.25 | K54: 74.25
A55: 52 | B55: 2010-01-22 | C55: CH | D55: 1944 | E55: 2010-01-22 | F55: Turcu ap. 26 | G55: 321.76 | K55: 321.76
A56: 53 | B56: 2010-01-22 | C56: CH | D56: 1945 | E56: 2010-01-22 | F56: Creţeanu ap. 27 | G56: 120.21 | K56: 120.21
A57: 54 | B57: 2010-01-22 | C57: CH | D57: 1946 | E57: 2010-01-22 | F57: Zegreanu ap. 28 | G57: 373.42 | K57: 373.42
A58: 55 | B58: 2010-01-22 | C58: CH | D58: 1947 | E58: 2010-01-22 | F58: Şerban ap. 29 | G58: 453.51 | K58: 453.51
A59: 56 | B59: 2010-01-22 | C59: CH | D59: 1948 | E59: 2010-01-22 | F59: Mihăescu ap. 30 | G59: 414.29 | K59: 414.29
A60: 57 | B60: 2010-01-22 | C60: CH | D60: 1949 | E60: 2010-01-22 | F60: Pop R ap. 31 | G60: 385.38 | K60: 385.38
A61: 58 | B61: 2010-01-22 | C61: CH | D61: 1950 | E61: 2010-01-22 | F61: Lungu ap. 32 | G61: 80.53 | K61: 80.53
A62: 59 | B62: 2010-01-22 | C62: CH | D62: 1951 | E62: 2010-01-22 | F62: Mihuţ ap. 33 | G62: 478.11 | K62: 478.11
A63: 60 | B63: 2010-01-22 | C63: CH | D63: 1952 | E63: 2010-01-22 | F63: Postescu ap. 34 | G63: 76.57 | K63: 76.57
A64: 61 | B64: 2010-01-22 | C64: CH | D64: 1953 | E64: 2010-01-22 | F64: Goia ap. 35 | G64: 459.87 | K64: 459.87
A65: 62 | B65: 2010-01-22 | C65: CH | D65: 1954 | E65: 2010-01-22 | F65: Dodu ap. 36 | G65: 472.74 | K65: 472.74
A66: 63 | B66: 2010-01-22 | C66: CH | D66: 1955 | E66: 2010-01-22 | F66: Drăghici ap. 37 | G66: 111.37 | K66: 111.37
A67: 64 | B67: 2010-01-22 | C67: CH | D67: 1956 | E67: 2010-01-22 | F67: Néda ap. 38 | G67: 501.3 | K67: 501.3
A68: 65 | B68: 2010-01-22 | C68: CH | D68: 1957 | E68: 2010-01-22 | F68: Vornicescu ap. 39 | G68: 137.52 | K68: 137.52
A69: 66 | B69: 2010-01-22 | C69: CH | D69: 1958 | E69: 2010-01-22 | F69: Sparleanu ap. 40 | G69: 134.92 | K69: =G69+H69+I69+J69 -> 134.92
A70: =A69+1 -> 67 | B70: 2010-01-22 | C70: CH | D70: 1959 | E70: 2010-01-22 | F70: Raboca ap. 41 | G70: 559.7 | K70: 559.7
A71: 68 | B71: 2010-01-22 | C71: CH | D71: 1960 | E71: 2010-01-22 | F71: Negru ap. 42 | G71: 154.72 | K71: 154.72
A72: 69 | B72: 2010-01-22 | C72: CH | D72: 1961 | E72: 2010-01-22 | F72: Roşescu ap. 43 | G72: 171.87 | K72: 171.87
A73: 70 | B73: 2010-01-22 | C73: CH | D73: 1962 | E73: 2010-01-22 | F73: Ursu ap. 44 | G73: 119.03 | K73: 119.03
A74: 71 | B74: 2010-01-22 | C74: CH | D74: 1963 | E74: 2010-01-22 | F74: Săcui ap. 45 | G74: 141.48 | K74: 141.48
A75: 72 | B75: 2010-01-22 | C75: CH | D75: 1964 | E75: 2010-01-22 | F75: Mărinceanu ap. 46 | G75: 464.31 | K75: 464.31
A76: 73 | B76: 2010-01-22 | C76: CH | D76: 1965 | E76: 2010-01-22 | F76: Ricean ap. 47 | G76: 79.49 | K76: 79.49
A77: 74 | B77: 2010-01-22 | C77: CH | D77: 1966 | E77: 2010-01-22 | F77: Sabo ap. 48 | G77: 210.35 | K77: 210.35
A78: 75 | B78: 2010-01-22 | C78: CH | D78: 1967 | E78: 2010-01-22 | F78: Câmpan ap. 49 | G78: 449.57 | K78: 449.57
A79: 76 | B79: 2010-01-22 | C79: CH | D79: 1969 | E79: 2010-01-22 | F79: Conon ap. 51 | G79: 378.86 | K79: 378.86
A80: 77 | B80: 2010-01-22 | C80: CH | D80: 1970 | E80: 2010-01-22 | F80: Cristea ap. 52 | G80: 398.73 | K80: 398.73
A81: 78 | B81: 2010-01-22 | C81: CH | D81: 1971 | E81: 2010-01-22 | F81: Stănescu ap. 53 | G81: 405.49 | K81: 405.49
A82: 79 | B82: 2010-01-22 | C82: CH | D82: 1972 | E82: 2010-01-22 | F82: Dejeu ap. 54 | G82: 415.57 | K82: 415.57
A83: 80 | B83: 2010-01-22 | C83: CH | D83: 1973 | E83: 2010-01-22 | F83: Feşnic ap. 55 | G83: 599.08 | K83: 599.08
A84: 81 | B84: 2010-01-22 | C84: CH | D84: 1975 | E84: 2010-01-22 | F84: Baras A ap. 57 | G84: 283.85 | K84: 283.85
A85: 82 | B85: 2010-01-22 | C85: CH | D85: 1977 | E85: 2010-01-22 | F85: Bagaméri ap. 59 | G85: 295.21 | K85: 295.21
A86: 83 | B86: 2010-01-22 | C86: CH | D86: 1978 | E86: 2010-01-22 | F86: Cristovici ap. 60 | G86: 49.06 | K86: 49.06
A87: 84 | B87: 2010-01-22 | C87: CH | D87: 1979 | E87: 2010-01-22 | F87: Trifoiu ap. 61 | G87: 103.43 | K87: 103.43
A88: 85 | B88: 2010-01-22 | C88: CH | D88: 1980 | E88: 2010-01-22 | F88: Fabian ap. 62 | G88: 77.16 | K88: 77.16
A89: 86 | B89: 2010-01-22 | C89: CH | D89: 1981 | E89: 2010-01-22 | F89: Fărăgău ap. 63 | G89: 76.34 | K89: 76.34
A90: 87 | B90: 2010-01-22 | C90: CH | D90: 1982 | E90: 2010-01-22 | F90: Rus ap. 64 | G90: 351.07 | K90: 351.07
A91: 88 | B91: 2010-01-22 | C91: CH | D91: 1983 | E91: 2010-01-22 | F91: Pop ap. 65 | G91: 135.67 | K91: 135.67
A92: 89 | B92: 2010-01-22 | C92: CH | D92: 1984 | E92: 2010-01-22 | F92: Bejan ap. 66 | G92: 80.3 | K92: 80.3
A93: 90 | B93: 2010-01-22 | C93: CH | D93: 1985 | E93: 2010-01-22 | F93: Moga ap. 67 | G93: 20.69 | K93: 20.69
A94: 91 | B94: 2010-01-22 | C94: CH | D94: 1986 | E94: 2010-01-22 | F94: Legian ap. 68 | G94: 180.72 | K94: 180.72
A95: 92 | B95: 2010-01-22 | C95: CH | D95: 1987 | E95: 2010-01-22 | F95: Mocanu ap. 69 | G95: 142.77 | K95: 142.77
A96: 93 | B96: 2010-01-22 | C96: CH | D96: 1988 | E96: 2010-01-22 | F96: Pop C. ap. 70 | G96: 114.87 | K96: 114.87
A97: 94 | B97: 2010-01-23 | C97: CH | D97: 140 | E97: =B97 -> 2010-01-23 | F97: Csapo ap 1 CH | G97: 132.67 | K97: 132.67
A98: 95 | B98: 2010-01-25 | C98: CH | D98: 3008 | E98: =B98 -> 2010-01-25 | F98: Interfon sc 4 | H98: 400 | K98: 400
A99: 96 | B99: 2010-01-25 | C99: BF | E99: =B99 -> 2010-01-25 | F99: Anunt condoleante | H99: 12.5 | K99: 12.5
A100: 97 | B100: 2010-01-26 | C100: BF | D100: 795 | E100: =B100 -> 2010-01-26 | F100: Coroana | H100: 40 | K100: 40
A101: 98 | B101: 2010-01-31 | C101: EX | D101: 1 | E101: 2010-01-31 | F101: Dobanda | G101: 0 | H101: 0 | I101: 0.1 | K101: 0.1
G102: =SUM(G4:G101) -> 15369.83 | H102: =SUM(H4:H101) -> 15075.14 | I102: =SUM(I4:I101) -> 0.1 | K102: =SUM(K4:K101) -> 30445.07
F103: De reportat | G103: =K102 -> 30445.07
B105: Intocmit
F109: Report | K109: =G103 -> 30445.07
A110: 1 | B110: 2010-02-01 | C110: SP | E110: =B110 -> 2010-02-01 | F110: Stat de plata ian | H110: 781 | K110: =G110+H110+I110+J110 -> 781
A111: =A110+1 -> 2 | B111: 2010-02-02 | C111: CH | D111: 141 | E111: 2010-02-02 | F111: Ibbison ap 20 CH | G111: 45.24 | K111: 45.24
A112: 3 | B112: 2010-02-02 | C112: CH | D112: 1081260 | E112: 2010-02-02 | F112: Salubritate | H112: 779.34 | K112: 779.34
A113: 4 | B113: 2010-02-10 | C113: EX | D113: 1 | E113: 2010-02-10 | F113: Dobanda | G113: 0 | I113: 196.35 | K113: 196.35
A114: 5 | B114: 2010-02-19 | C114: DP | D114: 1 | E114: 2010-02-19 | F114: Zegreanu restituit CASS | H114: 52 | K114: 52
A115: 6 | B115: 2010-02-22 | C115: CH | D115: 1318116 | E115: 2010-02-22 | F115: Apa canal | H115: 2209.21 | K115: 2209.21
A116: 7 | B116: 2010-02-22 | C116: CH | D116: 6501 | E116: 2010-02-22 | F116: Electrica sc 1 | H116: 26.75 | K116: 26.75
A117: 8 | B117: 2010-02-22 | C117: CH | D117: 6601 | E117: 2010-02-22 | F117: Electrica sc 2 | H117: 11.43 | K117: 11.43
A118: 9 | B118: 2010-02-22 | C118: CH | D118: 9801 | E118: 2010-02-22 | F118: Electrica sc 5 | H118: 27.69 | K118: 27.69
A119: 10 | B119: 2010-02-22 | C119: CH | D119: 9901 | E119: 2010-02-22 | F119: Electrica sc 6 | H119: 16.4 | K119: 16.4
A120: 11 | B120: 2010-02-22 | C120: CH | D120: 142 | E120: 2010-02-22 | F120: Dodu ap 36 FREP | G120: 50 | K120: 50
A121: 12 | B121: 2010-02-24 | C121: CH | D121: 224 | E121: 2010-02-24 | F121: Termoficare | H121: 10353.46 | K121: 10353.46
A122: 13 | B122: 2010-02-24 | C122: CH | D122: 98643 | E122: 2010-02-24 | F122: Gaz | H122: 302 | K122: 302
A123: 14 | B123: 2010-02-24 | C123: CH | D123: 1989 | E123: 2010-02-24 | F123: Csapo ap. 1 | G123: 19.52 | K123: 19.52
A124: 15 | B124: 2010-02-24 | C124: CH | D124: 1990 | E124: 2010-02-24 | F124: Bugnar ap. 2 | G124: 56.55 | K124: 56.55
A125: 16 | B125: 2010-02-24 | C125: CH | D125: 1991 | E125: 2010-02-24 | F125: Tunyogi ap. 3 | G125: 329.76 | K125: 329.76
A126: 17 | B126: 2010-02-24 | C126: CH | D126: 1992 | E126: 2010-02-24 | F126: Garbou ap. 4 | G126: 22.08 | K126: 22.08
A127: 18 | B127: 2010-02-24 | C127: CH | D127: 1993 | E127: 2010-02-24 | F127: Szép ap. 5 | G127: 524.06 | K127: 524.06
A128: 19 | B128: 2010-02-24 | C128: CH | D128: 1994 | E128: 2010-02-24 | F128: Bara ap. 6 | G128: 330.82 | K128: 330.82
A129: 20 | B129: 2010-02-24 | C129: CH | D129: 1995 | E129: 2010-02-24 | F129: Colceriu ap. 7 | G129: 246.47 | K129: 246.47
A130: 21 | B130: 2010-02-24 | C130: CH | D130: 1996 | E130: 2010-02-24 | F130: Gabor ap. 8 | G130: 32.41 | K130: 32.41
A131: 22 | B131: 2010-02-24 | C131: CH | D131: 1997 | E131: 2010-02-24 | F131: Neamţ ap. 9 | G131: 66.17 | K131: 66.17
A132: 23 | B132: 2010-02-24 | C132: CH | D132: 1998 | E132: 2010-02-24 | F132: Micşunescu ap. 10 | G132: 44.04 | K132: 44.04
A133: 24 | B133: 2010-02-24 | C133: CH | D133: 1999 | E133: 2010-02-24 | F133: Jugrestan ap. 11 | G133: 44.11 | K133: 44.11
A134: 25 | B134: 2010-02-24 | C134: CH | D134: 2000 | E134: 2010-02-24 | F134: Tárkányi ap. 12 | G134: 380.33 | K134: 380.33
A135: 26 | B135: 2010-02-24 | C135: CH | D135: 2001 | E135: 2010-02-24 | F135: Nebert ap. 13 | G135: 40.14 | K135: 40.14
A136: 27 | B136: 2010-02-24 | C136: CH | D136: 2002 | E136: 2010-02-24 | F136: Crişan ap. 14 | G136: 61.38 | K136: 61.38
A137: 28 | B137: 2010-02-24 | C137: CH | D137: 2003 | E137: 2010-02-24 | F137: Lazăr ap. 15 | G137: 62.33 | K137: 62.33
A138: 29 | B138: 2010-02-24 | C138: CH | D138: 2004 | E138: 2010-02-24 | F138: Vescan ap. 16 | G138: 42.83 | K138: 42.83
A139: 30 | B139: 2010-02-24 | C139: CH | D139: 2005 | E139: 2010-02-24 | F139: Mihăescu ap. 17 | G139: 428.92 | K139: 428.92
A140: 31 | B140: 2010-02-24 | C140: CH | D140: 2006 | E140: 2010-02-24 | F140: Pop T ap. 18 | G140: 88.04 | K140: 88.04
A141: 32 | B141: 2010-02-24 | C141: CH | D141: 2007 | E141: 2010-02-24 | F141: Mureşan I ap. 19 | G141: 78.73 | K141: 78.73
A142: 33 | B142: 2010-02-24 | C142: CH | D142: 2009 | E142: 2010-02-24 | F142: Kállai ap. 21 | G142: 86.76 | K142: 86.76
A143: 34 | B143: 2010-02-24 | C143: CH | D143: 2010 | E143: 2010-02-24 | F143: Indolean ap. 22 | G143: 64.64 | K143: 64.64
A144: 35 | B144: 2010-02-24 | C144: CH | D144: 2011 | E144: 2010-02-24 | F144: Mureşan E ap. 23 | G144: 59.37 | K144: 59.37
A145: 36 | B145: 2010-02-24 | C145: CH | D145: 2012 | E145: 2010-02-24 | F145: Stanimir ap. 23A | G145: 90.57 | K145: 90.57
A146: 37 | B146: 2010-02-24 | C146: CH | D146: 2013 | E146: 2010-02-24 | F146: Cheţan ap. 24 | G146: 78.31 | K146: 78.31
A147: 38 | B147: 2010-02-24 | C147: CH | D147: 2014 | E147: 2010-02-24 | F147: Călin ap. 25 | G147: 82.86 | K147: 82.86
A148: 39 | B148: 2010-02-24 | C148: CH | D148: 2015 | E148: 2010-02-24 | F148: Turcu ap. 26 | G148: 340.53 | K148: 340.53
A149: 40 | B149: 2010-02-24 | C149: CH | D149: 2016 | E149: 2010-02-24 | F149: Creţeanu ap. 27 | G149: 82.18 | K149: 82.18
A150: 41 | B150: 2010-02-24 | C150: CH | D150: 2017 | E150: 2010-02-24 | F150: Zegreanu ap. 28 | G150: 388.73 | K150: 388.73
A151: 42 | B151: 2010-02-24 | C151: CH | D151: 2018 | E151: 2010-02-24 | F151: Şerban ap. 29 | G151: 449.69 | K151: 449.69
A152: 43 | B152: 2010-02-24 | C152: CH | D152: 2019 | E152: 2010-02-24 | F152: Mihăescu ap. 30 | G152: 445.68 | K152: 445.68
A153: 44 | B153: 2010-02-24 | C153: CH | D153: 2020 | E153: 2010-02-24 | F153: Pop R ap. 31 | G153: 430.15 | K153: 430.15
A154: 45 | B154: 2010-02-24 | C154: CH | D154: 2021 | E154: 2010-02-24 | F154: Lungu ap. 32 | G154: 89.9 | K154: 89.9
A155: 46 | B155: 2010-02-24 | C155: CH | D155: 2022 | E155: 2010-02-24 | F155: Mihuţ ap. 33 | G155: 482.99 | K155: 482.99
A156: 47 | B156: 2010-02-24 | C156: CH | D156: 2023 | E156: 2010-02-24 | F156: Postescu ap. 34 | G156: 70.4 | K156: 70.4
A157: 48 | B157: 2010-02-24 | C157: CH | D157: 2024 | E157: 2010-02-24 | F157: Goia ap. 35 | G157: 494.09 | K157: 494.09
A158: 49 | B158: 2010-02-24 | C158: CH | D158: 2025 | E158: 2010-02-24 | F158: Dodu ap. 36 | G158: 446.67 | K158: 446.67
A159: 50 | B159: 2010-02-24 | C159: CH | D159: 2026 | E159: 2010-02-24 | F159: Drăghici ap. 37 | G159: 90.73 | K159: 90.73
A160: 51 | B160: 2010-02-24 | C160: CH | D160: 2027 | E160: 2010-02-24 | F160: Néda ap. 38 | G160: 476.67 | K160: 476.67
A161: 52 | B161: 2010-02-24 | C161: CH | D161: 2028 | E161: 2010-02-24 | F161: Vornicescu ap. 39 | G161: 150.17 | K161: 150.17
A162: 53 | B162: 2010-02-24 | C162: CH | D162: 2029 | E162: 2010-02-24 | F162: Sparleanu ap. 40 | G162: 108.49 | K162: 108.49
A163: 54 | B163: 2010-02-24 | C163: CH | D163: 2030 | E163: 2010-02-24 | F163: Raboca ap. 41 | G163: 542.48 | K163: 542.48
A164: 55 | B164: 2010-02-24 | C164: CH | D164: 2031 | E164: 2010-02-24 | F164: Negru ap. 42 | G164: 120.19 | K164: 120.19
A165: 56 | B165: 2010-02-24 | C165: CH | D165: 2032 | E165: 2010-02-24 | F165: Roşescu ap. 43 | G165: 142.05 | K165: 142.05
A166: 57 | B166: 2010-02-24 | C166: CH | D166: 2033 | E166: 2010-02-24 | F166: Ursu ap. 44 | G166: 108.44 | K166: 108.44
A167: 58 | B167: 2010-02-24 | C167: CH | D167: 2034 | E167: 2010-02-24 | F167: Săcui ap. 45 | G167: 107.27 | K167: 107.27
A168: 59 | B168: 2010-02-24 | C168: CH | D168: 2035 | E168: 2010-02-24 | F168: Mărinceanu ap. 46 | G168: 426.45 | K168: 426.45
A169: 60 | B169: 2010-02-24 | C169: CH | D169: 2036 | E169: 2010-02-24 | F169: Ricean ap. 47 | G169: 68.37 | K169: 68.37
A170: 61 | B170: 2010-02-24 | C170: CH | D170: 2037 | E170: 2010-02-24 | F170: Sabo ap. 48 | G170: 203.76 | K170: 203.76
A171: 62 | B171: 2010-02-24 | C171: CH | D171: 2038 | E171: 2010-02-24 | F171: Câmpan ap. 49 | G171: 446.59 | K171: 446.59
A172: 63 | B172: 2010-02-24 | C172: CH | D172: 2040 | E172: 2010-02-24 | F172: Ciubotariu ap. 51 | G172: 397.01 | K172: 397.01
A173: 64 | B173: 2010-02-24 | C173: CH | D173: 2041 | E173: 2010-02-24 | F173: Cristea ap. 52 | G173: 404.57 | K173: 404.57
A174: 65 | B174: 2010-02-24 | C174: CH | D174: 2042 | E174: =B174 -> 2010-02-24 | F174: Stănescu ap. 53 | G174: 418.37 | K174: =G174+H174+I174+J174 -> 418.37
A175: =A174+1 -> 66 | B175: 2010-02-24 | C175: CH | D175: 2043 | E175: 2010-02-24 | F175: Dejeu ap. 54 | G175: 476.27 | K175: 476.27
A176: 67 | B176: 2010-02-24 | C176: CH | D176: 2044 | E176: 2010-02-24 | F176: Feşnic ap. 55 | G176: 605.87 | K176: 605.87
A177: 68 | B177: 2010-02-24 | C177: CH | D177: 2046 | E177: 2010-02-24 | F177: Baras A ap. 57 | G177: 296.81 | K177: 296.81
A178: 69 | B178: 2010-02-24 | C178: CH | D178: 2047 | E178: 2010-02-24 | F178: Fărcaş N ap. 58 | G178: 41.26 | K178: 41.26
A179: 70 | B179: 2010-02-24 | C179: CH | D179: 2048 | E179: 2010-02-24 | F179: Bagaméri ap. 59 | G179: 294.01 | K179: 294.01
A180: 71 | B180: 2010-02-24 | C180: CH | D180: 2049 | E180: 2010-02-24 | F180: Cristovici ap. 60 | G180: 47.85 | K180: 47.85
A181: 72 | B181: 2010-02-24 | C181: CH | D181: 2050 | E181: 2010-02-24 | F181: Trifoiu ap. 61 | G181: 88.33 | K181: 88.33
A182: 73 | B182: 2010-02-24 | C182: CH | D182: 2051 | E182: 2010-02-24 | F182: Fabian ap. 62 | G182: 77.49 | K182: 77.49
A183: 74 | B183: 2010-02-24 | C183: CH | D183: 2052 | E183: 2010-02-24 | F183: Fărăgău ap. 63 | G183: 76.81 | K183: 76.81
A184: 75 | B184: 2010-02-24 | C184: CH | D184: 2053 | E184: 2010-02-24 | F184: Rus ap. 64 | G184: 354.34 | K184: 354.34
A185: 76 | B185: 2010-02-24 | C185: CH | D185: 2054 | E185: 2010-02-24 | F185: Pop ap. 65 | G185: 135.41 | K185: 135.41
A186: 77 | B186: 2010-02-24 | C186: CH | D186: 2055 | E186: 2010-02-24 | F186: Bejan ap. 66 | G186: 72.91 | K186: 72.91
A187: 78 | B187: 2010-02-24 | C187: CH | D187: 2056 | E187: 2010-02-24 | F187: Moga ap. 67 | G187: 21.81 | K187: 21.81
A188: 79 | B188: 2010-02-24 | C188: CH | D188: 2057 | E188: 2010-02-24 | F188: Legian ap. 68 | G188: 163.24 | K188: 163.24
A189: 80 | B189: 2010-02-24 | C189: CH | D189: 2058 | E189: 2010-02-24 | F189: Mocanu ap. 69 | G189: 126.93 | K189: 126.93
A190: 81 | B190: 2010-02-24 | C190: CH | D190: 2059 | E190: 2010-02-24 | F190: Pop C. ap. 70 | G190: 126.75 | K190: 126.75
A191: 82 | B191: 2010-02-27 | C191: BF | D191: 2251 | E191: 2010-02-27 | F191: Detergent | H191: 19.52 | K191: 19.52
A192: 83 | B192: 2010-02-28 | C192: EX | D192: 2 | E192: 2010-02-28 | F192: Dobanda | I192: 0.09 | K192: 0.09
G193: =SUM(G110:G192) -> 14395.15 | H193: =SUM(H110:H192) -> 14578.8 | I193: =SUM(I110:I192) -> 196.44 | K193: =SUM(K109:K192) -> 59615.46
F194: De reportat | G194: =K193 -> 59615.46
B196: Intocmit
F200: Report | K200: =G194 -> 59615.46
A201: 1 | B201: 2010-03-01 | C201: SP | E201: =B201 -> 2010-03-01 | F201: Stat de plata feb | H201: 785 | K201: =G201+H201+I201+J201 -> 785
A202: =A201+1 -> 2 | B202: 2010-03-02 | C202: CH | D202: 144 | E202: 2010-03-02 | F202: Tudoran ap 50 CH | G202: 400 | K202: 400
A203: 3 | B203: 2010-03-02 | C203: CH | D203: 1105601 | E203: 2010-03-02 | F203: Salubritate | H203: 779.34 | K203: 779.34
A204: 4 | B204: 2010-03-04 | C204: BF | D204: 3547 | E204: 2010-03-04 | F204: Furca | H204: 9.99 | K204: 9.99
A205: 5 | B205: 2010-03-09 | C205: CH | D205: 146 | E205: 2010-03-09 | F205: Stanescu ap 53 FREP | G205: 121.23 | K205: 121.23
A206: 6 | B206: 2010-03-12 | C206: DP | D206: 1 | E206: 2010-03-12 | F206: Hriscan Victor curatat spatiu verde | H206: 50 | K206: 50
A207: 7 | B207: 2010-03-15 | C207: CH | D207: 6501 | E207: 2010-03-15 | F207: Electrica sc 1 | H207: 15.09 | K207: 15.09
A208: 8 | B208: 2010-03-15 | C208: CH | D208: 6601 | E208: 2010-03-15 | F208: Electrica sc 2 | H208: 11.45 | K208: 11.45
... 823 more rows

Sheet ian
B1: Data | C1: Document primar | K1: Sold final | L1: =J50 -> 2943.67 | M1: luna | N1: 2 | O1: salar
A2: Nr crt | B2: inreg | C2: Tip doc | D2: Nr doc | E2: din | F2: Ap | G2: Explicatii | H2: Incasari | I2: Plati | J2: Sold | K2: Decontat | L2: Statistica | M2: 1 | N2: 3 | O2: impozite si taxe
G3: Sold preluat | J3: 5756.72 | N3: 4 | O3: salubritate
A4: 1 | B4: 2011-01-03 | E4: =B4 -> 2011-01-03 | G4: stat de plata | I4: 1059 | J4: =J3+H4-I4 -> 4697.72 | K4: Decontat | L4: 2 | N4: 5 | O4: termoficare
A5: =A4+1 -> 2 | B5: 2011-01-03 | C5: CH | D5: 1353568 | E5: =B5 -> 2011-01-03 | G5: salubritate | I5: 837.45 | J5: =J4+H5-I5 -> 3860.27 | K5: Decontat | L5: 4 | N5: 6 | O5: apa canal
A6: =A5+1 -> 3 | B6: 2011-01-12 | C6: CH | D6: 96720 | E6: 2011-01-12 | G6: gaz | I6: 287 | J6: 3573.27 | L6: 7 | N6: 7 | O6: gaz
A7: 4 | B7: 2011-01-17 | C7: CH | D7: 3419281 | E7: 2011-01-17 | G7: impozit | I7: 585 | J7: 2988.27 | L7: 3 | N7: 8 | O7: electrica | R7: Pagina este facuta pentru 47 de inregistrari.
A8: 5 | B8: 2011-01-17 | C8: CH | D8: fn | E8: 2011-01-17 | G8: maturoaie | I8: 120 | J8: 2868.27 | L8: 12 | N8: 9 | O8: manopera | R8: Daca este nevoie se poate copia umtimul rand de cate ori este necesar.
A9: 6 | B9: 2011-01-18 | C9: CH | D9: 171 | E9: 2011-01-18 | F9: 9 | G9: Neamt | H9: 158.89 | J9: 3027.16 | L9: 31 | N9: 10 | O9: materiale | R9: In acest caz se va modifica , formula din celula L1.
A10: 7 | B10: 2011-01-20 | C10: CH | D10: 1422 | E10: 2011-01-20 | G10: Electrica sc1 | I10: 16.8 | J10: 3010.36 | L10: 8 | N10: 11 | O10: deratizare
A11: 8 | B11: 2011-01-20 | C11: CH | D11: 1423 | E11: 2011-01-20 | G11: Electrica sc2 | I11: 12.47 | J11: 2997.89 | L11: 8 | N11: 12 | O11: necesare curatenie | R11: In coloana L se pot insera simboluri pentru statistica.
A12: 9 | B12: 2011-01-20 | C12: CH | D12: 1424 | E12: 2011-01-20 | G12: Electrica sc3 | I12: 26.02 | J12: 2971.87 | L12: 8 | N12: 13 | O12: curatat zona verde | R12: Daca se pasa butonul corespunzator chletuielile incasarile din luna se pot trnsfera in pagina de statistica.
A13: 10 | B13: 2011-01-20 | C13: CH | D13: 1425 | E13: 2011-01-20 | G13: Electrica sc4 | I13: 9.22 | J13: 2962.65 | L13: 8 | N13: 14 | O13: flori | R13: Codurile de statistica sunt in coloana N, tranferul se face in pagina chelt, in randul corespunzator
A14: 11 | B14: 2011-01-20 | C14: CH | D14: 1426 | E14: 2011-01-20 | G14: Electrica sc5 | I14: 11.93 | J14: 2950.72 | L14: 8 | N14: 15 | O14: benzina, fir
A15: 12 | B15: 2011-01-20 | C15: CH | D15: 1427 | E15: 2011-01-20 | G15: Electrica sc6 | I15: 7.05 | J15: 2943.67 | L15: 8 | N15: 16 | O15: birotica | R15: se pot modifica descririle pentru codurile de statistica, exceptie 33,34 si 36
A16: 13 | E16: 00:00:00 | J16: 2943.67 | N16: 17 | O16: diverse
A17: 14 | E17: 00:00:00 | J17: 2943.67 | N17: 18
A18: 15 | E18: 00:00:00 | J18: 2943.67 | N18: 19
A19: 16 | E19: 00:00:00 | J19: 2943.67 | N19: 20
A20: 17 | E20: 00:00:00 | J20: 2943.67 | N20: 21
A21: 18 | E21: 00:00:00 | J21: 2943.67 | N21: 22
A22: 19 | E22: 00:00:00 | J22: 2943.67 | N22: 23 | O22: d
A23: 20 | E23: 00:00:00 | J23: 2943.67 | N23: 24 | O23: d
A24: 21 | E24: 00:00:00 | J24: 2943.67 | N24: 31 | O24: cheltuieli
A25: 22 | E25: 00:00:00 | J25: 2943.67 | N25: 32 | O25: restante
A26: 23 | E26: 00:00:00 | J26: 2943.67 | N26: 33 | O26: fond rulment
A27: 24 | E27: 00:00:00 | J27: 2943.67 | N27: 34 | O27: fond reparatii
A28: 25 | E28: 00:00:00 | J28: 2943.67 | N28: 35 | O28: diverse
A29: 26 | E29: 00:00:00 | J29: 2943.67 | N29: 36 | O29: penalizari
A30: 27 | E30: 00:00:00 | J30: 2943.67
A31: 28 | E31: 00:00:00 | J31: 2943.67
A32: 29 | E32: 00:00:00 | J32: 2943.67
A33: 30 | E33: 00:00:00 | J33: 2943.67
A34: 31 | E34: 00:00:00 | J34: 2943.67
A35: 32 | E35: 00:00:00 | J35: 2943.67
A36: 33 | E36: 00:00:00 | J36: 2943.67
A37: 34 | E37: 00:00:00 | J37: 2943.67
A38: 35 | E38: 00:00:00 | J38: 2943.67
A39: 36 | E39: 00:00:00 | J39: 2943.67
A40: 37 | E40: 00:00:00 | J40: 2943.67
A41: 38 | E41: 00:00:00 | J41: 2943.67
A42: 39 | E42: 00:00:00 | J42: 2943.67
A43: 40 | E43: 00:00:00 | J43: 2943.67
A44: 41 | E44: 00:00:00 | J44: 2943.67
A45: 42 | E45: 00:00:00 | J45: 2943.67
A46: 43 | E46: 00:00:00 | J46: 2943.67
A47: 44 | E47: 00:00:00 | J47: 2943.67
A48: 45 | E48: 00:00:00 | J48: 2943.67
A49: 46 | E49: 00:00:00 | J49: 2943.67
A50: 47 | E50: 00:00:00 | J50: 2943.67

Sheet feb
B1: Data | C1: Document primar | K1: Sold final | L1: =J50 -> 2943.67 | M1: luna | N1: 2 | O1: salar
A2: Nr crt | B2: inreg | C2: Tip doc | D2: Nr doc | E2: din | F2: Ap | G2: Explicatii | H2: Incasari | I2: Plati | J2: Sold | K2: Decontat | L2: Statistica | M2: 2 | N2: 3 | O2: impozite si taxe
G3: Sold preluat | H3: =ian!L1 -> 2943.67 | J3: =H3 -> 2943.67 | N3: 4 | O3: salubtitate
A4: 1 | E4: =B4 -> 00:00:00 | J4: =J3+H4-I4 -> 2943.67 | N4: 5 | O4: termoficare
A5: =A4+1 -> 2 | E5: =B5 -> 00:00:00 | J5: =J4+H5-I5 -> 2943.67 | N5: 6 | O5: apa canal
A6: =A5+1 -> 3 | E6: 00:00:00 | J6: 2943.67 | N6: 7 | O6: gaz
A7: 4 | E7: 00:00:00 | J7: 2943.67 | N7: 8 | O7: electrica
A8: 5 | E8: 00:00:00 | J8: 2943.67 | N8: 10 | O8: manopera
A9: 6 | E9: 00:00:00 | J9: 2943.67 | N9: 11 | O9: materiale
A10: 7 | E10: 00:00:00 | J10: 2943.67 | N10: 12 | O10: deratizare
A11: 8 | E11: 00:00:00 | J11: 2943.67 | N11: 13 | O11: necesare curatenie
A12: 9 | E12: 00:00:00 | J12: 2943.67 | N12: 14 | O12: curatat zona verde
A13: 10 | E13: 00:00:00 | J13: 2943.67 | N13: 15 | O13: flori
A14: 11 | E14: 00:00:00 | J14: 2943.67 | N14: 16 | O14: benzina, fir
A15: 12 | E15: 00:00:00 | J15: =J14+H16-I15 -> 2943.67 | N15: 17 | O15: birotica
A16: 13 | E16: 00:00:00 | J16: =J15+H17-I16 -> 2943.67 | N16: 18 | O16: diverse
A17: 14 | E17: 00:00:00 | J17: =J16+H18-I17 -> 2943.67 | N17: 19
A18: 15 | E18: 00:00:00 | J18: 2943.67
A19: 16 | E19: 00:00:00 | J19: 2943.67
A20: 17 | E20: 00:00:00 | J20: 2943.67
A21: 18 | E21: 00:00:00 | J21: 2943.67
A22: 19 | E22: 00:00:00 | J22: 2943.67
A23: 20 | E23: 00:00:00 | J23: 2943.67 | N23: 31 | O23: cheltuieli
A24: 21 | E24: 00:00:00 | J24: 2943.67 | N24: 32 | O24: restante
A25: 22 | E25: 00:00:00 | J25: 2943.67 | N25: 33 | O25: fond rulment
A26: 23 | E26: 00:00:00 | J26: 2943.67 | N26: 34 | O26: fond reparatii
A27: 24 | E27: 00:00:00 | J27: 2943.67 | N27: 35 | O27: diverse
A28: 25 | E28: 00:00:00 | J28: 2943.67 | N28: 36 | O28: penalizari
A29: 26 | E29: 00:00:00 | J29: 2943.67
A30: 27 | E30: 00:00:00 | J30: 2943.67
A31: 28 | E31: 00:00:00 | J31: 2943.67
A32: 29 | E32: 00:00:00 | J32: 2943.67
A33: 30 | E33: 00:00:00 | J33: 2943.67
A34: 31 | E34: 00:00:00 | J34: 2943.67
A35: 32 | E35: 00:00:00 | J35: 2943.67
A36: 33 | E36: 00:00:00 | J36: 2943.67
A37: 34 | E37: 00:00:00 | J37: 2943.67
A38: 35 | E38: 00:00:00 | J38: 2943.67
A39: 36 | E39: 00:00:00 | J39: 2943.67
A40: 37 | E40: 00:00:00 | J40: 2943.67
A41: 38 | E41: 00:00:00 | J41: 2943.67
A42: 39 | E42: 00:00:00 | J42: 2943.67
A43: 40 | E43: 00:00:00 | J43: 2943.67
A44: 41 | E44: 00:00:00 | J44: 2943.67
A45: 42 | E45: 00:00:00 | J45: 2943.67
A46: 43 | E46: 00:00:00 | J46: 2943.67
A47: 44 | E47: 00:00:00 | J47: 2943.67
A48: 45 | E48: 00:00:00 | J48: 2943.67
A49: 46 | E49: 00:00:00 | J49: 2943.67
A50: 47 | E50: 00:00:00 | J50: 2943.67

Sheet mar
B1: Data | C1: Document primar | K1: Sold final | L1: =J50 -> 2943.67 | M1: luna | N1: 2 | O1: salar
A2: Nr crt | B2: inreg | C2: Tip doc | D2: Nr doc | E2: din | F2: Ap | G2: Explicatii | H2: Incasari | I2: Plati | J2: Sold | K2: Decontat | L2: Statistica | M2: 3 | N2: 3 | O2: impozite si taxe
G3: Sold preluat | H3: =ian!L1 -> 2943.67 | J3: =H3 -> 2943.67 | N3: 4 | O3: salubtitate
E4: =B4 -> 00:00:00 | J4: =J3+H4-I4 -> 2943.67 | N4: 5 | O4: termoficare
E5: =B5 -> 00:00:00 | J5: =J4+H5-I5 -> 2943.67 | N5: 6 | O5: apa canal
E6: 00:00:00 | J6: 2943.67 | N6: 7 | O6: gaz
E7: 00:00:00 | J7: 2943.67 | N7: 8 | O7: electrica
E8: 00:00:00 | J8: 2943.67 | N8: 10 | O8: manopera
E9: 00:00:00 | J9: 2943.67 | N9: 11 | O9: materiale
E10: 00:00:00 | J10: 2943.67 | N10: 12 | O10: deratizare
E11: 00:00:00 | J11: 2943.67 | N11: 13 | O11: necesare curatenie
E12: 00:00:00 | J12: 2943.67 | N12: 14 | O12: curatat zona verde
E13: 00:00:00 | J13: 2943.67 | N13: 15 | O13: flori
E14: 00:00:00 | J14: 2943.67 | N14: 16 | O14: benzina, fir
E15: 00:00:00 | J15: 2943.67 | N15: 17 | O15: birotica
E16: 00:00:00 | J16: 2943.67 | N16: 18 | O16: diverse
E17: 00:00:00 | J17: 2943.67 | N17: 19
E18: 00:00:00 | J18: 2943.67
E19: 00:00:00 | J19: 2943.67
E20: 00:00:00 | J20: 2943.67
E21: 00:00:00 | J21: 2943.67
E22: 00:00:00 | J22: 2943.67
E23: 00:00:00 | J23: 2943.67 | N23: 31 | O23: cheltuieli
E24: 00:00:00 | J24: 2943.67 | N24: 32 | O24: restante
E25: 00:00:00 | J25: 2943.67 | N25: 33 | O25: fond rulment
E26: 00:00:00 | J26: 2943.67 | N26: 34 | O26: fond reparatii
E27: 00:00:00 | J27: 2943.67 | N27: 35 | O27: diverse
E28: 00:00:00 | J28: 2943.67 | N28: 36 | O28: penalizari
E29: 00:00:00 | J29: 2943.67
E30: 00:00:00 | J30: 2943.67
E31: 00:00:00 | J31: 2943.67
E32: 00:00:00 | J32: 2943.67
E33: 00:00:00 | J33: 2943.67
E34: 00:00:00 | J34: 2943.67
E35: 00:00:00 | J35: 2943.67
E36: 00:00:00 | J36: 2943.67
E37: 00:00:00 | J37: 2943.67
E38: 00:00:00 | J38: 2943.67
E39: 00:00:00 | J39: 2943.67
E40: 00:00:00 | J40: 2943.67
E41: 00:00:00 | J41: 2943.67
E42: 00:00:00 | J42: 2943.67
E43: 00:00:00 | J43: 2943.67
E44: 00:00:00 | J44: 2943.67
E45: 00:00:00 | J45: 2943.67
E46: 00:00:00 | J46: 2943.67
E47: 00:00:00 | J47: 2943.67
E48: 00:00:00 | J48: 2943.67
E49: 00:00:00 | J49: 2943.67
E50: 00:00:00 | J50: 2943.67

Sheet apr
B1: Data | C1: Document primar | K1: Sold final | L1: =J50 -> 2943.67 | M1: luna | N1: 2 | O1: salar
A2: Nr crt | B2: inreg | C2: Tip doc | D2: Nr doc | E2: din | F2: Ap | G2: Explicatii | H2: Incasari | I2: Plati | J2: Sold | K2: Decontat | L2: Statistica | M2: 4 | N2: 3 | O2: impozite si taxe
G3: Sold preluat | H3: =mar!L1 -> 2943.67 | J3: =H3 -> 2943.67 | N3: 4 | O3: salubtitate
E4: =B4 -> 00:00:00 | J4: =J3+H4-I4 -> 2943.67 | N4: 5 | O4: termoficare
E5: =B5 -> 00:00:00 | J5: =J4+H5-I5 -> 2943.67 | N5: 6 | O5: apa canal
E6: 00:00:00 | J6: 2943.67 | N6: 7 | O6: gaz
E7: 00:00:00 | J7: 2943.67 | N7: 8 | O7: electrica
E8: 00:00:00 | J8: 2943.67 | N8: 10 | O8: manopera
E9: 00:00:00 | J9: 2943.67 | N9: 11 | O9: materiale
E10: 00:00:00 | J10: 2943.67 | N10: 12 | O10: deratizare
E11: 00:00:00 | J11: 2943.67 | N11: 13 | O11: necesare curatenie
E12: 00:00:00 | J12: 2943.67 | N12: 14 | O12: curatat zona verde
E13: 00:00:00 | J13: 2943.67 | N13: 15 | O13: flori
E14: 00:00:00 | J14: 2943.67 | N14: 16 | O14: benzina, fir
E15: 00:00:00 | J15: 2943.67 | N15: 17 | O15: birotica
E16: 00:00:00 | J16: 2943.67 | N16: 18 | O16: diverse
E17: 00:00:00 | J17: 2943.67 | N17: 19
E18: 00:00:00 | J18: 2943.67
E19: 00:00:00 | J19: 2943.67
E20: 00:00:00 | J20: 2943.67
E21: 00:00:00 | J21: 2943.67
E22: 00:00:00 | J22: 2943.67
E23: 00:00:00 | J23: 2943.67 | N23: 31 | O23: cheltuieli
E24: 00:00:00 | J24: 2943.67 | N24: 32 | O24: restante
E25: 00:00:00 | J25: 2943.67 | N25: 33 | O25: fond rulment
E26: 00:00:00 | J26: 2943.67 | N26: 34 | O26: fond reparatii
E27: 00:00:00 | J27: 2943.67 | N27: 35 | O27: diverse
E28: 00:00:00 | J28: 2943.67 | N28: 36 | O28: penalizari
E29: 00:00:00 | J29: 2943.67
E30: 00:00:00 | J30: 2943.67
E31: 00:00:00 | J31: 2943.67
E32: 00:00:00 | J32: 2943.67
E33: 00:00:00 | J33: 2943.67
E34: 00:00:00 | J34: 2943.67
E35: 00:00:00 | J35: 2943.67
E36: 00:00:00 | J36: 2943.67
E37: 00:00:00 | J37: 2943.67
E38: 00:00:00 | J38: 2943.67
E39: 00:00:00 | J39: 2943.67
E40: 00:00:00 | J40: 2943.67
E41: 00:00:00 | J41: 2943.67
E42: 00:00:00 | J42: 2943.67
E43: 00:00:00 | J43: 2943.67
E44: 00:00:00 | J44: 2943.67
E45: 00:00:00 | J45: 2943.67
E46: 00:00:00 | J46: 2943.67
E47: 00:00:00 | J47: 2943.67
E48: 00:00:00 | J48: 2943.67
E49: 00:00:00 | J49: 2943.67
E50: 00:00:00 | J50: 2943.67

Sheet mai
B1: Data | C1: Document primar | K1: Sold final | L1: =J50 -> 2943.67 | M1: luna | N1: 2 | O1: salar
A2: Nr crt | B2: inreg | C2: Tip doc | D2: Nr doc | E2: din | F2: Ap | G2: Explicatii | H2: Incasari | I2: Plati | J2: Sold | K2: Decontat | L2: Statistica | M2: 5 | N2: 3 | O2: impozite si taxe
G3: Sold preluat | H3: =apr!L1 -> 2943.67 | J3: =H3 -> 2943.67 | N3: 4 | O3: salubtitate
E4: =B4 -> 00:00:00 | J4: =J3+H4-I4 -> 2943.67 | N4: 5 | O4: termoficare
E5: =B5 -> 00:00:00 | J5: =J4+H5-I5 -> 2943.67 | N5: 6 | O5: apa canal
E6: 00:00:00 | J6: 2943.67 | N6: 7 | O6: gaz
E7: 00:00:00 | J7: 2943.67 | N7: 8 | O7: electrica
E8: 00:00:00 | J8: 2943.67 | N8: 10 | O8: manopera
E9: 00:00:00 | J9: 2943.67 | N9: 11 | O9: materiale
E10: 00:00:00 | J10: 2943.67 | N10: 12 | O10: deratizare
E11: 00:00:00 | J11: 2943.67 | N11: 13 | O11: necesare curatenie
E12: 00:00:00 | J12: 2943.67 | N12: 14 | O12: curatat zona verde
E13: 00:00:00 | J13: 2943.67 | N13: 15 | O13: flori
E14: 00:00:00 | J14: 2943.67 | N14: 16 | O14: benzina, fir
E15: 00:00:00 | J15: 2943.67 | N15: 17 | O15: birotica
E16: 00:00:00 | J16: 2943.67 | N16: 18 | O16: diverse
E17: 00:00:00 | J17: 2943.67 | N17: 19
E18: 00:00:00 | J18: 2943.67
E19: 00:00:00 | J19: 2943.67
E20: 00:00:00 | J20: 2943.67
E21: 00:00:00 | J21: 2943.67
E22: 00:00:00 | J22: 2943.67
E23: 00:00:00 | J23: 2943.67 | N23: 31 | O23: cheltuieli
E24: 00:00:00 | J24: 2943.67 | N24: 32 | O24: restante
E25: 00:00:00 | J25: 2943.67 | N25: 33 | O25: fond rulment
E26: 00:00:00 | J26: 2943.67 | N26: 34 | O26: fond reparatii
E27: 00:00:00 | J27: 2943.67 | N27: 35 | O27: diverse
E28: 00:00:00 | J28: 2943.67 | N28: 36 | O28: penalizari
E29: 00:00:00 | J29: 2943.67
E30: 00:00:00 | J30: 2943.67
E31: 00:00:00 | J31: 2943.67
E32: 00:00:00 | J32: 2943.67
E33: 00:00:00 | J33: 2943.67
E34: 00:00:00 | J34: 2943.67
E35: 00:00:00 | J35: 2943.67
E36: 00:00:00 | J36: 2943.67
E37: 00:00:00 | J37: 2943.67
E38: 00:00:00 | J38: 2943.67
E39: 00:00:00 | J39: 2943.67
E40: 00:00:00 | J40: 2943.67
E41: 00:00:00 | J41: 2943.67
E42: 00:00:00 | J42: 2943.67
E43: 00:00:00 | J43: 2943.67
E44: 00:00:00 | J44: 2943.67
E45: 00:00:00 | J45: 2943.67
E46: 00:00:00 | J46: 2943.67
E47: 00:00:00 | J47: 2943.67
E48: 00:00:00 | J48: 2943.67
E49: 00:00:00 | J49: 2943.67
E50: 00:00:00 | J50: 2943.67

Sheet iun
B1: Data | C1: Document primar | K1: Sold final | L1: =J50 -> 2943.67 | M1: luna | N1: 2 | O1: salar
A2: Nr crt | B2: inreg | C2: Tip doc | D2: Nr doc | E2: din | F2: Ap | G2: Explicatii | H2: Incasari | I2: Plati | J2: Sold | K2: Decontat | L2: Statistica | M2: 6 | N2: 3 | O2: impozite si taxe
G3: Sold preluat | H3: =mai!L1 -> 2943.67 | J3: =H3 -> 2943.67 | N3: 4 | O3: salubtitate
E4: =B4 -> 00:00:00 | J4: =J3+H4-I4 -> 2943.67 | N4: 5 | O4: termoficare
E5: =B5 -> 00:00:00 | J5: =J4+H5-I5 -> 2943.67 | N5: 6 | O5: apa canal
E6: 00:00:00 | J6: 2943.67 | N6: 7 | O6: gaz
E7: 00:00:00 | J7: 2943.67 | N7: 8 | O7: electrica
E8: 00:00:00 | J8: 2943.67 | N8: 10 | O8: manopera
E9: 00:00:00 | J9: 2943.67 | N9: 11 | O9: materiale
E10: 00:00:00 | J10: 2943.67 | N10: 12 | O10: deratizare
E11: 00:00:00 | J11: 2943.67 | N11: 13 | O11: necesare curatenie
E12: 00:00:00 | J12: 2943.67 | N12: 14 | O12: curatat zona verde
E13: 00:00:00 | J13: 2943.67 | N13: 15 | O13: flori
E14: 00:00:00 | J14: 2943.67 | N14: 16 | O14: benzina, fir
E15: 00:00:00 | J15: 2943.67 | N15: 17 | O15: birotica
E16: 00:00:00 | J16: 2943.67 | N16: 18 | O16: diverse
E17: 00:00:00 | J17: 2943.67 | N17: 19
E18: 00:00:00 | J18: 2943.67
E19: 00:00:00 | J19: 2943.67
E20: 00:00:00 | J20: 2943.67
E21: 00:00:00 | J21: 2943.67
E22: 00:00:00 | J22: 2943.67
E23: 00:00:00 | J23: 2943.67 | N23: 31 | O23: cheltuieli
E24: 00:00:00 | J24: 2943.67 | N24: 32 | O24: restante
E25: 00:00:00 | J25: 2943.67 | N25: 33 | O25: fond rulment
E26: 00:00:00 | J26: 2943.67 | N26: 34 | O26: fond reparatii
E27: 00:00:00 | J27: 2943.67 | N27: 35 | O27: diverse
E28: 00:00:00 | J28: 2943.67 | N28: 36 | O28: penalizari
E29: 00:00:00 | J29: 2943.67
E30: 00:00:00 | J30: 2943.67
E31: 00:00:00 | J31: 2943.67
E32: 00:00:00 | J32: 2943.67
E33: 00:00:00 | J33: 2943.67
E34: 00:00:00 | J34: 2943.67
E35: 00:00:00 | J35: 2943.67
E36: 00:00:00 | J36: 2943.67
E37: 00:00:00 | J37: 2943.67
E38: 00:00:00 | J38: 2943.67
E39: 00:00:00 | J39: 2943.67
E40: 00:00:00 | J40: 2943.67
E41: 00:00:00 | J41: 2943.67
E42: 00:00:00 | J42: 2943.67
E43: 00:00:00 | J43: 2943.67
E44: 00:00:00 | J44: 2943.67
E45: 00:00:00 | J45: 2943.67
E46: 00:00:00 | J46: 2943.67
E47: 00:00:00 | J47: 2943.67
E48: 00:00:00 | J48: 2943.67
E49: 00:00:00 | J49: 2943.67
E50: 00:00:00 | J50: 2943.67

Sheet iul
B1: Data | C1: Document primar | K1: Sold final | L1: =J50 -> 2943.67 | M1: luna | N1: 2 | O1: salar
A2: Nr crt | B2: inreg | C2: Tip doc | D2: Nr doc | E2: din | F2: Ap | G2: Explicatii | H2: Incasari | I2: Plati | J2: Sold | K2: Decontat | L2: Statistica | M2: 7 | N2: 3 | O2: impozite si taxe
G3: Sold preluat | H3: =iun!L1 -> 2943.67 | J3: =H3 -> 2943.67 | N3: 4 | O3: salubtitate
E4: =B4 -> 00:00:00 | J4: =J3+H4-I4 -> 2943.67 | N4: 5 | O4: termoficare
E5: =B5 -> 00:00:00 | J5: =J4+H5-I5 -> 2943.67 | N5: 6 | O5: apa canal
E6: 00:00:00 | J6: 2943.67 | N6: 7 | O6: gaz
E7: 00:00:00 | J7: 2943.67 | N7: 8 | O7: electrica
E8: 00:00:00 | J8: 2943.67 | N8: 10 | O8: manopera
E9: 00:00:00 | J9: 2943.67 | N9: 11 | O9: materiale
E10: 00:00:00 | J10: 2943.67 | N10: 12 | O10: deratizare
E11: 00:00:00 | J11: 2943.67 | N11: 13 | O11: necesare curatenie
E12: 00:00:00 | J12: 2943.67 | N12: 14 | O12: curatat zona verde
E13: 00:00:00 | J13: 2943.67 | N13: 15 | O13: flori
E14: 00:00:00 | J14: 2943.67 | N14: 16 | O14: benzina, fir
E15: 00:00:00 | J15: 2943.67 | N15: 17 | O15: birotica
E16: 00:00:00 | J16: 2943.67 | N16: 18 | O16: diverse
E17: 00:00:00 | J17: 2943.67 | N17: 19
E18: 00:00:00 | J18: 2943.67
E19: 00:00:00 | J19: 2943.67
E20: 00:00:00 | J20: 2943.67
E21: 00:00:00 | J21: 2943.67
E22: 00:00:00 | J22: 2943.67
E23: 00:00:00 | J23: 2943.67 | N23: 31 | O23: cheltuieli
E24: 00:00:00 | J24: 2943.67 | N24: 32 | O24: restante
E25: 00:00:00 | J25: 2943.67 | N25: 33 | O25: fond rulment
E26: 00:00:00 | J26: 2943.67 | N26: 34 | O26: fond reparatii
E27: 00:00:00 | J27: 2943.67 | N27: 35 | O27: diverse
E28: 00:00:00 | J28: 2943.67 | N28: 36 | O28: penalizari
E29: 00:00:00 | J29: 2943.67
E30: 00:00:00 | J30: 2943.67
E31: 00:00:00 | J31: 2943.67
E32: 00:00:00 | J32: 2943.67
E33: 00:00:00 | J33: 2943.67
E34: 00:00:00 | J34: 2943.67
E35: 00:00:00 | J35: 2943.67
E36: 00:00:00 | J36: 2943.67
E37: 00:00:00 | J37: 2943.67
E38: 00:00:00 | J38: 2943.67
E39: 00:00:00 | J39: 2943.67
E40: 00:00:00 | J40: 2943.67
E41: 00:00:00 | J41: 2943.67
E42: 00:00:00 | J42: 2943.67
E43: 00:00:00 | J43: 2943.67
E44: 00:00:00 | J44: 2943.67
E45: 00:00:00 | J45: 2943.67
E46: 00:00:00 | J46: 2943.67
E47: 00:00:00 | J47: 2943.67
E48: 00:00:00 | J48: 2943.67
E49: 00:00:00 | J49: 2943.67
E50: 00:00:00 | J50: 2943.67

Sheet aug
B1: Data | C1: Document primar | K1: Sold final | L1: =J50 -> 2943.67 | M1: luna | N1: 2 | O1: salar
A2: Nr crt | B2: inreg | C2: Tip doc | D2: Nr doc | E2: din | F2: Ap | G2: Explicatii | H2: Incasari | I2: Plati | J2: Sold | K2: Decontat | L2: Statistica | M2: 8 | N2: 3 | O2: impozite si taxe
G3: Sold preluat | H3: =iul!L1 -> 2943.67 | J3: =H3 -> 2943.67 | N3: 4 | O3: salubtitate
E4: =B4 -> 00:00:00 | J4: =J3+H4-I4 -> 2943.67 | N4: 5 | O4: termoficare
E5: =B5 -> 00:00:00 | J5: =J4+H5-I5 -> 2943.67 | N5: 6 | O5: apa canal
E6: 00:00:00 | J6: 2943.67 | N6: 7 | O6: gaz
E7: 00:00:00 | J7: 2943.67 | N7: 8 | O7: electrica
E8: 00:00:00 | J8: 2943.67 | N8: 10 | O8: manopera
E9: 00:00:00 | J9: 2943.67 | N9: 11 | O9: materiale
E10: 00:00:00 | J10: 2943.67 | N10: 12 | O10: deratizare
E11: 00:00:00 | J11: 2943.67 | N11: 13 | O11: necesare curatenie
E12: 00:00:00 | J12: 2943.67 | N12: 14 | O12: curatat zona verde
E13: 00:00:00 | J13: 2943.67 | N13: 15 | O13: flori
E14: 00:00:00 | J14: 2943.67 | N14: 16 | O14: benzina, fir
E15: 00:00:00 | J15: 2943.67 | N15: 17 | O15: birotica
E16: 00:00:00 | J16: 2943.67 | N16: 18 | O16: diverse
E17: 00:00:00 | J17: 2943.67 | N17: 19
E18: 00:00:00 | J18: 2943.67
E19: 00:00:00 | J19: 2943.67
E20: 00:00:00 | J20: 2943.67
E21: 00:00:00 | J21: 2943.67
E22: 00:00:00 | J22: 2943.67
E23: 00:00:00 | J23: 2943.67 | N23: 31 | O23: cheltuieli
E24: 00:00:00 | J24: 2943.67 | N24: 32 | O24: restante
E25: 00:00:00 | J25: 2943.67 | N25: 33 | O25: fond rulment
E26: 00:00:00 | J26: 2943.67 | N26: 34 | O26: fond reparatii
E27: 00:00:00 | J27: 2943.67 | N27: 35 | O27: diverse
E28: 00:00:00 | J28: 2943.67 | N28: 36 | O28: penalizari
E29: 00:00:00 | J29: 2943.67
E30: 00:00:00 | J30: 2943.67
E31: 00:00:00 | J31: 2943.67
E32: 00:00:00 | J32: 2943.67
E33: 00:00:00 | J33: 2943.67
E34: 00:00:00 | J34: 2943.67
E35: 00:00:00 | J35: 2943.67
E36: 00:00:00 | J36: 2943.67
E37: 00:00:00 | J37: 2943.67
E38: 00:00:00 | J38: 2943.67
E39: 00:00:00 | J39: 2943.67
E40: 00:00:00 | J40: 2943.67
E41: 00:00:00 | J41: 2943.67
E42: 00:00:00 | J42: 2943.67
E43: 00:00:00 | J43: 2943.67
E44: 00:00:00 | J44: 2943.67
E45: 00:00:00 | J45: 2943.67
E46: 00:00:00 | J46: 2943.67
E47: 00:00:00 | J47: 2943.67
E48: 00:00:00 | J48: 2943.67
E49: 00:00:00 | J49: 2943.67
E50: 00:00:00 | J50: 2943.67

Sheet sep
B1: Data | C1: Document primar | K1: Sold final | L1: =J50 -> 2943.67 | M1: luna | N1: 2 | O1: salar
A2: Nr crt | B2: inreg | C2: Tip doc | D2: Nr doc | E2: din | F2: Ap | G2: Explicatii | H2: Incasari | I2: Plati | J2: Sold | K2: Decontat | L2: Statistica | M2: 9 | N2: 3 | O2: impozite si taxe
G3: Sold preluat | H3: =aug!L1 -> 2943.67 | J3: =H3 -> 2943.67 | N3: 4 | O3: salubtitate
E4: =B4 -> 00:00:00 | J4: =J3+H4-I4 -> 2943.67 | N4: 5 | O4: termoficare
E5: =B5 -> 00:00:00 | J5: =J4+H5-I5 -> 2943.67 | N5: 6 | O5: apa canal
E6: 00:00:00 | J6: 2943.67 | N6: 7 | O6: gaz
E7: 00:00:00 | J7: 2943.67 | N7: 8 | O7: electrica
E8: 00:00:00 | J8: 2943.67 | N8: 10 | O8: manopera
E9: 00:00:00 | J9: 2943.67 | N9: 11 | O9: materiale
E10: 00:00:00 | J10: 2943.67 | N10: 12 | O10: deratizare
E11: 00:00:00 | J11: 2943.67 | N11: 13 | O11: necesare curatenie
E12: 00:00:00 | J12: 2943.67 | N12: 14 | O12: curatat zona verde
E13: 00:00:00 | J13: 2943.67 | N13: 15 | O13: flori
E14: 00:00:00 | J14: 2943.67 | N14: 16 | O14: benzina, fir
E15: 00:00:00 | J15: 2943.67 | N15: 17 | O15: birotica
E16: 00:00:00 | J16: 2943.67 | N16: 18 | O16: diverse
E17: 00:00:00 | J17: 2943.67 | N17: 19
E18: 00:00:00 | J18: 2943.67
E19: 00:00:00 | J19: 2943.67
E20: 00:00:00 | J20: 2943.67
E21: 00:00:00 | J21: 2943.67
E22: 00:00:00 | J22: 2943.67
E23: 00:00:00 | J23: 2943.67 | N23: 31 | O23: cheltuieli
E24: 00:00:00 | J24: 2943.67 | N24: 32 | O24: restante
E25: 00:00:00 | J25: 2943.67 | N25: 33 | O25: fond rulment
E26: 00:00:00 | J26: 2943.67 | N26: 34 | O26: fond reparatii
E27: 00:00:00 | J27: 2943.67 | N27: 35 | O27: diverse
E28: 00:00:00 | J28: 2943.67 | N28: 36 | O28: penalizari
E29: 00:00:00 | J29: 2943.67
E30: 00:00:00 | J30: 2943.67
E31: 00:00:00 | J31: 2943.67
E32: 00:00:00 | J32: 2943.67
E33: 00:00:00 | J33: 2943.67
E34: 00:00:00 | J34: 2943.67
E35: 00:00:00 | J35: 2943.67
E36: 00:00:00 | J36: 2943.67
E37: 00:00:00 | J37: 2943.67
E38: 00:00:00 | J38: 2943.67
E39: 00:00:00 | J39: 2943.67
E40: 00:00:00 | J40: 2943.67
E41: 00:00:00 | J41: 2943.67
E42: 00:00:00 | J42: 2943.67
E43: 00:00:00 | J43: 2943.67
E44: 00:00:00 | J44: 2943.67
E45: 00:00:00 | J45: 2943.67
E46: 00:00:00 | J46: 2943.67
E47: 00:00:00 | J47: 2943.67
E48: 00:00:00 | J48: 2943.67
E49: 00:00:00 | J49: 2943.67
E50: 00:00:00 | J50: 2943.67

Sheet oct
B1: Data | C1: Document primar | K1: Sold final | L1: =J50 -> 2943.67 | M1: luna | N1: 2 | O1: salar
A2: Nr crt | B2: inreg | C2: Tip doc | D2: Nr doc | E2: din | F2: Ap | G2: Explicatii | H2: Incasari | I2: Plati | J2: Sold | K2: Decontat | L2: Statistica | M2: 10 | N2: 3 | O2: impozite si taxe
G3: Sold preluat | H3: =sep!L1 -> 2943.67 | J3: =H3 -> 2943.67 | N3: 4 | O3: salubtitate
E4: =B4 -> 00:00:00 | J4: =J3+H4-I4 -> 2943.67 | N4: 5 | O4: termoficare
E5: =B5 -> 00:00:00 | J5: =J4+H5-I5 -> 2943.67 | N5: 6 | O5: apa canal
E6: 00:00:00 | J6: 2943.67 | N6: 7 | O6: gaz
E7: 00:00:00 | J7: 2943.67 | N7: 8 | O7: electrica
E8: 00:00:00 | J8: 2943.67 | N8: 10 | O8: manopera
E9: 00:00:00 | J9: 2943.67 | N9: 11 | O9: materiale
E10: 00:00:00 | J10: 2943.67 | N10: 12 | O10: deratizare
E11: 00:00:00 | J11: 2943.67 | N11: 13 | O11: necesare curatenie
E12: 00:00:00 | J12: 2943.67 | N12: 14 | O12: curatat zona verde
E13: 00:00:00 | J13: 2943.67 | N13: 15 | O13: flori
E14: 00:00:00 | J14: 2943.67 | N14: 16 | O14: benzina, fir
E15: 00:00:00 | J15: 2943.67 | N15: 17 | O15: birotica
E16: 00:00:00 | J16: 2943.67 | N16: 18 | O16: diverse
E17: 00:00:00 | J17: 2943.67 | N17: 19
E18: 00:00:00 | J18: 2943.67
E19: 00:00:00 | J19: 2943.67
E20: 00:00:00 | J20: 2943.67
E21: 00:00:00 | J21: 2943.67
E22: 00:00:00 | J22: 2943.67
E23: 00:00:00 | J23: 2943.67 | N23: 31 | O23: cheltuieli
E24: 00:00:00 | J24: 2943.67 | N24: 32 | O24: restante
E25: 00:00:00 | J25: 2943.67 | N25: 33 | O25: fond rulment
E26: 00:00:00 | J26: 2943.67 | N26: 34 | O26: fond reparatii
E27: 00:00:00 | J27: 2943.67 | N27: 35 | O27: diverse
E28: 00:00:00 | J28: 2943.67 | N28: 36 | O28: penalizari
E29: 00:00:00 | J29: 2943.67
E30: 00:00:00 | J30: 2943.67
E31: 00:00:00 | J31: 2943.67
E32: 00:00:00 | J32: 2943.67
E33: 00:00:00 | J33: 2943.67
E34: 00:00:00 | J34: 2943.67
E35: 00:00:00 | J35: 2943.67
E36: 00:00:00 | J36: 2943.67
E37: 00:00:00 | J37: 2943.67
E38: 00:00:00 | J38: 2943.67
E39: 00:00:00 | J39: 2943.67
E40: 00:00:00 | J40: 2943.67
E41: 00:00:00 | J41: 2943.67
E42: 00:00:00 | J42: 2943.67
E43: 00:00:00 | J43: 2943.67
E44: 00:00:00 | J44: 2943.67
E45: 00:00:00 | J45: 2943.67
E46: 00:00:00 | J46: 2943.67
E47: 00:00:00 | J47: 2943.67
E48: 00:00:00 | J48: 2943.67
E49: 00:00:00 | J49: 2943.67
E50: 00:00:00 | J50: 2943.67

Sheet noe
B1: Data | C1: Document primar | K1: Sold final | L1: =J50 -> 2943.67 | M1: luna | N1: 2 | O1: salar
A2: Nr crt | B2: inreg | C2: Tip doc | D2: Nr doc | E2: din | F2: Ap | G2: Explicatii | H2: Incasari | I2: Plati | J2: Sold | K2: Decontat | L2: Statistica | M2: 11 | N2: 3 | O2: impozite si taxe
G3: Sold preluat | H3: =oct!L1 -> 2943.67 | J3: =H3 -> 2943.67 | N3: 4 | O3: salubtitate
E4: =B4 -> 00:00:00 | J4: =J3+H4-I4 -> 2943.67 | N4: 5 | O4: termoficare
E5: =B5 -> 00:00:00 | J5: =J4+H5-I5 -> 2943.67 | N5: 6 | O5: apa canal
E6: 00:00:00 | J6: 2943.67 | N6: 7 | O6: gaz
E7: 00:00:00 | J7: 2943.67 | N7: 8 | O7: electrica
E8: 00:00:00 | J8: 2943.67 | N8: 10 | O8: manopera
E9: 00:00:00 | J9: 2943.67 | N9: 11 | O9: materiale
E10: 00:00:00 | J10: 2943.67 | N10: 12 | O10: deratizare
E11: 00:00:00 | J11: 2943.67 | N11: 13 | O11: necesare curatenie
E12: 00:00:00 | J12: 2943.67 | N12: 14 | O12: curatat zona verde
E13: 00:00:00 | J13: 2943.67 | N13: 15 | O13: flori
E14: 00:00:00 | J14: 2943.67 | N14: 16 | O14: benzina, fir
E15: 00:00:00 | J15: 2943.67 | N15: 17 | O15: birotica
E16: 00:00:00 | J16: 2943.67 | N16: 18 | O16: diverse
E17: 00:00:00 | J17: 2943.67 | N17: 19
E18: 00:00:00 | J18: 2943.67
E19: 00:00:00 | J19: 2943.67
E20: 00:00:00 | J20: 2943.67
E21: 00:00:00 | J21: 2943.67
E22: 00:00:00 | J22: 2943.67
E23: 00:00:00 | J23: 2943.67 | N23: 31 | O23: cheltuieli
E24: 00:00:00 | J24: 2943.67 | N24: 32 | O24: restante
E25: 00:00:00 | J25: 2943.67 | N25: 33 | O25: fond rulment
E26: 00:00:00 | J26: 2943.67 | N26: 34 | O26: fond reparatii
E27: 00:00:00 | J27: 2943.67 | N27: 35 | O27: diverse
E28: 00:00:00 | J28: 2943.67 | N28: 36 | O28: penalizari
E29: 00:00:00 | J29: 2943.67
E30: 00:00:00 | J30: 2943.67
E31: 00:00:00 | J31: 2943.67
E32: 00:00:00 | J32: 2943.67
E33: 00:00:00 | J33: 2943.67
E34: 00:00:00 | J34: 2943.67
E35: 00:00:00 | J35: 2943.67
E36: 00:00:00 | J36: 2943.67
E37: 00:00:00 | J37: 2943.67
E38: 00:00:00 | J38: 2943.67
E39: 00:00:00 | J39: 2943.67
E40: 00:00:00 | J40: 2943.67
E41: 00:00:00 | J41: 2943.67
E42: 00:00:00 | J42: 2943.67
E43: 00:00:00 | J43: 2943.67
E44: 00:00:00 | J44: 2943.67
E45: 00:00:00 | J45: 2943.67
E46: 00:00:00 | J46: 2943.67
E47: 00:00:00 | J47: 2943.67
E48: 00:00:00 | J48: 2943.67
E49: 00:00:00 | J49: 2943.67
E50: 00:00:00 | J50: 2943.67

Sheet dec
B1: Data | C1: Document primar | K1: Sold final | L1: =J50 -> 2943.67 | M1: luna | N1: 2 | O1: salar
A2: Nr crt | B2: inreg | C2: Tip doc | D2: Nr doc | E2: din | F2: Ap | G2: Explicatii | H2: Incasari | I2: Plati | J2: Sold | K2: Decontat | L2: Statistica | M2: 12 | N2: 3 | O2: impozite si taxe
G3: Sold preluat | H3: =noe!L1 -> 2943.67 | J3: =H3 -> 2943.67 | N3: 4 | O3: salubtitate
E4: =B4 -> 00:00:00 | J4: =J3+H4-I4 -> 2943.67 | N4: 5 | O4: termoficare
E5: =B5 -> 00:00:00 | J5: =J4+H5-I5 -> 2943.67 | N5: 6 | O5: apa canal
E6: 00:00:00 | J6: 2943.67 | N6: 7 | O6: gaz
E7: 00:00:00 | J7: 2943.67 | N7: 8 | O7: electrica
E8: 00:00:00 | J8: 2943.67 | N8: 10 | O8: manopera
E9: 00:00:00 | J9: 2943.67 | N9: 11 | O9: materiale
E10: 00:00:00 | J10: 2943.67 | N10: 12 | O10: deratizare
E11: 00:00:00 | J11: 2943.67 | N11: 13 | O11: necesare curatenie
E12: 00:00:00 | J12: 2943.67 | N12: 14 | O12: curatat zona verde
E13: 00:00:00 | J13: 2943.67 | N13: 15 | O13: flori
E14: 00:00:00 | J14: 2943.67 | N14: 16 | O14: benzina, fir
E15: 00:00:00 | J15: 2943.67 | N15: 17 | O15: birotica
E16: 00:00:00 | J16: 2943.67 | N16: 18 | O16: diverse
E17: 00:00:00 | J17: 2943.67 | N17: 19
E18: 00:00:00 | J18: 2943.67
E19: 00:00:00 | J19: 2943.67
E20: 00:00:00 | J20: 2943.67
E21: 00:00:00 | J21: 2943.67
E22: 00:00:00 | J22: 2943.67
E23: 00:00:00 | J23: 2943.67 | N23: 31 | O23: cheltuieli
E24: 00:00:00 | J24: 2943.67 | N24: 32 | O24: restante
E25: 00:00:00 | J25: 2943.67 | N25: 33 | O25: fond rulment
E26: 00:00:00 | J26: 2943.67 | N26: 34 | O26: fond reparatii
E27: 00:00:00 | J27: 2943.67 | N27: 35 | O27: diverse
E28: 00:00:00 | J28: 2943.67 | N28: 36 | O28: penalizari
E29: 00:00:00 | J29: 2943.67
E30: 00:00:00 | J30: 2943.67
E31: 00:00:00 | J31: 2943.67
E32: 00:00:00 | J32: 2943.67
E33: 00:00:00 | J33: 2943.67
E34: 00:00:00 | J34: 2943.67
E35: 00:00:00 | J35: 2943.67
E36: 00:00:00 | J36: 2943.67
E37: 00:00:00 | J37: 2943.67
E38: 00:00:00 | J38: 2943.67
E39: 00:00:00 | J39: 2943.67
E40: 00:00:00 | J40: 2943.67
E41: 00:00:00 | J41: 2943.67
E42: 00:00:00 | J42: 2943.67
E43: 00:00:00 | J43: 2943.67
E44: 00:00:00 | J44: 2943.67
E45: 00:00:00 | J45: 2943.67
E46: 00:00:00 | J46: 2943.67
E47: 00:00:00 | J47: 2943.67
E48: 00:00:00 | J48: 2943.67
E49: 00:00:00 | J49: 2943.67
E50: 00:00:00 | J50: 2943.67

Sheet chelt
A1: C | B1: ian | C1: feb | D1: mar | E1: apr | F1: mai | G1: iun | H1: iul | I1: aug | J1: sep | K1: oct | L1: noe | M1: dec | N1: TOTAL
A2: =ian!O1 -> salar | B2: 1059 | N2: =SUM(Plati[[#This Row],[ian]:[dec]]) -> 1059
A3: =ian!O2 -> impozite si taxe | B3: 585 | N3: =SUM(Plati[[#This Row],[ian]:[dec]]) -> 585
A4: =ian!O3 -> salubritate | B4: 837.45 | N4: =SUM(Plati[[#This Row],[ian]:[dec]]) -> 837.45
A5: =ian!O4 -> termoficare | N5: =SUM(Plati[[#This Row],[ian]:[dec]]) -> 0
A6: =ian!O5 -> apa canal | N6: =SUM(Plati[[#This Row],[ian]:[dec]]) -> 0
A7: =ian!O6 -> gaz | B7: 287 | N7: =SUM(Plati[[#This Row],[ian]:[dec]]) -> 287
A8: =ian!O7 -> electrica | B8: 83.49 | N8: =SUM(Plati[[#This Row],[ian]:[dec]]) -> 83.49
A9: =ian!O8 -> manopera | N9: =SUM(Plati[[#This Row],[ian]:[dec]]) -> 0
A10: =ian!O9 -> materiale | N10: =SUM(Plati[[#This Row],[ian]:[dec]]) -> 0
A11: =ian!O10 -> deratizare | N11: =SUM(Plati[[#This Row],[ian]:[dec]]) -> 0
A12: =ian!O11 -> necesare curatenie | B12: 120 | N12: =SUM(Plati[[#This Row],[ian]:[dec]]) -> 120
A13: =ian!O12 -> curatat zona verde | N13: =SUM(Plati[[#This Row],[ian]:[dec]]) -> 0
A14: =ian!O13 -> flori | N14: =SUM(Plati[[#This Row],[ian]:[dec]]) -> 0
A15: =ian!O14 -> benzina, fir | N15: =SUM(Plati[[#This Row],[ian]:[dec]]) -> 0
A16: =ian!O15 -> birotica | N16: =SUM(Plati[[#This Row],[ian]:[dec]]) -> 0
A17: =ian!O16 -> diverse | N17: =SUM(Plati[[#This Row],[ian]:[dec]]) -> 0
A18: =ian!O17 ->  | N18: =SUM(Plati[[#This Row],[ian]:[dec]]) -> 0
A19: =ian!O18 ->  | N19: =SUM(Plati[[#This Row],[ian]:[dec]]) -> 0
A20: =ian!O19 ->  | N20: =SUM(Plati[[#This Row],[ian]:[dec]]) -> 0
A21: =ian!O20 ->  | N21: =SUM(Plati[[#This Row],[ian]:[dec]]) -> 0
A22: =ian!O21 ->  | N22: =SUM(Plati[[#This Row],[ian]:[dec]]) -> 0
A23: =ian!O22 -> d | N23: =SUM(Plati[[#This Row],[ian]:[dec]]) -> 0
A24: =ian!O23 -> d | N24: =SUM(Plati[[#This Row],[ian]:[dec]]) -> 0
A25: TOTAL | B25: =SUM(B2:B24) -> 2971.94 | C25: =SUM(C2:C24) -> 0 | D25: =SUM(D2:D24) -> 0 | E25: 0 | F25: 0 | G25: 0 | H25: 0 | I25: 0 | J25: 0 | K25: 0 | L25: 0 | M25: 0 | N25: =SUM(B25:M25) -> 2971.94
A30: C | B30: ian | C30: feb | D30: mar | E30: apr | F30: mai | G30: iun | H30: iul | I30: aug | J30: sep | K30: oct | L30: noe | M30: dec | N30: TOTAL
A31: =ian!O24 -> cheltuieli | B31: 158.89 | N31: =SUM(Incas[[#This Row],[ian]:[dec]]) -> 158.89
A32: =ian!O25 -> restante | N32: =SUM(Incas[[#This Row],[ian]:[dec]]) -> 0
A33: =ian!O26 -> fond rulment | N33: =SUM(Incas[[#This Row],[ian]:[dec]]) -> 0
A34: =ian!O27 -> fond reparatii | N34: =SUM(Incas[[#This Row],[ian]:[dec]]) -> 0
A35: =ian!O28 -> diverse | N35: =SUM(Incas[[#This Row],[ian]:[dec]]) -> 0
A36: =ian!O29 -> penalizari | N36: =SUM(Incas[[#This Row],[ian]:[dec]]) -> 0
A37: =ian!O30 ->  | N37: =SUM(Incas[[#This Row],[ian]:[dec]]) -> 0
A38: =ian!O31 ->  | N38: =SUM(Incas[[#This Row],[ian]:[dec]]) -> 0
A39: Total | B39: =SUBTOTAL(109,Incas[ian]) -> 158.89 | C39: =SUBTOTAL(109,Incas[feb]) -> 0 | D39: =SUBTOTAL(109,Incas[mar]) -> 0 | E39: =SUBTOTAL(109,Incas[apr]) -> 0 | F39: =SUBTOTAL(109,Incas[[ mai ]]) -> 0 | G39: =SUBTOTAL(109,Incas[[iun ]]) -> 0 | H39: =SUBTOTAL(109,Incas[[iul ]]) -> 0 | I39: =SUBTOTAL(109,Incas[aug]) -> 0 | J39: =SUBTOTAL(109,Incas[sep]) -> 0 | K39: =SUBTOTAL(109,Incas[oct]) -> 0 | L39: =SUBTOTAL(109,Incas[[noe ]]) -> 0 | M39: =SUBTOTAL(109,Incas[dec]) -> 0 | N39: =SUBTOTAL(103,Incas[TOTAL]) -> 8

Sheet cash
A1: 500 | B1: 2 | C1: =A1*B1 -> 1000
A2: 200 | B2: 8 | C2: 1600
A3: 100 | B3: 4 | C3: 400
A4: 50 | B4: 4 | C4: 200
A5: 10 | B5: 47 | C5: 470
A6: 5 | B6: 4 | C6: 20
A7: 1 | B7: 100 | C7: 100
A8: 0.5 | B8: 26 | C8: 13
C9: =SUM(C1:C8) -> 3803 | D9: 3860.27
